NUMERO_MANDATO;RIGA_MANDATO;QUIET;IMPORTO_RIGA;IMPORTO_MANDATO;BENEFICIARIO;CIG;TITOLO_PAGAMENTO;DATA_MANDATO;CAPITOLO;ARTICOLO;NUMERO_IMPEGNO;TITOLO;DESCR_TITOLO;LIVELLO_II;DESCR_LIVELLO_II;LIVELLO_III;DESCR_LIVELLO_III;LIVELLO_IV;DESCR_LIVELLO_IV;LIVELLO_V;DESCR_LIVELLO_V;DATA_PAG_EFF;
547;1;0;"121,13";"601,58";TELECOM ITALIA SPA;ZE31381BC6;SALDO Fatt.n. 8E00570814  del 07/06/2017 Spese telefoniche utenza Sede Municipale (0499940027) quarto bimestre 2017;04-07-2017;4751;0;67;1;Spese correnti;3;Acquisto di beni e servizi;2;Acquisto di servizi;5;Utenze e canoni;1;Telefonia fissa;04-07-2017;
547;2;0;"236,44";"601,58";TELECOM ITALIA SPA;ZE31381BC6;SALDO Fatt.n. 8E00564789  del 07/06/2017 Spese telefoniche utenza Sede Municipale (0499940666) quarto bimestre 2017;04-07-2017;4751;0;67;1;Spese correnti;3;Acquisto di beni e servizi;2;Acquisto di servizi;5;Utenze e canoni;1;Telefonia fissa;04-07-2017;
547;3;0;"244,01";"601,58";TELECOM ITALIA SPA;ZE31381BC6;SALDO Fatt.n. 8E00565285  del 07/06/2017 Spese telefoniche utenza Sede Municipale (0499940677) quarto bimestre 2017;04-07-2017;4751;0;67;1;Spese correnti;3;Acquisto di beni e servizi;2;Acquisto di servizi;5;Utenze e canoni;1;Telefonia fissa;04-07-2017;
548;1;0;"86,32";"86,32";TELECOM ITALIA SPA;ZE31381BC6;SALDO Fatt.n. 8E00565017  del 07/06/2017 Spese telefoniche utenza Scuola Infanzia - quarto bimestre 2017;04-07-2017;28001;0;68;1;Spese correnti;3;Acquisto di beni e servizi;2;Acquisto di servizi;5;Utenze e canoni;1;Telefonia fissa;04-07-2017;
549;1;0;"147,84";"147,84";TELECOM ITALIA SPA;ZE31381BC6;SALDO Fatt.n. 8E00570790  del 07/06/2017 Spese telefoniche utenza Scuola Primaria - quarto bimestre 2017;04-07-2017;29701;0;69;1;Spese correnti;3;Acquisto di beni e servizi;2;Acquisto di servizi;5;Utenze e canoni;1;Telefonia fissa;04-07-2017;
550;1;0;"210,84";"210,84";TELECOM ITALIA SPA;ZE31381BC6;SALDO Fatt.n. 8E00564275  del 07/06/2017 Spese telefoniche utenza Scuola Secondaria Primo Grado - quarto bimestre 2017;04-07-2017;31801;0;70;1;Spese correnti;3;Acquisto di beni e servizi;2;Acquisto di servizi;5;Utenze e canoni;1;Telefonia fissa;04-07-2017;
552;1;0;"29.341,55";"29.341,55";CASSA DEPOSITI E PRESTITI SPA; ;Quota interessi dei mutui in ammortamento rata del 30.06.2017  -  provv. 57;05-07-2017;7450;0;197;1;Spese correnti;7;Interessi passivi;5;Interessi su Mutui e altri finanziamenti a medio lungo termine;4;Interessi passivi su finanziamenti a medio lungo termine a Imprese;3;Interessi passivi a Cassa Depositi e Prestiti SPA su mutui e altri finanziamenti a medio lungo termine;05-07-2017;
553;1;0;"4.167,85";"4.167,85";CASSA DEPOSITI E PRESTITI SPA; ;Quota interessi dei mutui in ammortamento rata del 30.06.2017  -  provv. 57;05-07-2017;3285;0;198;1;Spese correnti;7;Interessi passivi;5;Interessi su Mutui e altri finanziamenti a medio lungo termine;4;Interessi passivi su finanziamenti a medio lungo termine a Imprese;3;Interessi passivi a Cassa Depositi e Prestiti SPA su mutui e altri finanziamenti a medio lungo termine;05-07-2017;
554;1;0;"1.255,96";"1.255,96";CASSA DEPOSITI E PRESTITI SPA; ;Quota interessi dei mutui in ammortamento rata del 30.06.2017  -  provv. 57;05-07-2017;5685;0;199;1;Spese correnti;7;Interessi passivi;5;Interessi su Mutui e altri finanziamenti a medio lungo termine;4;Interessi passivi su finanziamenti a medio lungo termine a Imprese;3;Interessi passivi a Cassa Depositi e Prestiti SPA su mutui e altri finanziamenti a medio lungo termine;05-07-2017;
555;1;0;"887,38";"887,38";TREVISAN VANESSA; ;Indennita di funzione spettante al Sindaco mese di giugno 2017;05-07-2017;10;0;9;1;Spese correnti;3;Acquisto di beni e servizi;2;Acquisto di servizi;1;Organi e incarichi istituzionali dell'amministrazione;1;Organi istituzionali dell'amministrazione - Indennità;05-07-2017;
556;1;0;"177,48";"177,48";CALAON SIMONE; ;Indennita di funzione spettante al vice-sindaco mese di giugno  2017;05-07-2017;10;0;10;1;Spese correnti;3;Acquisto di beni e servizi;2;Acquisto di servizi;1;Organi e incarichi istituzionali dell'amministrazione;1;Organi istituzionali dell'amministrazione - Indennità;05-07-2017;
557;1;0;"266,21";"266,21";SANTIMARIA ANDREA; ;Indennita di funzione assessore mese di giugno 2017;05-07-2017;10;0;11;1;Spese correnti;3;Acquisto di beni e servizi;2;Acquisto di servizi;1;Organi e incarichi istituzionali dell'amministrazione;1;Organi istituzionali dell'amministrazione - Indennità;05-07-2017;
558;1;0;"266,21";"266,21";ZAVATTIERO AGOSTINO; ;Indennita di funzione assessore mese di giugno 2017;05-07-2017;10;0;13;1;Spese correnti;3;Acquisto di beni e servizi;2;Acquisto di servizi;1;Organi e incarichi istituzionali dell'amministrazione;1;Organi istituzionali dell'amministrazione - Indennità;05-07-2017;
559;1;0;"133,11";"133,11";LAZZARETTO ROBERTA; ;Indennita di funzione assessore mese di giugno 2017;05-07-2017;10;0;12;1;Spese correnti;3;Acquisto di beni e servizi;2;Acquisto di servizi;1;Organi e incarichi istituzionali dell'amministrazione;1;Organi istituzionali dell'amministrazione - Indennità;05-07-2017;
562;1;0;"140,10";"140,10";LAZZARETTO ROBERTA; ;Rimborso spese viaggio ad assessore Lazzaretto R. mese di giugno 2017 - A.L. Area Servizi Amministrativi e contabili n. 102 del 04.07.2017;05-07-2017;230;0;159;1;Spese correnti;3;Acquisto di beni e servizi;2;Acquisto di servizi;1;Organi e incarichi istituzionali dell'amministrazione;2;Organi istituzionali dell'amministrazione - Rimborsi;05-07-2017;
563;1;0;"1.200,00";"2.400,00";OMESSO NOMINATIVO NEL RISPETTO DELLA NORMATIVA SULLA PROTEZIONE DATI PERSONALI; ;Contributo per impegnativa di cura domiciliare (ICDM) - Primo trimestre 2017  -  Atto Liquidazione Area Servizi Amministrativi e Contabili n. 100 del 28.06.2017;06-07-2017;6710;0;207;1;Spese correnti;4;Trasferimenti correnti;2;Trasferimenti correnti a Famiglie;5;Altri trasferimenti a famiglie;999;Altri trasferimenti a famiglie n.a.c.;06-07-2017;
563;2;0;"1.200,00";"2.400,00";OMESSO NOMINATIVO NEL RISPETTO DELLA NORMATIVA SULLA PROTEZIONE DATI PERSONALI; ;Contributo per impegnativa di cura domiciliare (ICDM) - Primo trimestre 2017  -  Atto Liquidazione Area Servizi Amministrativi e Contabili n. 100 del 28.06.2017;06-07-2017;6710;0;207;1;Spese correnti;4;Trasferimenti correnti;2;Trasferimenti correnti a Famiglie;5;Altri trasferimenti a famiglie;999;Altri trasferimenti a famiglie n.a.c.;06-07-2017;
564;1;0;"95,36";"95,36";Vodafone Italia S.p.A.;ZD11381BD3;ACCONTO Fatt.n. AH10303518  del 14/06/2017 Spese telefoniche telefonia mobile e utenze Villa Venier e Biblioteca periodo dal 15 aprile 2017 al 09 giugno 2017;06-07-2017;4751;0;73;1;Spese correnti;3;Acquisto di beni e servizi;2;Acquisto di servizi;5;Utenze e canoni;2;Telefonia mobile;06-07-2017;
565;1;0;"78,32";"78,32";Vodafone Italia S.p.A.;Z941E11750;ACCONTO Fatt.n. AH10303518  del 14/06/2017 Spese telefoniche telefonia mobile e utenze Villa Venier e Biblioteca periodo dal 15 aprile 2017 al 09 giugno 2017;06-07-2017;1312;0;139;1;Spese correnti;3;Acquisto di beni e servizi;2;Acquisto di servizi;5;Utenze e canoni;1;Telefonia fissa;06-07-2017;
566;1;0;"70,26";"70,26";Vodafone Italia S.p.A.;Z941E11750;SALDO Fatt.n. AH10303518  del 14/06/2017 Spese telefoniche telefonia mobile e utenze Villa Venier e Biblioteca periodo dal 15 aprile 2017 al 09 giugno 2017;06-07-2017;3761;0;144;1;Spese correnti;3;Acquisto di beni e servizi;2;Acquisto di servizi;5;Utenze e canoni;1;Telefonia fissa;06-07-2017;
567;1;0;"1.045,00";"1.045,00";ZEFIRO SRL;Z3D1A45638;ACCONTO Fatt.n. 18/PA  del 31/05/2017 Servizio di pulizia edifici comunali MESE di MAGGIO 2017;06-07-2017;475;0;393;1;Spese correnti;3;Acquisto di beni e servizi;2;Acquisto di servizi;99;Altri servizi;999;Altri servizi diversi n.a.c.;06-07-2017;
568;1;0;"262,18";"262,18";ZEFIRO SRL;Z3D1A45638;ACCONTO Fatt.n. 18/PA  del 31/05/2017 Servizio di pulizia edifici comunali MESE di MAGGIO 2017;06-07-2017;2973;0;394;1;Spese correnti;3;Acquisto di beni e servizi;2;Acquisto di servizi;99;Altri servizi;999;Altri servizi diversi n.a.c.;06-07-2017;
569;1;0;"294,75";"294,75";ZEFIRO SRL;Z3D1A45638;ACCONTO Fatt.n. 18/PA  del 31/05/2017 Servizio di pulizia edifici comunali MESE di MAGGIO 2017;06-07-2017;37601;0;395;1;Spese correnti;3;Acquisto di beni e servizi;2;Acquisto di servizi;99;Altri servizi;999;Altri servizi diversi n.a.c.;06-07-2017;
570;1;0;"174,85";"174,85";ZEFIRO SRL;Z3D1A45638;SALDO Fatt.n. 18/PA  del 31/05/2017 Servizio di pulizia edifici comunali MESE di MAGGIO 2017;06-07-2017;1400;0;396;1;Spese correnti;3;Acquisto di beni e servizi;2;Acquisto di servizi;9;Manutenzione ordinaria e riparazioni;8;Manutenzione ordinaria e riparazioni di beni immobili;06-07-2017;
571;1;0;"273,28";"273,28";G.T.Z. MEDICAL s.n.c.;Z181E7B770;SALDO Fatt.n. 5  del 31/05/2017 Fornitura armadio ed elettrodi per apparecchiature medicali;06-07-2017;1300;0;156;1;Spese correnti;3;Acquisto di beni e servizi;1;Acquisto di beni;2;Altri beni di consumo;999;Altri beni e materiali di consumo n.a.c.;06-07-2017;
572;1;0;"1.535,63";"1.535,63";CODESS SOCIALE;684143311D;ACCONTO Fatt.n. 2966/PA  del 13/06/2017 SERVIZIO DI ASSISTENZA SOCIALE E DOMICILIARE mese di aprile 2017;06-07-2017;6980;0;435;1;Spese correnti;3;Acquisto di beni e servizi;2;Acquisto di servizi;15;Contratti di servizio pubblico;9;Contratti di servizio di assistenza sociale domiciliare;06-07-2017;
573;1;0;"2.458,83";"2.458,83";CODESS SOCIALE;684143311D;SALDO Fatt.n. 2966/PA  del 13/06/2017 SERVIZIO DI ASSISTENZA SOCIALE E DOMICILIARE mese di aprile 2017;06-07-2017;6990;0;436;1;Spese correnti;3;Acquisto di beni e servizi;2;Acquisto di servizi;15;Contratti di servizio pubblico;9;Contratti di servizio di assistenza sociale domiciliare;06-07-2017;
574;1;0;"1.802,59";"1.802,59";CODESS SOCIALE;684143311D;ACCONTO Fatt.n. 3094/PA  del 20/06/2017 Servizio di assistenza sociale e domiciliare mese di maggio 2017;06-07-2017;6980;0;435;1;Spese correnti;3;Acquisto di beni e servizi;2;Acquisto di servizi;15;Contratti di servizio pubblico;9;Contratti di servizio di assistenza sociale domiciliare;06-07-2017;
575;1;0;"2.989,51";"2.989,51";CODESS SOCIALE;684143311D;SALDO Fatt.n. 3094/PA  del 20/06/2017 Servizio di assistenza sociale e domiciliare mese di maggio 2017;06-07-2017;6990;0;436;1;Spese correnti;3;Acquisto di beni e servizi;2;Acquisto di servizi;15;Contratti di servizio pubblico;9;Contratti di servizio di assistenza sociale domiciliare;06-07-2017;
576;1;0;"701,76";"701,76";PASTORELLO ATHOS;Z691D72F04;SALDO Fatt.n. 1E  del 26/06/2017 N. 136 buoni pasto  (periodo febbraio - maggio 2017);06-07-2017;9375;0;49;1;Spese correnti;3;Acquisto di beni e servizi;2;Acquisto di servizi;99;Altri servizi;999;Altri servizi diversi n.a.c.;06-07-2017;
577;1;0;"4.399,45";"4.399,45";COOPERATIVA SOCIALE SERVIZI ASSOCIATI;Z561A7EDC6;SALDO Fatt.n. D-197  del 31/05/2017 Servizio di trasporto scolastico mese di maggio 2017;06-07-2017;3413;0;319;1;Spese correnti;3;Acquisto di beni e servizi;2;Acquisto di servizi;15;Contratti di servizio pubblico;2;Contratti di servizio di trasporto scolastico;06-07-2017;
578;1;0;"7.480,00";"7.480,00";MARTINI LUCIANO SRL;Z5D1CB66CD;SALDO Fatt.n. 6/EL  del 14/06/2017 Manutenzione straordinaria strade comunali;06-07-2017;11820;0;441;2;Spese in conto capitale;2;Investimenti fissi lordi e acquisto di terreni;1;Beni materiali;9;Beni immobili;12;Infrastrutture stradali;06-07-2017;
579;1;0;"120,88";"120,88";E.ON Energia S.p.a.;Z7113FE6B2;SALDO Fatt.n. 40006356  del 03/07/2017 Fornitura gas naturale utenza immobile Piazzetta Martiri periodo dal 05.05.2017 al 31.05.2017;10-07-2017;1405;0;61;1;Spese correnti;3;Acquisto di beni e servizi;2;Acquisto di servizi;5;Utenze e canoni;6;Gas;10-07-2017;
580;1;0;"41,55";"41,55";E.ON Energia S.p.a.;Z7113FE6B2;SALDO Fatt.n. 40006354  del 03/07/2017 Fornitura gas naturale utenza Sede Municipale (matricola contatore 1545006563) mese di maggio 2017;10-07-2017;4751;0;62;1;Spese correnti;3;Acquisto di beni e servizi;2;Acquisto di servizi;5;Utenze e canoni;6;Gas;10-07-2017;
581;1;0;"53,90";"53,90";E.ON Energia S.p.a.;Z7113FE6B2;SALDO Fatt.n. 40006355  del 03/07/2017 Fornitura gas naturale utenza Polo Scolastico mese di maggio 2017;10-07-2017;28001;0;63;1;Spese correnti;3;Acquisto di beni e servizi;2;Acquisto di servizi;5;Utenze e canoni;6;Gas;10-07-2017;
582;1;0;"15.460,50";"15.460,50";Cabi Broker Di Assicurazioni Srl;Z091B04FDB;Liquidazione premi assicurativi relativi alle polizze in scadenza il 31 luglio 2017  -  Atto Liquidazione Area Servizi Tecnici n. 98 del 14.07.2017;18-07-2017;477;0;232;1;Spese correnti;10;Altre spese correnti;4;Premi di assicurazione;99;Altri premi di assicurazione n.a.c.;999;Altri premi di assicurazione n.a.c.;18-07-2017;
583;1;0;"10,50";"10,50";ECONOMO COMUNALE; ;Rifusione buono economato n. 31 - A.L. A.C. N. 104 DEL 04.07.2017;19-07-2017;230;0;92;1;Spese correnti;3;Acquisto di beni e servizi;2;Acquisto di servizi;1;Organi e incarichi istituzionali dell'amministrazione;2;Organi istituzionali dell'amministrazione - Rimborsi;19-07-2017;
584;1;0;"17,00";"17,00";ECONOMO COMUNALE; ;Rifusione buono economato n. 29 - A.L. A.C. n. 104 del 04.07.2017;19-07-2017;571;0;95;1;Spese correnti;3;Acquisto di beni e servizi;2;Acquisto di servizi;99;Altri servizi;999;Altri servizi diversi n.a.c.;19-07-2017;
585;1;0;"50,50";"50,50";ECONOMO COMUNALE; ;Rifusione buoni economato n. 28 30 33 e 35 - A.L. A.C. n. 104 del 04.07.2017;19-07-2017;4754;0;96;1;Spese correnti;3;Acquisto di beni e servizi;1;Acquisto di beni;2;Altri beni di consumo;999;Altri beni e materiali di consumo n.a.c.;19-07-2017;
586;1;0;"4,00";"4,00";ECONOMO COMUNALE; ;Rifusione buono economato n. 32 - A.L. A.C. n. 104 del 04.07.2017;19-07-2017;1305;0;97;1;Spese correnti;3;Acquisto di beni e servizi;1;Acquisto di beni;2;Altri beni di consumo;999;Altri beni e materiali di consumo n.a.c.;19-07-2017;
588;1;0;"4,00";"4,00";ECONOMO COMUNALE; ;Rifusione buoni economato n. 34 - A.L. A.C. n. 104 del 04.07.2017;19-07-2017;29702;0;100;1;Spese correnti;3;Acquisto di beni e servizi;1;Acquisto di beni;2;Altri beni di consumo;999;Altri beni e materiali di consumo n.a.c.;19-07-2017;
589;1;0;"149,97";"149,97";Sodexo Italia Spa;64630250F4;SALDO Fatt.n. 6400027548  del 30/06/2017 Servizio di sorveglianza refettorio;19-07-2017;3406;0;78;1;Spese correnti;3;Acquisto di beni e servizi;2;Acquisto di servizi;15;Contratti di servizio pubblico;6;Contratti di servizio per le mense scolastiche;19-07-2017;
590;1;0;"831,00";"831,00";Sodexo Italia Spa;64630250F4;SALDO Fatt.n. 6400027547  del 30/06/2017 FORNITURA PASTI AD ALUNNI SCUOLA ELEMENTARE GIUGNO 2017;19-07-2017;3406;0;46;1;Spese correnti;3;Acquisto di beni e servizi;2;Acquisto di servizi;15;Contratti di servizio pubblico;6;Contratti di servizio per le mense scolastiche;19-07-2017;
591;1;0;"3.120,98";"3.120,98";Sodexo Italia Spa;64630250F4;SALDO Fatt.n. 6400027546  del 30/06/2017 FORNITURA PASTI ALUNNI SCUOLA MATERNA MESE DI GIUGNO 2017;19-07-2017;3404;0;45;1;Spese correnti;3;Acquisto di beni e servizi;2;Acquisto di servizi;15;Contratti di servizio pubblico;6;Contratti di servizio per le mense scolastiche;19-07-2017;
592;1;0;"750,00";"750,00";CASA DI RIPOSO "A. SIMIONATI"; ;SALDO Fatt.n. 79/E  del 30/06/2017 Quota retta ricovero R.R. mese di giugno 2017;19-07-2017;6875;0;40;1;Spese correnti;3;Acquisto di beni e servizi;2;Acquisto di servizi;99;Altri servizi;999;Altri servizi diversi n.a.c.;19-07-2017;
593;1;0;"578,05";"578,05";MAPLAST di Mischiari Luca;Z291DF171A;SALDO Fatt.n. 37/PA/2017  del 18/07/2017 Costo copie stampanti a noleggio primo semestre 2017;19-07-2017;4752;0;119;1;Spese correnti;3;Acquisto di beni e servizi;2;Acquisto di servizi;9;Manutenzione ordinaria e riparazioni;5;Manutenzione ordinaria e riparazioni di attrezzature;19-07-2017;
594;1;0;"312,76";"312,76";POSTE ITALIANE SPA;Z961438A4F;SALDO Fatt.n. 8717193258  del 13/07/2017 Spese postali mese di maggio 2017 - Rendiconto 1000444853;19-07-2017;4800;0;165;1;Spese correnti;3;Acquisto di beni e servizi;2;Acquisto di servizi;16;Servizi amministrativi;2;Spese postali;19-07-2017;
595;1;0;"1.709,00";"1.709,00";GAL PATAVINO S.C.AR.L.; ;Contributo una tantum per attivita del GAL Patavino - A.L. A.C. n. 114 del 19.07.2017;19-07-2017;580;0;216;1;Spese correnti;4;Trasferimenti correnti;1;Trasferimenti correnti a Amministrazioni Pubbliche;2;Trasferimenti correnti a Amministrazioni Locali;17;Trasferimenti correnti a altri enti e agenzie regionali e sub regionali;19-07-2017;
596;1;0;"4.900,00";"4.900,00";CONSORZIO BIBLIOTECHE PADOVANE ASSOCIATE; ;Gestione della Biblioteca Comunale ' semestre 2017 - A.L. AC N. 113 DEL 19.07.2017;19-07-2017;3760;0;434;1;Spese correnti;3;Acquisto di beni e servizi;2;Acquisto di servizi;99;Altri servizi;999;Altri servizi diversi n.a.c.;19-07-2017;
598;1;0;"2.300,00";"2.300,00";U.S. COLLI EUGANEI A.S.D.; ;Liquidazione acconto 50% del contributo economico anno 2017 - A.L. A.C. N. 107 DEL 13.07.2017;19-07-2017;6600;0;223;1;Spese correnti;4;Trasferimenti correnti;4;Trasferimenti correnti a Istituzioni Sociali Private;1;Trasferimenti correnti a Istituzioni Sociali Private;1;Trasferimenti correnti a Istituzioni Sociali Private;19-07-2017;
602;1;0;"1.472,54";"1.472,54";EDIL VO' SRL;Z4D1CC16E5;SALDO Fatt.n. 2/PA  del 13/04/2017 Sistemazione frontone esterno municipio;19-07-2017;1302;0;437;1;Spese correnti;3;Acquisto di beni e servizi;2;Acquisto di servizi;9;Manutenzione ordinaria e riparazioni;8;Manutenzione ordinaria e riparazioni di beni immobili;19-07-2017;
603;1;0;"134,20";"134,20";EDIL VO' SRL;ZB31ADEACD;SALDO Fatt.n. 1/PA  del 13/04/2017 Noleggio piattaforma aerea;19-07-2017;1302;0;287;1;Spese correnti;3;Acquisto di beni e servizi;2;Acquisto di servizi;9;Manutenzione ordinaria e riparazioni;8;Manutenzione ordinaria e riparazioni di beni immobili;19-07-2017;
604;1;0;"8.440,78";"17.568,47";S.E.S.A. SPA;Z11182D6F2;SALDO Fatt.n. 2000389  del 30/06/2017 Smaltimento rifiuti mese di giugno 2017;19-07-2017;5780;0;74;1;Spese correnti;3;Acquisto di beni e servizi;2;Acquisto di servizi;15;Contratti di servizio pubblico;4;Contratti di servizio per la raccolta rifiuti;19-07-2017;
604;2;0;"9.127,69";"17.568,47";S.E.S.A. SPA;Z11182D6F2;SALDO Fatt.n. 2000310  del 31/05/2017 Servizio smaltimento rifiuti  mese di maggio 2017;19-07-2017;5780;0;74;1;Spese correnti;3;Acquisto di beni e servizi;2;Acquisto di servizi;15;Contratti di servizio pubblico;4;Contratti di servizio per la raccolta rifiuti;19-07-2017;
605;1;0;"24,00";"992,57";MAGAZZINI AMBROSI S.A.S. DI AMBROSI FABIO E TIZIANA;ZC91E16A3B;SALDO Fatt.n. 2017001  del 31/03/2017 Vendita;19-07-2017;1300;0;132;1;Spese correnti;3;Acquisto di beni e servizi;1;Acquisto di beni;2;Altri beni di consumo;999;Altri beni e materiali di consumo n.a.c.;19-07-2017;
605;2;0;"331,79";"992,57";MAGAZZINI AMBROSI S.A.S. DI AMBROSI FABIO E TIZIANA;ZC91E16A3B;ACCONTO Fatt.n. 2017001  del 31/03/2017 Vendita;19-07-2017;1300;0;132;1;Spese correnti;3;Acquisto di beni e servizi;1;Acquisto di beni;2;Altri beni di consumo;999;Altri beni e materiali di consumo n.a.c.;19-07-2017;
605;3;0;"636,78";"992,57";MAGAZZINI AMBROSI S.A.S. DI AMBROSI FABIO E TIZIANA;ZC91E16A3B;SALDO Fatt.n. 10  del 30/06/2017 Fornitura materiale vario per manutenzione ordinaria operai;19-07-2017;1300;0;132;1;Spese correnti;3;Acquisto di beni e servizi;1;Acquisto di beni;2;Altri beni di consumo;999;Altri beni e materiali di consumo n.a.c.;19-07-2017;
606;1;0;"333,00";"679,50";BOGONI ALFONSO & C. S.A.S.;Z9E1D16A02;SALDO Fatt.n. V0000001FE  del 28/02/2017 Fornitura carburanti mese di febbraio 2017;19-07-2017;570;0;86;1;Spese correnti;3;Acquisto di beni e servizi;1;Acquisto di beni;2;Altri beni di consumo;2;"Carburanti, combustibili e lubrificanti";19-07-2017;
606;2;0;"346,50";"679,50";BOGONI ALFONSO & C. S.A.S.;Z9E1D16A02;SALDO Fatt.n. V0000004FE  del 31/05/2017 Fornitura carburanti mese di maggio 2017;19-07-2017;570;0;86;1;Spese correnti;3;Acquisto di beni e servizi;1;Acquisto di beni;2;Altri beni di consumo;2;"Carburanti, combustibili e lubrificanti";19-07-2017;
607;1;0;"854,00";"854,00";FIS FABBRICA ITALIANA SEMAFORI SRL;Z121EFD274;SALDO Fatt.n. 198/PA  del 30/06/2017 ATTIVAZIONE SEMAFORO A CHIAMATA PEDONALE S.P. 89 - S.P. 101;19-07-2017;7335;0;210;1;Spese correnti;3;Acquisto di beni e servizi;2;Acquisto di servizi;9;Manutenzione ordinaria e riparazioni;8;Manutenzione ordinaria e riparazioni di beni immobili;19-07-2017;
608;1;0;"330,00";"330,00";EL.PO srl;Z371A735EA;ACCONTO Fatt.n. 001330  del 28/06/2017 Manutenzione ascensori edifici comunali periodo 01.01.2017 - 30.06.2017;19-07-2017;1310;0;169;1;Spese correnti;3;Acquisto di beni e servizi;2;Acquisto di servizi;9;Manutenzione ordinaria e riparazioni;8;Manutenzione ordinaria e riparazioni di beni immobili;19-07-2017;
609;1;0;"240,00";"240,00";EL.PO srl;Z371A735EA;ACCONTO Fatt.n. 001330  del 28/06/2017 Manutenzione ascensori edifici comunali periodo 01.01.2017 - 30.06.2017;19-07-2017;1400;0;170;1;Spese correnti;3;Acquisto di beni e servizi;2;Acquisto di servizi;9;Manutenzione ordinaria e riparazioni;8;Manutenzione ordinaria e riparazioni di beni immobili;19-07-2017;
610;1;0;"318,35";"318,35";EL.PO srl;Z371A735EA;ACCONTO Fatt.n. 001330  del 28/06/2017 Manutenzione ascensori edifici comunali periodo 01.01.2017 - 30.06.2017;19-07-2017;476;0;171;1;Spese correnti;3;Acquisto di beni e servizi;2;Acquisto di servizi;9;Manutenzione ordinaria e riparazioni;8;Manutenzione ordinaria e riparazioni di beni immobili;19-07-2017;
611;1;0;"180,00";"180,00";EL.PO srl;Z371A735EA;SALDO Fatt.n. 001330  del 28/06/2017 Manutenzione ascensori edifici comunali periodo 01.01.2017 - 30.06.2017;19-07-2017;3180;0;172;1;Spese correnti;3;Acquisto di beni e servizi;1;Acquisto di beni;2;Altri beni di consumo;999;Altri beni e materiali di consumo n.a.c.;19-07-2017;
612;1;0;"1.045,00";"1.045,00";ZEFIRO SRL;Z3D1A45638;ACCONTO Fatt.n. 22/PA  del 30/06/2017 Servizio di pulizia edifici comunali MESE di GIUGNO 2017;19-07-2017;475;0;393;1;Spese correnti;3;Acquisto di beni e servizi;2;Acquisto di servizi;99;Altri servizi;999;Altri servizi diversi n.a.c.;19-07-2017;
613;1;0;"262,18";"262,18";ZEFIRO SRL;Z3D1A45638;ACCONTO Fatt.n. 22/PA  del 30/06/2017 Servizio di pulizia edifici comunali MESE di GIUGNO 2017;19-07-2017;2973;0;394;1;Spese correnti;3;Acquisto di beni e servizi;2;Acquisto di servizi;99;Altri servizi;999;Altri servizi diversi n.a.c.;19-07-2017;
614;1;0;"294,75";"294,75";ZEFIRO SRL;Z3D1A45638;ACCONTO Fatt.n. 22/PA  del 30/06/2017 Servizio di pulizia edifici comunali MESE di GIUGNO 2017;19-07-2017;37601;0;395;1;Spese correnti;3;Acquisto di beni e servizi;2;Acquisto di servizi;99;Altri servizi;999;Altri servizi diversi n.a.c.;19-07-2017;
615;1;0;"174,85";"174,85";ZEFIRO SRL;Z3D1A45638;SALDO Fatt.n. 22/PA  del 30/06/2017 Servizio di pulizia edifici comunali MESE di GIUGNO 2017;19-07-2017;1400;0;396;1;Spese correnti;3;Acquisto di beni e servizi;2;Acquisto di servizi;9;Manutenzione ordinaria e riparazioni;8;Manutenzione ordinaria e riparazioni di beni immobili;19-07-2017;
617;1;0;"1.580,00";"1.580,00";VENETA SICUREZZA E SEGNALETICA STRADALE  SRL;Z621CB6630;SALDO Fatt.n. 83  del 18/07/2017 integrazione lavori di segnaletica stradale;19-07-2017;7395;0;439;1;Spese correnti;3;Acquisto di beni e servizi;2;Acquisto di servizi;99;Altri servizi;999;Altri servizi diversi n.a.c.;19-07-2017;
618;1;0;"585,60";"585,60";LAZZARINI LORIS;Z321EFDFFB;SALDO Fatt.n. FATTPA 4_17  del 18/07/2017 Sostituzione vetri e sistemazione pensilina di Piazza Sploverato;19-07-2017;1302;0;215;1;Spese correnti;3;Acquisto di beni e servizi;2;Acquisto di servizi;9;Manutenzione ordinaria e riparazioni;8;Manutenzione ordinaria e riparazioni di beni immobili;19-07-2017;
619;1;0;"304,00";"304,00";BOGONI ALFONSO & C. S.A.S.;Z9E1D16A02;SALDO Fatt.n. V0000005FE  del 30/06/2017 Fornitura carburante mese di luglio 2017;19-07-2017;570;0;86;1;Spese correnti;3;Acquisto di beni e servizi;1;Acquisto di beni;2;Altri beni di consumo;2;"Carburanti, combustibili e lubrificanti";19-07-2017;
620;1;0;"13.323,94";"13.323,94";DE VIZIA TRANSFER S.P.A.;6848933E4B;SALDO Fatt.n. V3-30917  del 30/06/2017 Servizio raccolta  porta a porta RSU mese di giugno 2017;19-07-2017;5780;0;18;1;Spese correnti;3;Acquisto di beni e servizi;2;Acquisto di servizi;15;Contratti di servizio pubblico;4;Contratti di servizio per la raccolta rifiuti;19-07-2017;
621;1;0;"13.956,80";"13.956,80";Studio di Architettura CdZ;ZO516D9CE5;SALDO Fatt.n. 000001-2017-02  del 23/06/2017 Saldo progetto definitivo esecutivo pista ciclabile Vo - Agugliaro;19-07-2017;11830;0;348;2;Spese in conto capitale;2;Investimenti fissi lordi e acquisto di terreni;1;Beni materiali;9;Beni immobili;12;Infrastrutture stradali;19-07-2017;
622;1;0;"7.000,00";"7.000,00";Sartori Marco; ;SALDO Fatt.n. 07/2017  del 05/06/2017 COMPENSO PRIMO PREMIO CONCORSO DI IDEE RIQUALIFICAZIONE PIAZZE VO CAPOLUOGO;20-07-2017;800;0;276;1;Spese correnti;3;Acquisto di beni e servizi;2;Acquisto di servizi;11;Prestazioni professionali e specialistiche;999;Altre prestazioni professionali e specialistiche n.a.c.;20-07-2017;
623;1;0;"2.000,00";"2.000,00";MASTELLA MARIA VITTORIA; ;SALDO Fatt.n. 1  del 30/05/2017 Premio secondo classificato al concorso idee riqualificazione piazze Vo Capoluogo;20-07-2017;800;0;361;1;Spese correnti;3;Acquisto di beni e servizi;2;Acquisto di servizi;11;Prestazioni professionali e specialistiche;999;Altre prestazioni professionali e specialistiche n.a.c.;20-07-2017;
646;1;0;"3.661,87";"3.661,87";I.C.A. IMPOSTE COMUNALI AFFINI;Z291C60108;"SALDO Fatt.n. FE0000736  del 02/05/2017 Aggio per servizio accertamento, riscossione e liquidazione imposta comunale sulla pubblicita e diritti sulle pubbliche affissioni primo trimestre 2017";26-07-2017;1480;0;249;1;Spese correnti;3;Acquisto di beni e servizi;2;Acquisto di servizi;3;Aggi di riscossione;999;Altri aggi di riscossione n.a.c.;26-07-2017;
647;1;0;"336,54";"336,54";Illumia S.p.A.;Z0E14167CF;SALDO Fatt.n. 6132-PE  del 19/06/2017 Fornitura energia elettrica utenza Sede Municipale mese di maggio 2017  -  provv. 66;28-07-2017;4751;0;177;1;Spese correnti;3;Acquisto di beni e servizi;2;Acquisto di servizi;5;Utenze e canoni;4;Energia elettrica;28-07-2017;
648;1;0;"92,86";"92,86";Illumia S.p.A.;Z0E14167CF;ACCONTO Fatt.n. 6677-PE  del 19/06/2017 Fornitura energia elettrica utenza magazzino comunale per il periodo dal 01.04.2017 al 31.05.2017 - provv. 67;28-07-2017;1450;0;36;1;Spese correnti;3;Acquisto di beni e servizi;2;Acquisto di servizi;5;Utenze e canoni;4;Energia elettrica;28-07-2017;
649;1;0;"92,84";"92,84";Illumia S.p.A.;Z0E14167CF;SALDO Fatt.n. 6677-PE  del 19/06/2017 Fornitura energia elettrica utenza magazzino comunale per il periodo dal 01.04.2017 al 31.05.2017  -  provv. 67;28-07-2017;1450;0;184;1;Spese correnti;3;Acquisto di beni e servizi;2;Acquisto di servizi;5;Utenze e canoni;4;Energia elettrica;28-07-2017;
650;1;0;"350,65";"350,65";Illumia S.p.A.;Z0E14167CF;SALDO Fatt.n. 6462-PE  del 19/06/2017 Fornitura energia elettrica utenza immobile Piazzetta Martiri mese di maggio 2017  -  provv. 69;28-07-2017;1405;0;186;1;Spese correnti;3;Acquisto di beni e servizi;2;Acquisto di servizi;5;Utenze e canoni;4;Energia elettrica;28-07-2017;
651;1;0;"1.000,63";"1.000,63";Illumia S.p.A.;Z0E14167CF;ACCONTO Fatt.n. 6673-PE  del 19/06/2017 Fornitura energia elettrica utenze illuminazione pubblica periodo aprile / maggio 2017  -  provv. 68;28-07-2017;7420;0;162;1;Spese correnti;3;Acquisto di beni e servizi;2;Acquisto di servizi;5;Utenze e canoni;4;Energia elettrica;28-07-2017;
652;1;0;"4.888,62";"4.888,62";Illumia S.p.A.;Z0E14167CF;SALDO Fatt.n. 6673-PE  del 19/06/2017 Fornitura energia elettrica utenze illuminazione pubblica periodo aprile / maggio 2017  -  provv. 68;28-07-2017;7420;0;187;1;Spese correnti;3;Acquisto di beni e servizi;2;Acquisto di servizi;5;Utenze e canoni;4;Energia elettrica;28-07-2017;
653;1;0;"26,03";"371,25";Illumia S.p.A.;Z0E14167CF;SALDO Fatt.n. 6674-PE  del 19/06/2017 Fornitura energia elettrica utenza ill. pubblica Piazzetta Martiri mese di maggio 2017  -  provv. 62;28-07-2017;7420;0;187;1;Spese correnti;3;Acquisto di beni e servizi;2;Acquisto di servizi;5;Utenze e canoni;4;Energia elettrica;28-07-2017;
653;2;0;"96,54";"371,25";Illumia S.p.A.;Z0E14167CF;SALDO Fatt.n. 6131-PE  del 19/06/2017 fornitura energia elettrica utenza ill. pubblica Piazzetta Martiri  (POD IT001E04199192) periodo aprile / maggio 2017  -  provv. 74;28-07-2017;7420;0;187;1;Spese correnti;3;Acquisto di beni e servizi;2;Acquisto di servizi;5;Utenze e canoni;4;Energia elettrica;28-07-2017;
653;3;0;"111,36";"371,25";Illumia S.p.A.;Z0E14167CF;SALDO Fatt.n. 6464-PE  del 19/06/2017 Fornitura energia elettrica utenza torretta Piazzetta Spolverato mese di maggio 2017  -  provv. 63;28-07-2017;7420;0;187;1;Spese correnti;3;Acquisto di beni e servizi;2;Acquisto di servizi;5;Utenze e canoni;4;Energia elettrica;28-07-2017;
653;4;0;"137,32";"371,25";Illumia S.p.A.;Z0E14167CF;SALDO Fatt.n. 6129-PE  del 19/06/2017 Fornitura energia elettrica utenza lottizzazione Canaletto periodo aprile / maggio 2017  -  provv. 72;28-07-2017;7420;0;187;1;Spese correnti;3;Acquisto di beni e servizi;2;Acquisto di servizi;5;Utenze e canoni;4;Energia elettrica;28-07-2017;
654;1;0;"109,45";"244,57";Illumia S.p.A.;Z0E14167CF;SALDO Fatt.n. 6250-PE  del 19/06/2017 Fornitura energia elettrica utenza impianto sportivo Zovon mese di maggio 2017  -  provv. 59;28-07-2017;64981;0;183;1;Spese correnti;3;Acquisto di beni e servizi;2;Acquisto di servizi;5;Utenze e canoni;4;Energia elettrica;28-07-2017;
654;2;0;"135,12";"244,57";Illumia S.p.A.;Z0E14167CF;SALDO Fatt.n. 6461-PE  del 19/06/2017 Fornitura energia elettrica utenza impianto sportivo Via Marconi mese di maggio  2017  -  provv. 71;28-07-2017;64981;0;183;1;Spese correnti;3;Acquisto di beni e servizi;2;Acquisto di servizi;5;Utenze e canoni;4;Energia elettrica;28-07-2017;
655;1;0;"74,51";"503,41";Illumia S.p.A.;Z0E14167CF;SALDO Fatt.n. 6676-PE  del 19/06/2017 Fornitura energia elettrica utenza Villa Venier (POD IT001E35511782) periodo aprile / maggio 2017  -  provv. 73;28-07-2017;1312;0;185;1;Spese correnti;3;Acquisto di beni e servizi;2;Acquisto di servizi;5;Utenze e canoni;4;Energia elettrica;28-07-2017;
655;2;0;"74,64";"503,41";Illumia S.p.A.;Z0E14167CF;SALDO Fatt.n. 6675-PE  del 19/06/2017 Fornitura energia elettrica utenza Villa Venier (POD IT001E35511792) periodo aprile / maggio 2017  -  provv. 64;28-07-2017;1312;0;185;1;Spese correnti;3;Acquisto di beni e servizi;2;Acquisto di servizi;5;Utenze e canoni;4;Energia elettrica;28-07-2017;
655;3;0;"96,18";"503,41";Illumia S.p.A.;Z0E14167CF;SALDO Fatt.n. 6130-PE  del 19/06/2017 Fornitura energia elettrica utenza Villa Venier (POD IT001E04020277) periodo aprile / maggio 2017  -  provv. 75;28-07-2017;1312;0;185;1;Spese correnti;3;Acquisto di beni e servizi;2;Acquisto di servizi;5;Utenze e canoni;4;Energia elettrica;28-07-2017;
655;4;0;"96,54";"503,41";Illumia S.p.A.;Z0E14167CF;SALDO Fatt.n. 6251-PE  del 19/06/2017 Fornitura energia elettrica utenza Villa Venier (POD IT001E04020273)  periodo aprile / maggio 2017  -  provv. 61;28-07-2017;1312;0;185;1;Spese correnti;3;Acquisto di beni e servizi;2;Acquisto di servizi;5;Utenze e canoni;4;Energia elettrica;28-07-2017;
655;5;0;"161,54";"503,41";Illumia S.p.A.;Z0E14167CF;SALDO Fatt.n. 6463-PE  del 19/06/2017 fornitura energia elettrica utenza Villa Venier (POD IT001E34674161) mese di maggio 2017  -  provv. 65;28-07-2017;1312;0;185;1;Spese correnti;3;Acquisto di beni e servizi;2;Acquisto di servizi;5;Utenze e canoni;4;Energia elettrica;28-07-2017;
656;1;0;"98,09";"98,09";Illumia S.p.A.;Z0E14167CF;SALDO Fatt.n. 6128-PE  del 19/06/2017 Fornitura energia elettrica utenza ex scuola Zovon conguaglio aprile 2017  - provv. 70;28-07-2017;1330;0;149;1;Spese correnti;3;Acquisto di beni e servizi;2;Acquisto di servizi;5;Utenze e canoni;4;Energia elettrica;28-07-2017;
657;1;0;"60,67";"60,67";Illumia S.p.A.;Z0E14167CF;SALDO Fatt.n. 6248-PE  del 19/06/2017 Fornitura energia elettrica utenza ex scuola Vo Vecchio periodo aprile / maggio 2017  -  provv. 58;28-07-2017;1330;0;181;1;Spese correnti;3;Acquisto di beni e servizi;2;Acquisto di servizi;5;Utenze e canoni;4;Energia elettrica;28-07-2017;
658;1;0;"341,60";"341,60";Illumia S.p.A.;Z0E14167CF;ACCONTO Fatt.n. 6249-PE  del 19/06/2017 Fornitura energia elettrica utenza Polo Scolastico mese di maggio 2017  -  provv. 60;28-07-2017;28001;0;178;1;Spese correnti;3;Acquisto di beni e servizi;2;Acquisto di servizi;5;Utenze e canoni;4;Energia elettrica;28-07-2017;
659;1;0;"341,60";"341,60";Illumia S.p.A.;Z0E14167CF;ACCONTO Fatt.n. 6249-PE  del 19/06/2017 Fornitura energia elettrica utenza Polo Scolastico mese di maggio 2017  -  provv. 60;28-07-2017;29701;0;179;1;Spese correnti;3;Acquisto di beni e servizi;2;Acquisto di servizi;5;Utenze e canoni;4;Energia elettrica;28-07-2017;
660;1;0;"346,97";"346,97";Illumia S.p.A.;Z0E14167CF;SALDO Fatt.n. 6249-PE  del 19/06/2017 Fornitura energia elettrica utenza Polo Scolastico mese di maggio 2017  -  provv. 60;28-07-2017;31801;0;180;1;Spese correnti;3;Acquisto di beni e servizi;2;Acquisto di servizi;5;Utenze e canoni;4;Energia elettrica;28-07-2017;
664;1;0;"4.880,00";"4.880,00";MARTINI LUCIANO SRL;Z70188CBBO;SALDO Fatt.n. 7/EL  del 22/06/2017 Lavori di manutenzione straordinaria strade comunali;01-08-2017;1302;0;102;1;Spese correnti;3;Acquisto di beni e servizi;2;Acquisto di servizi;9;Manutenzione ordinaria e riparazioni;8;Manutenzione ordinaria e riparazioni di beni immobili;01-08-2017;
665;1;0;"1.464,00";"1.464,00";SORGE SRL;Z5A1F52FE3;SALDO Fatt.n. 71/2017  del 24/07/2017 INTERVENTO TECNICO SU VS. CLASS. ROT. CL. 1000;01-08-2017;4752;0;222;1;Spese correnti;3;Acquisto di beni e servizi;2;Acquisto di servizi;9;Manutenzione ordinaria e riparazioni;5;Manutenzione ordinaria e riparazioni di attrezzature;01-08-2017;
666;1;0;"13.323,94";"13.323,94";DE VIZIA TRANSFER S.P.A.;6848933E4B;SALDO Fatt.n. V3-31096  del 31/07/2017 Servizio di raccolta porta a porta mese di luglio 2017;01-08-2017;5780;0;18;1;Spese correnti;3;Acquisto di beni e servizi;2;Acquisto di servizi;15;Contratti di servizio pubblico;4;Contratti di servizio per la raccolta rifiuti;01-08-2017;
667;1;0;"1.000,00";"1.000,00";OMESSO NOMINATIVO NEL RISPETTO DELLA NORMATIVA SULLA PROTEZIONE DATI PERSONALI; ;Erogazione  "BUONO FAMIGLIA ANNI 2014-2015" - A.L. AC N. 120 DEL 25.07.2017;01-08-2017;6935;0;161;1;Spese correnti;4;Trasferimenti correnti;2;Trasferimenti correnti a Famiglie;5;Altri trasferimenti a famiglie;999;Altri trasferimenti a famiglie n.a.c.;01-08-2017;
668;1;0;"2.464,00";"2.464,00";COOPERATIVA SOCIALE SERVIZI ASSOCIATI;Z561A7EDC6;SALDO Fatt.n. D-261  del 30/06/2017 Servizio di trasporto per uscite didattiche A.S. 2016/2017;01-08-2017;3413;0;238;1;Spese correnti;3;Acquisto di beni e servizi;2;Acquisto di servizi;15;Contratti di servizio pubblico;2;Contratti di servizio di trasporto scolastico;01-08-2017;
669;1;0;"4.399,45";"4.399,45";COOPERATIVA SOCIALE SERVIZI ASSOCIATI;Z561A7EDC6;SALDO Fatt.n. D-234  del 30/06/2017 Servizio di trasporto scolastico mese di giugno 2017;01-08-2017;3413;0;319;1;Spese correnti;3;Acquisto di beni e servizi;2;Acquisto di servizi;15;Contratti di servizio pubblico;2;Contratti di servizio di trasporto scolastico;01-08-2017;
670;1;0;"311,10";"311,10";S.E.A. di Nicola Orru' & C. s.a.s.;Z7B1F20421;SALDO Fatt.n. 17/02  del 27/07/2017 Revisione e controllo estintori anno 2017;01-08-2017;1302;0;212;1;Spese correnti;3;Acquisto di beni e servizi;2;Acquisto di servizi;9;Manutenzione ordinaria e riparazioni;5;Manutenzione ordinaria e riparazioni di attrezzature;01-08-2017;
671;1;0;"158,59";"158,59";S.E.A. di Nicola Orru' & C. s.a.s.;Z7B1F20421;SALDO Fatt.n. 16/02  del 27/07/2017 Acquisto ed installazione n. 3 estintori;01-08-2017;1300;0;213;1;Spese correnti;3;Acquisto di beni e servizi;1;Acquisto di beni;2;Altri beni di consumo;999;Altri beni e materiali di consumo n.a.c.;01-08-2017;
672;1;0;"200,65";"200,65";MAGAZZINI AMBROSI S.A.S. DI AMBROSI FABIO E TIZIANA;ZC91E16A3B;SALDO Fatt.n. 11  del 28/07/2017 Fornitura materiale vario da ferramenta ad operai;01-08-2017;1300;0;132;1;Spese correnti;3;Acquisto di beni e servizi;1;Acquisto di beni;2;Altri beni di consumo;999;Altri beni e materiali di consumo n.a.c.;01-08-2017;
673;1;0;"887,38";"887,38";TREVISAN VANESSA; ;Indennita di funzione spettante al Sindaco luglio  2017;02-08-2017;10;0;9;1;Spese correnti;3;Acquisto di beni e servizi;2;Acquisto di servizi;1;Organi e incarichi istituzionali dell'amministrazione;1;Organi istituzionali dell'amministrazione - Indennità;02-08-2017;
674;1;0;"177,48";"177,48";CALAON SIMONE; ;Indennita di funzione spettante al vice-sindaco luglio 2017;02-08-2017;10;0;10;1;Spese correnti;3;Acquisto di beni e servizi;2;Acquisto di servizi;1;Organi e incarichi istituzionali dell'amministrazione;1;Organi istituzionali dell'amministrazione - Indennità;02-08-2017;
675;1;0;"266,21";"266,21";SANTIMARIA ANDREA; ;Indennita di funzione assessore luglio 2017;02-08-2017;10;0;11;1;Spese correnti;3;Acquisto di beni e servizi;2;Acquisto di servizi;1;Organi e incarichi istituzionali dell'amministrazione;1;Organi istituzionali dell'amministrazione - Indennità;02-08-2017;
676;1;0;"266,21";"266,21";ZAVATTIERO AGOSTINO; ;Indennita di funzione assessore luglio 2017;02-08-2017;10;0;13;1;Spese correnti;3;Acquisto di beni e servizi;2;Acquisto di servizi;1;Organi e incarichi istituzionali dell'amministrazione;1;Organi istituzionali dell'amministrazione - Indennità;02-08-2017;
677;1;0;"133,11";"133,11";LAZZARETTO ROBERTA; ;Indennita di funzione assessore luglio 2017;02-08-2017;10;0;12;1;Spese correnti;3;Acquisto di beni e servizi;2;Acquisto di servizi;1;Organi e incarichi istituzionali dell'amministrazione;1;Organi istituzionali dell'amministrazione - Indennità;02-08-2017;
680;1;0;"173,90";"173,90";LAZZARETTO ROBERTA; ;Rimborso spese viaggio all'assessore Lazzaretto Roberta mese di luglio 2017 - A.L. AC N. 125 DEL 02.08.2017;02-08-2017;230;0;159;1;Spese correnti;3;Acquisto di beni e servizi;2;Acquisto di servizi;1;Organi e incarichi istituzionali dell'amministrazione;2;Organi istituzionali dell'amministrazione - Rimborsi;02-08-2017;
681;1;0;"126,86";"126,86";E.ON Energia S.p.a.;Z7113FE6B2;SALDO Fatt.n. 40007189  del 01/08/2017 Fornitura gas naturale utenza immobile Piazzetta Martiri mese di giugno 2017;07-08-2017;1405;0;61;1;Spese correnti;3;Acquisto di beni e servizi;2;Acquisto di servizi;5;Utenze e canoni;6;Gas;07-08-2017;
682;1;0;"51,07";"51,07";E.ON Energia S.p.a.;Z7113FE6B2;SALDO Fatt.n. 40007188  del 01/08/2017 Fornitura gas naturale utenza Polo Scolastico mese di giugno 2017;07-08-2017;28001;0;63;1;Spese correnti;3;Acquisto di beni e servizi;2;Acquisto di servizi;5;Utenze e canoni;6;Gas;07-08-2017;
683;1;0;"41,55";"41,55";E.ON Energia S.p.a.;Z7113FE6B2;SALDO Fatt.n. 40007187  del 01/08/2017 Fornitura gas naturale utenza Sede Municipale (matricola contatore 1545006563) mese di giugno 2017;07-08-2017;4751;0;62;1;Spese correnti;3;Acquisto di beni e servizi;2;Acquisto di servizi;5;Utenze e canoni;6;Gas;07-08-2017;
684;1;0;"18,92";"100,36";CENTRO VENETO SERVIZI S.P.A.;Z311381BD7;SALDO Fatt.n. 2017228293  del 13/07/2017 Fornitura acqua potabile utenza Via Vo Di Sotto periodo gennaio / maggio 2017;07-08-2017;1350;0;60;1;Spese correnti;3;Acquisto di beni e servizi;2;Acquisto di servizi;5;Utenze e canoni;5;Acqua;07-08-2017;
684;2;0;"18,92";"100,36";CENTRO VENETO SERVIZI S.P.A.;Z311381BD7;SALDO Fatt.n. 2017228402  del 13/07/2017 Fornitura acqua potabile utenza Via Vasche periodo gennaio / maggio 2017;07-08-2017;1350;0;60;1;Spese correnti;3;Acquisto di beni e servizi;2;Acquisto di servizi;5;Utenze e canoni;5;Acqua;07-08-2017;
684;3;0;"18,92";"100,36";CENTRO VENETO SERVIZI S.P.A.;Z311381BD7;SALDO Fatt.n. 2017228050  del 13/07/2017 Fornitura acqua potabile utenza in Via 4 Novembre periodo gennaio / maggio 2017;07-08-2017;1350;0;60;1;Spese correnti;3;Acquisto di beni e servizi;2;Acquisto di servizi;5;Utenze e canoni;5;Acqua;07-08-2017;
684;4;0;"18,92";"100,36";CENTRO VENETO SERVIZI S.P.A.;Z311381BD7;SALDO Fatt.n. 2017227504  del 13/07/2017 Fornitura acqua potabile utenza Via Carducci periodo gennaio / maggio 2017;07-08-2017;1350;0;60;1;Spese correnti;3;Acquisto di beni e servizi;2;Acquisto di servizi;5;Utenze e canoni;5;Acqua;07-08-2017;
684;5;0;"24,68";"100,36";CENTRO VENETO SERVIZI S.P.A.;Z311381BD7;SALDO Fatt.n. 2017228228  del 13/07/2017 Fornitura acqua potabile utenza fontanella pubblica Vo Vecchio periodo gennaio / maggio 2017;07-08-2017;1350;0;60;1;Spese correnti;3;Acquisto di beni e servizi;2;Acquisto di servizi;5;Utenze e canoni;5;Acqua;07-08-2017;
685;1;0;"33,40";"33,40";CENTRO VENETO SERVIZI S.P.A.;Z311381BD7;SALDO Fatt.n. 2017227473  del 13/07/2017 Fornitura acqua potabile utenza impianto sportivo Via Marconi periodo gennaio / maggio 2017;07-08-2017;64981;0;55;1;Spese correnti;3;Acquisto di beni e servizi;2;Acquisto di servizi;5;Utenze e canoni;5;Acqua;07-08-2017;
686;1;0;"18,92";"50,04";CENTRO VENETO SERVIZI S.P.A.;Z311381BD7;SALDO Fatt.n. 2017228054  del 13/07/2017 Fornitura acqua potabile utenza ex scuola Zovon periodo gennaio / maggio 2017;07-08-2017;1330;0;54;1;Spese correnti;3;Acquisto di beni e servizi;2;Acquisto di servizi;5;Utenze e canoni;5;Acqua;07-08-2017;
686;2;0;"31,12";"50,04";CENTRO VENETO SERVIZI S.P.A.;Z311381BD7;SALDO Fatt.n. 2017228382  del 13/07/2017 Fornitura acqua potabile utenza ex scuola Vo Vecchio periodo gennaio / maggio 2017;07-08-2017;1330;0;54;1;Spese correnti;3;Acquisto di beni e servizi;2;Acquisto di servizi;5;Utenze e canoni;5;Acqua;07-08-2017;
687;1;0;"186,70";"186,70";CENTRO VENETO SERVIZI S.P.A.;Z311381BD7;SALDO Fatt.n. 2017227571  del 13/07/2017 Fornitura acqua potabile utenza Sede Municipale periodo gennaio / maggio 2017;07-08-2017;4751;0;50;1;Spese correnti;3;Acquisto di beni e servizi;2;Acquisto di servizi;5;Utenze e canoni;5;Acqua;07-08-2017;
688;1;0;"18,92";"18,92";CENTRO VENETO SERVIZI S.P.A.;Z311381BD7;SALDO Fatt.n. 2017228383  del 13/07/2017 Fornitura acqua potabile utenza Villa Venier periodo gennaio / maggio 2017;07-08-2017;1312;0;58;1;Spese correnti;3;Acquisto di beni e servizi;2;Acquisto di servizi;5;Utenze e canoni;5;Acqua;07-08-2017;
689;1;0;"19,17";"19,17";CENTRO VENETO SERVIZI S.P.A.;Z311381BD7;SALDO Fatt.n. 2017228608  del 13/07/2017 Fornitura acqua potabile utenza magazzino comunale periodo gennaio / maggio 2017;07-08-2017;1450;0;57;1;Spese correnti;3;Acquisto di beni e servizi;2;Acquisto di servizi;5;Utenze e canoni;5;Acqua;07-08-2017;
690;1;0;"18,92";"117,58";CENTRO VENETO SERVIZI S.P.A.;Z311381BD7;SALDO Fatt.n. 2017228055  del 13/07/2017 Fornitura acqua potabile utenza cimitero Zovon periodo gennaio / maggio 2017;07-08-2017;51801;0;56;1;Spese correnti;3;Acquisto di beni e servizi;2;Acquisto di servizi;5;Utenze e canoni;5;Acqua;07-08-2017;
690;2;0;"23,80";"117,58";CENTRO VENETO SERVIZI S.P.A.;Z311381BD7;SALDO Fatt.n. 2017228391  del 13/07/2017 Fornitura acqua potabile utenza cimitero Vo Vecchio periodo gennaio / maggio 2017;07-08-2017;51801;0;56;1;Spese correnti;3;Acquisto di beni e servizi;2;Acquisto di servizi;5;Utenze e canoni;5;Acqua;07-08-2017;
690;3;0;"30,09";"117,58";CENTRO VENETO SERVIZI S.P.A.;Z311381BD7;SALDO Fatt.n. 2017227435  del 13/07/2017 Fornitura acqua potabile utenza cimitero Cortela periodo gennaio / maggio 2017;07-08-2017;51801;0;56;1;Spese correnti;3;Acquisto di beni e servizi;2;Acquisto di servizi;5;Utenze e canoni;5;Acqua;07-08-2017;
690;4;0;"44,77";"117,58";CENTRO VENETO SERVIZI S.P.A.;Z311381BD7;SALDO Fatt.n. 2017227458  del 13/07/2017 Fornitura acqua potabile utenza cimitero in Via Ca Sceriman periodo gennaio / maggio 2017;07-08-2017;51801;0;56;1;Spese correnti;3;Acquisto di beni e servizi;2;Acquisto di servizi;5;Utenze e canoni;5;Acqua;07-08-2017;
691;1;0;"454,30";"454,30";CENTRO VENETO SERVIZI S.P.A.;Z311381BD7;ACCONTO Fatt.n. 2017227906  del 13/07/2017 Fornitura acqua potabile utenza Scuola Infanzia periodo gennaio / maggio 2017;07-08-2017;28001;0;51;1;Spese correnti;3;Acquisto di beni e servizi;2;Acquisto di servizi;5;Utenze e canoni;5;Acqua;07-08-2017;
692;1;0;"455,43";"455,43";CENTRO VENETO SERVIZI S.P.A.;Z311381BD7;SALDO Fatt.n. 2017227906  del 13/07/2017 Fornitura acqua potabile utenza Scuola Primaria periodo gennaio / maggio 2017;07-08-2017;29701;0;52;1;Spese correnti;3;Acquisto di beni e servizi;2;Acquisto di servizi;5;Utenze e canoni;5;Acqua;07-08-2017;
693;1;0;"660,65";"660,65";CENTRO VENETO SERVIZI S.P.A.;Z311381BD7;SALDO Fatt.n. 2017227326  del 13/07/2017 Fornitura acqua potabile utenza 048 002239 Polo Scolastico periodo gennaio / maggio 2017;07-08-2017;31801;0;53;1;Spese correnti;3;Acquisto di beni e servizi;2;Acquisto di servizi;5;Utenze e canoni;5;Acqua;07-08-2017;
694;1;0;"788,64";"788,64";TESORERIA PROVINCIALE DELLO STATO - RISCOSSIONE TRIBUTI; ;Liquidazione IVA a debito secondo trimestre 2017 - A.L. A.C. N. 131 DEL 07.08.2017;08-08-2017;9240;0;256;1;Spese correnti;10;Altre spese correnti;3;Versamenti IVA a debito;1;Versamenti IVA a debito per le gestioni commerciali;1;Versamenti IVA a debito per le gestioni commerciali;08-08-2017;
695;1;0;"1.045,00";"1.045,00";ZEFIRO SRL;Z3D1A45638;ACCONTO Fatt.n. 30/PA  del 31/07/2017 Servizio di pulizia edifici comunali MESE di LUGLIO 2017;08-08-2017;475;0;393;1;Spese correnti;3;Acquisto di beni e servizi;2;Acquisto di servizi;99;Altri servizi;999;Altri servizi diversi n.a.c.;08-08-2017;
696;1;0;"294,75";"294,75";ZEFIRO SRL;Z3D1A45638;ACCONTO Fatt.n. 30/PA  del 31/07/2017 Servizio di pulizia edifici comunali MESE di LUGLIO 2017;08-08-2017;37601;0;395;1;Spese correnti;3;Acquisto di beni e servizi;2;Acquisto di servizi;99;Altri servizi;999;Altri servizi diversi n.a.c.;08-08-2017;
697;1;0;"174,86";"174,86";ZEFIRO SRL;Z3D1A45638;SALDO Fatt.n. 30/PA  del 31/07/2017 Servizio di pulizia edifici comunali MESE di LUGLIO 2017;08-08-2017;1400;0;396;1;Spese correnti;3;Acquisto di beni e servizi;2;Acquisto di servizi;9;Manutenzione ordinaria e riparazioni;8;Manutenzione ordinaria e riparazioni di beni immobili;08-08-2017;
698;1;0;"1.807,13";"1.807,13";Melillo Servizi Ambientali e Cimiteriali s.r.l.;ZE418C2969;SALDO Fatt.n. 3829  del 24/07/2017 Servizio di gestione cimiteri mesi di aprile e maggio 2017;08-08-2017;5190;0;85;1;Spese correnti;3;Acquisto di beni e servizi;2;Acquisto di servizi;99;Altri servizi;999;Altri servizi diversi n.a.c.;08-08-2017;
699;1;0;"27,30";"27,30";Busitalia Veneto spa; ;SALDO Fatt.n. 8121000455  del 27/07/2017 Contributo abbonamento trasporto urbano 2' trimestre 2017;08-08-2017;6935;0;19;1;Spese correnti;4;Trasferimenti correnti;2;Trasferimenti correnti a Famiglie;5;Altri trasferimenti a famiglie;999;Altri trasferimenti a famiglie n.a.c.;08-08-2017;
723;1;0;"325,29";"325,29";Illumia S.p.A.;Z0E14167CF;SALDO Fatt.n. 7191-PE  del 26/07/2017 Fornitura energia elettrica utenza Sede Municipale mese di giugno 2017  -  provv. 76;29-08-2017;4751;0;177;1;Spese correnti;3;Acquisto di beni e servizi;2;Acquisto di servizi;5;Utenze e canoni;4;Energia elettrica;29-08-2017;
724;1;0;"135,81";"135,81";Illumia S.p.A.;Z0E14167CF;SALDO Fatt.n. 7310-PE  del 26/07/2017 Fornitura energia elettrica utenza Villa Venier (POD IT001E34674161) mese di giugno 2017  -  provv.  81;29-08-2017;1312;0;185;1;Spese correnti;3;Acquisto di beni e servizi;2;Acquisto di servizi;5;Utenze e canoni;4;Energia elettrica;29-08-2017;
725;1;0;"394,41";"394,41";Illumia S.p.A.;Z0E14167CF;SALDO Fatt.n. 7309-PE  del 26/07/2017 Fornitura energia elettrica utenza immobile Piazzetta Martiri mese di giugno 2017  -  provv. 80;29-08-2017;1405;0;186;1;Spese correnti;3;Acquisto di beni e servizi;2;Acquisto di servizi;5;Utenze e canoni;4;Energia elettrica;29-08-2017;
726;1;0;"133,98";"395,67";Illumia S.p.A.;Z0E14167CF;SALDO Fatt.n. 7481-PE  del 26/07/2017 Fornitra energia elettrica utenza impianto sportivo Zovon mese di giugno 2017  -  provv. 84;29-08-2017;64981;0;183;1;Spese correnti;3;Acquisto di beni e servizi;2;Acquisto di servizi;5;Utenze e canoni;4;Energia elettrica;29-08-2017;
726;2;0;"261,69";"395,67";Illumia S.p.A.;Z0E14167CF;SALDO Fatt.n. 7308-PE  del 26/07/2017 Fornitura energia elettrica utenza impianti sportivi Via Marconi mese di giugno 2017  -  provv. 79;29-08-2017;64981;0;183;1;Spese correnti;3;Acquisto di beni e servizi;2;Acquisto di servizi;5;Utenze e canoni;4;Energia elettrica;29-08-2017;
727;1;0;"335,02";"335,02";Illumia S.p.A.;Z0E14167CF;ACCONTO Fatt.n. 7480-PE  del 26/07/2017 Fornitura energia elettrica utenza Polo Scolastico mese di giugno 2017  -  provv. 83;29-08-2017;28001;0;178;1;Spese correnti;3;Acquisto di beni e servizi;2;Acquisto di servizi;5;Utenze e canoni;4;Energia elettrica;29-08-2017;
728;1;0;"335,02";"335,02";Illumia S.p.A.;Z0E14167CF;ACCONTO Fatt.n. 7480-PE  del 26/07/2017 Fornitura energia elettrica utenza Polo Scolastico mese di giugno 2017  -  provv. 83;29-08-2017;29701;0;179;1;Spese correnti;3;Acquisto di beni e servizi;2;Acquisto di servizi;5;Utenze e canoni;4;Energia elettrica;29-08-2017;
729;1;0;"335,04";"335,04";Illumia S.p.A.;Z0E14167CF;SALDO Fatt.n. 7480-PE  del 26/07/2017 Fornitura energia elettrica utenza Polo Scolastico mese di giugno 2017  -  provv. 83;29-08-2017;31801;0;180;1;Spese correnti;3;Acquisto di beni e servizi;2;Acquisto di servizi;5;Utenze e canoni;4;Energia elettrica;29-08-2017;
730;1;0;"99,49";"2.321,74";Illumia S.p.A.;Z0E14167CF;SALDO Fatt.n. 7269-PE  del 26/07/2017 Fornitura energia elettrica utenza illuminazione pubblica Piazzetta Martiri (POD IT001E32268714) mese di giugno 2017  -  provv. 78;29-08-2017;7420;0;187;1;Spese correnti;3;Acquisto di beni e servizi;2;Acquisto di servizi;5;Utenze e canoni;4;Energia elettrica;29-08-2017;
730;2;0;"117,35";"2.321,74";Illumia S.p.A.;Z0E14167CF;SALDO Fatt.n. 7311-PE  del 26/07/2017 Fornitura energia elettrica utenza torretta Piazzetta Spolverato mese di giugno 2017  - provv. 82;29-08-2017;7420;0;187;1;Spese correnti;3;Acquisto di beni e servizi;2;Acquisto di servizi;5;Utenze e canoni;4;Energia elettrica;29-08-2017;
730;3;0;"2.104,90";"2.321,74";Illumia S.p.A.;Z0E14167CF;SALDO Fatt.n. 7268-PE  del 26/07/2017 Fornitura energia elettrica utenze illuninazione pubblica mese di giugno 2017  -  provv. 77;29-08-2017;7420;0;187;1;Spese correnti;3;Acquisto di beni e servizi;2;Acquisto di servizi;5;Utenze e canoni;4;Energia elettrica;29-08-2017;
731;1;0;"321,49";"321,49";BOGONI ALFONSO & C. S.A.S.;Z9E1D16A02;SALDO Fatt.n. V0000006FE  del 31/07/2017 Fornitura carburanti mese di luglio 2017;29-08-2017;570;0;86;1;Spese correnti;3;Acquisto di beni e servizi;1;Acquisto di beni;2;Altri beni di consumo;2;"Carburanti, combustibili e lubrificanti";29-08-2017;
732;1;0;"9.174,80";"9.174,80";S.E.S.A. SPA;Z11182D6F2;SALDO Fatt.n. 2000514  del 31/07/2017 Trattamento rifiuti mese di luglio 2017;29-08-2017;5780;0;74;1;Spese correnti;3;Acquisto di beni e servizi;2;Acquisto di servizi;15;Contratti di servizio pubblico;4;Contratti di servizio per la raccolta rifiuti;29-08-2017;
733;1;0;"937,00";"937,00";PROVINCIA DI PADOVA; ;Servizi CST anno 2017 - A.L. AC N. 134 DEL 16.08.2017;29-08-2017;555;0;264;1;Spese correnti;3;Acquisto di beni e servizi;2;Acquisto di servizi;19;Servizi informatici e di telecomunicazioni;1;Gestione e manutenzione applicazioni;29-08-2017;
734;1;0;"200,00";"200,00";PROVINCIA DI PADOVA; ;Servizio CLAVIS anno 2017 - A.L. 134 16.08.2017;29-08-2017;3760;0;263;1;Spese correnti;3;Acquisto di beni e servizi;2;Acquisto di servizi;99;Altri servizi;999;Altri servizi diversi n.a.c.;29-08-2017;
735;1;0;"130,00";"130,00";S.O.G.I.T.; ;Servizio di ambulanza con soccorritori in occasione della Fiera di San Lorenzo 2017 - A.L. A.C. N. 135 DEL 16.08.2017;29-08-2017;8888;0;257;1;Spese correnti;3;Acquisto di beni e servizi;2;Acquisto di servizi;99;Altri servizi;999;Altri servizi diversi n.a.c.;29-08-2017;
736;1;0;"750,00";"750,00";CASA DI RIPOSO "A. SIMIONATI"; ;SALDO Fatt.n. 92/E  del 31/07/2017 Retta di ricovero R.R. mese di luglio 2017;29-08-2017;6875;0;243;1;Spese correnti;3;Acquisto di beni e servizi;2;Acquisto di servizi;99;Altri servizi;999;Altri servizi diversi n.a.c.;29-08-2017;
737;1;0;"800,00";"800,00";STEFANI SPORT;Z211D483D5;SALDO Fatt.n. 13/2017  del 04/07/2017 Attivita' di psicomotricita' per minore S.H.;29-08-2017;6935;0;29;1;Spese correnti;4;Trasferimenti correnti;2;Trasferimenti correnti a Famiglie;5;Altri trasferimenti a famiglie;999;Altri trasferimenti a famiglie n.a.c.;29-08-2017;
742;1;0;"887,38";"887,38";TREVISAN VANESSA; ;Indennita di funzione spettante al Sindaco mese di agosto 2017;06-09-2017;10;0;9;1;Spese correnti;3;Acquisto di beni e servizi;2;Acquisto di servizi;1;Organi e incarichi istituzionali dell'amministrazione;1;Organi istituzionali dell'amministrazione - Indennità;06-09-2017;
743;1;0;"177,48";"177,48";CALAON SIMONE; ;Indennita di funzione spettante al vice-sindaco mese di agosto 2017;06-09-2017;10;0;10;1;Spese correnti;3;Acquisto di beni e servizi;2;Acquisto di servizi;1;Organi e incarichi istituzionali dell'amministrazione;1;Organi istituzionali dell'amministrazione - Indennità;06-09-2017;
744;1;0;"266,21";"266,21";SANTIMARIA ANDREA; ;Indennita di funzione assessore mese di agosto 2017;06-09-2017;10;0;11;1;Spese correnti;3;Acquisto di beni e servizi;2;Acquisto di servizi;1;Organi e incarichi istituzionali dell'amministrazione;1;Organi istituzionali dell'amministrazione - Indennità;06-09-2017;
745;1;0;"266,21";"266,21";ZAVATTIERO AGOSTINO; ;Indennita di funzione assessore mese di agosto 2017;06-09-2017;10;0;13;1;Spese correnti;3;Acquisto di beni e servizi;2;Acquisto di servizi;1;Organi e incarichi istituzionali dell'amministrazione;1;Organi istituzionali dell'amministrazione - Indennità;06-09-2017;
746;1;0;"133,11";"133,11";LAZZARETTO ROBERTA; ;Indennita di funzione assessore mese di agosto 2017;06-09-2017;10;0;12;1;Spese correnti;3;Acquisto di beni e servizi;2;Acquisto di servizi;1;Organi e incarichi istituzionali dell'amministrazione;1;Organi istituzionali dell'amministrazione - Indennità;06-09-2017;
749;1;0;"926,05";"926,05";CENTRO VENETO SERVIZI S.P.A.;Z311381BD7;ACCONTO Fatt.n. 2017286321  del 30/08/2017 Fornitura acqua potabile utenza immobile Piazzetta Martiri 1' periodo 2017 (dal 01.07.2016 al 31.05.2017);06-09-2017;1405;0;80;1;Spese correnti;3;Acquisto di beni e servizi;2;Acquisto di servizi;5;Utenze e canoni;5;Acqua;06-09-2017;
750;1;0;"581,60";"581,60";CENTRO VENETO SERVIZI S.P.A.;Z311381BD7;SALDO Fatt.n. 2017286321  del 30/08/2017 Fornitura acqua potabile utenza immobile Piazzetta Martiri 1' periodo 2017 (dal 01.07.2016 al 31.05.2017);06-09-2017;1405;0;59;1;Spese correnti;3;Acquisto di beni e servizi;2;Acquisto di servizi;5;Utenze e canoni;5;Acqua;06-09-2017;
751;1;0;"4.941,81";"4.941,81";BARBIN IMPIANTI Srl;ZD31B4433D;SALDO Fatt.n. 79S  del 31/08/2017 Servizio di gestione e manutenzione impianti illuminazione pubblica anno 2017  -  Atto Liq. Area Servizi Tecnici n. 114 del 07.09.2017;11-09-2017;7430;0;339;1;Spese correnti;3;Acquisto di beni e servizi;2;Acquisto di servizi;9;Manutenzione ordinaria e riparazioni;4;Manutenzione ordinaria e riparazioni di impianti e macchinari;11-09-2017;
752;1;0;"3.074,40";"3.074,40";BARBIN IMPIANTI Srl;Z2F1FA5F9E;SALDO Fatt.n. 78S  del 31/08/2017 Realizzazione di n. 6 punti trasmissione dati e relative canalizzazioni nel Polo Scolastico;11-09-2017;11950;0;269;2;Spese in conto capitale;5;Altre spese in conto capitale;99;Altre spese in conto capitale n.a.c.;99;Altre spese in conto capitale n.a.c.;999;Altre spese in conto capitale n.a.c.;11-09-2017;
753;1;0;"3.839,00";"3.839,00";CARRARO GIORGIO SNC;Z601B34D85;SALDO Fatt.n. 3  del 31/07/2017 Asfaltatura straordinaria strade comunali;11-09-2017;11820;0;335;2;Spese in conto capitale;2;Investimenti fissi lordi e acquisto di terreni;1;Beni materiali;9;Beni immobili;12;Infrastrutture stradali;11-09-2017;
754;1;0;"53,68";"53,68";Acquaviva srl Unipersonale;Z2E1DED0E0;SALDO Fatt.n. 1700514/FE  del 31/08/2017 Fornitura di n. 5 boccioni di acqua per distributore;11-09-2017;9375;0;108;1;Spese correnti;3;Acquisto di beni e servizi;2;Acquisto di servizi;99;Altri servizi;999;Altri servizi diversi n.a.c.;11-09-2017;
755;1;0;"146,16";"146,16";GRUPPO SPAGGIARI PARMA SPA;Z2A1F8ED9D;SALDO Fatt.n. 20174E24002  del 21/08/2017 Fornitura materiale didattico per A.S. 2017/2018;11-09-2017;2972;0;260;1;Spese correnti;3;Acquisto di beni e servizi;1;Acquisto di beni;2;Altri beni di consumo;999;Altri beni e materiali di consumo n.a.c.;11-09-2017;
756;1;0;"13.323,94";"13.323,94";DE VIZIA TRANSFER S.P.A.;6848933E4B;SALDO Fatt.n. V3-31270  del 31/08/2017 Servizio di raccolta e trasporto rifiuti mese di agosto 2018;11-09-2017;5780;0;18;1;Spese correnti;3;Acquisto di beni e servizi;2;Acquisto di servizi;15;Contratti di servizio pubblico;4;Contratti di servizio per la raccolta rifiuti;11-09-2017;
757;1;0;"1.400,00";"1.400,00";Gruppo Musicisti di Vo'; ;Acconto contributo economico anno 2017  -  Atto Liq. Area Servizi Amministrativi e Contabili n. 142 del 01.09.2017;11-09-2017;4000;0;225;1;Spese correnti;4;Trasferimenti correnti;3;Trasferimenti correnti a Imprese;99;Trasferimenti correnti a altre imprese;999;Trasferimenti correnti a altre imprese;11-09-2017;
758;1;0;"1.250,00";"1.250,00";SCUOLA CICLISMO VO' c/o LOVO GRAZIANO; ;Acconto contributo economico anno 2017  -  Atto Liq. Area Servizi Amministrativi e Contabili n. 142 del 01.09.2017;11-09-2017;6600;0;228;1;Spese correnti;4;Trasferimenti correnti;4;Trasferimenti correnti a Istituzioni Sociali Private;1;Trasferimenti correnti a Istituzioni Sociali Private;1;Trasferimenti correnti a Istituzioni Sociali Private;11-09-2017;
759;1;0;"150,30";"150,30";POSTE ITALIANE SPA;Z961438A4F;SALDO Fatt.n. 8717235535  del 23/08/2017 Fattura Elettronica relativa all'Identificativo Rendiconto 2093185095;11-09-2017;4800;0;165;1;Spese correnti;3;Acquisto di beni e servizi;2;Acquisto di servizi;16;Servizi amministrativi;2;Spese postali;11-09-2017;
760;1;0;"100,00";"285,00";OMESSO NOMINATIVO NEL RISPETTO DELLA NORMATIVA SULLA PROTEZIONE DATI PERSONALI; ;Contributo economico anno 2017  -  Atto Liq. Area Servizi Amministrativi e Contabili n. 141 del 30.08.2017;11-09-2017;6935;0;261;1;Spese correnti;4;Trasferimenti correnti;2;Trasferimenti correnti a Famiglie;5;Altri trasferimenti a famiglie;999;Altri trasferimenti a famiglie n.a.c.;11-09-2017;
760;2;0;"85,00";"285,00";OMESSO NOMINATIVO NEL RISPETTO DELLA NORMATIVA SULLA PROTEZIONE DATI PERSONALI; ;Contributo economico anno 2017  -  Atto Liq. Area Servizi Amministrativi e Contabili n. 141 del 30.08.2017;11-09-2017;6935;0;261;1;Spese correnti;4;Trasferimenti correnti;2;Trasferimenti correnti a Famiglie;5;Altri trasferimenti a famiglie;999;Altri trasferimenti a famiglie n.a.c.;11-09-2017;
760;3;0;"100,00";"285,00";OMESSO NOMINATIVO NEL RISPETTO DELLA NORMATIVA SULLA PROTEZIONE DATI PERSONALI; ;Contributo economico anno 2017  -  Atto Liq. Area Servizi Amministrativi e Contabili n. 141 del 30.08.2017;11-09-2017;6935;0;261;1;Spese correnti;4;Trasferimenti correnti;2;Trasferimenti correnti a Famiglie;5;Altri trasferimenti a famiglie;999;Altri trasferimenti a famiglie n.a.c.;11-09-2017;
761;1;0;"2.300,00";"2.300,00";U.S. COLLI EUGANEI A.S.D.; ;Saldo contributo economico anno 2017  -  Atto Liq. Area Servizi Amministrativi e Contabili n. 144 del 01.09.2017;11-09-2017;6600;0;223;1;Spese correnti;4;Trasferimenti correnti;4;Trasferimenti correnti a Istituzioni Sociali Private;1;Trasferimenti correnti a Istituzioni Sociali Private;1;Trasferimenti correnti a Istituzioni Sociali Private;11-09-2017;
762;1;0;"120,00";"120,00";STRADA DEL VINO COLLI EUGANEI; ;Quota associativa "Strada del vino Colli Euganei" anno 2017  -  Atto Liq. Area Servizi Amministrativi e Contabili n. 146 del 07.09.2017;13-09-2017;580;0;281;1;Spese correnti;4;Trasferimenti correnti;1;Trasferimenti correnti a Amministrazioni Pubbliche;2;Trasferimenti correnti a Amministrazioni Locali;999;Trasferimenti correnti a altre Amministrazioni Locali n.a.c.;13-09-2017;
763;1;0;"1.069,70";"1.069,70";ASS.NAZIONALE CITTA' DEL VINO; ;Quota associativa "Città del Vino" anno 2017  -  Atto Liq. Area Servizi Amministrativi e Contabili n. 144 del 07.09.2017;13-09-2017;580;0;280;1;Spese correnti;4;Trasferimenti correnti;1;Trasferimenti correnti a Amministrazioni Pubbliche;2;Trasferimenti correnti a Amministrazioni Locali;999;Trasferimenti correnti a altre Amministrazioni Locali n.a.c.;13-09-2017;
764;1;0;"350,00";"350,00";ASSOCIAZIONE NOI; ;Contributo economico anno 2017  -  Atto Liq. Area Servizi Amministrativi e Contabili n. 143 del 01.09.2017;13-09-2017;7200;0;229;1;Spese correnti;4;Trasferimenti correnti;4;Trasferimenti correnti a Istituzioni Sociali Private;1;Trasferimenti correnti a Istituzioni Sociali Private;1;Trasferimenti correnti a Istituzioni Sociali Private;13-09-2017;
765;1;0;"400,00";"400,00";Associazione "Oltre il Mare" Presidente Ilacqua Anna; ;Contributo economico anno 2017  -  Atto Liq. Area Servizi Amministrativi e Contabili n. 143 del 01.09.2017;13-09-2017;7200;0;224;1;Spese correnti;4;Trasferimenti correnti;4;Trasferimenti correnti a Istituzioni Sociali Private;1;Trasferimenti correnti a Istituzioni Sociali Private;1;Trasferimenti correnti a Istituzioni Sociali Private;13-09-2017;
766;1;0;"200,00";"200,00";Associazione "Idee Nuove per Vo' Danilo Malesani"; ;Contributo economico anno 2017  -  Atto Liq. Area Servizi Amministrativi e Contabili n. 143 del 01.09.2017;13-09-2017;7200;0;227;1;Spese correnti;4;Trasferimenti correnti;4;Trasferimenti correnti a Istituzioni Sociali Private;1;Trasferimenti correnti a Istituzioni Sociali Private;1;Trasferimenti correnti a Istituzioni Sociali Private;13-09-2017;
767;1;0;"200,00";"200,00";ASS.FAM.CADUTI E DISPERSI IN GUERRA -PRES.ZATTARIN ANNA; ;Contributo economico anno 2017  -  Atto Liq. Area Servizi Amministrativi e Contabili n. 143 del 01.09.2017;13-09-2017;7200;0;230;1;Spese correnti;4;Trasferimenti correnti;4;Trasferimenti correnti a Istituzioni Sociali Private;1;Trasferimenti correnti a Istituzioni Sociali Private;1;Trasferimenti correnti a Istituzioni Sociali Private;13-09-2017;
768;1;0;"300,00";"300,00";ASS. COMBATTENTI E REDUCI; ;Contributo economico anno 2017  -  Atto Liq. Area Servizi Amministrativi e Contabili n. 143 del 01.09.2017;13-09-2017;7200;0;231;1;Spese correnti;4;Trasferimenti correnti;4;Trasferimenti correnti a Istituzioni Sociali Private;1;Trasferimenti correnti a Istituzioni Sociali Private;1;Trasferimenti correnti a Istituzioni Sociali Private;13-09-2017;
769;1;0;"1.701,00";"1.701,00";CODESS SOCIALE;684143311D;ACCONTO Fatt.n. 4200/PA  del 22/08/2017 SERVIZIO DI ASSISTENZA SOCIALE E DOMICILIARE mese di luglio 2017;13-09-2017;6980;0;435;1;Spese correnti;3;Acquisto di beni e servizi;2;Acquisto di servizi;15;Contratti di servizio pubblico;9;Contratti di servizio di assistenza sociale domiciliare;13-09-2017;
770;1;0;"2.932,65";"2.932,65";CODESS SOCIALE;684143311D;SALDO Fatt.n. 4200/PA  del 22/08/2017 SERVIZIO DI ASSISTENZA SOCIALE E DOMICILIARE mese di luglio 2017;13-09-2017;6990;0;436;1;Spese correnti;3;Acquisto di beni e servizi;2;Acquisto di servizi;15;Contratti di servizio pubblico;9;Contratti di servizio di assistenza sociale domiciliare;13-09-2017;
771;1;0;"1.441,13";"1.441,13";CODESS SOCIALE;684143311D;ACCONTO Fatt.n. 4196/PA  del 22/08/2017 Servizio di Assistenza Sociale mese di giugno 2017;13-09-2017;6980;0;435;1;Spese correnti;3;Acquisto di beni e servizi;2;Acquisto di servizi;15;Contratti di servizio pubblico;9;Contratti di servizio di assistenza sociale domiciliare;13-09-2017;
772;1;0;"2.972,55";"2.972,55";CODESS SOCIALE;684143311D;SALDO Fatt.n. 4196/PA  del 22/08/2017 Servizio di Assistenza Domiciliare mese di giugno 2017;13-09-2017;6990;0;436;1;Spese correnti;3;Acquisto di beni e servizi;2;Acquisto di servizi;15;Contratti di servizio pubblico;9;Contratti di servizio di assistenza sociale domiciliare;13-09-2017;
793;1;0;"40,55";"40,55";E.ON Energia S.p.a.;Z7113FE6B2;SALDO Fatt.n. 40008003  del 01/09/2017 Fornitura gas naturale utenza Polo Scolastico mese di luglio 2017;22-09-2017;28001;0;63;1;Spese correnti;3;Acquisto di beni e servizi;2;Acquisto di servizi;5;Utenze e canoni;6;Gas;22-09-2017;
794;1;0;"113,55";"113,55";E.ON Energia S.p.a.;Z7113FE6B2;SALDO Fatt.n. 40008004  del 01/09/2017 Fornitura gas naturale utenza immobile Piazzetta Martiri mese di luglio 2017;22-09-2017;1405;0;61;1;Spese correnti;3;Acquisto di beni e servizi;2;Acquisto di servizi;5;Utenze e canoni;6;Gas;22-09-2017;
795;1;0;"41,55";"41,55";E.ON Energia S.p.a.;Z7113FE6B2;SALDO Fatt.n. 40008002  del 01/09/2017 Fornitura gas naturale utenza Sede Municipale (matricola contatore 1545006563) mese di luglio 2017;22-09-2017;4751;0;62;1;Spese correnti;3;Acquisto di beni e servizi;2;Acquisto di servizi;5;Utenze e canoni;6;Gas;22-09-2017;
796;1;0;"306,50";"306,50";BOGONI ALFONSO & C. S.A.S.;Z9E1D16A02;SALDO Fatt.n. V0000007FE  del 31/08/2017 Fornitura gasolio mese di  settembre 2017;26-09-2017;570;0;86;1;Spese correnti;3;Acquisto di beni e servizi;1;Acquisto di beni;2;Altri beni di consumo;2;"Carburanti, combustibili e lubrificanti";26-09-2017;
797;1;0;"1.001,37";"1.001,37";POSTE ITALIANE SPA;Z961438A4F;SALDO Fatt.n. 8717286488  del 22/09/2017 Fattura Elettronica relativa all'Identificativo Rendiconto 2093657885 - B= 032017871728648830;26-09-2017;4800;0;165;1;Spese correnti;3;Acquisto di beni e servizi;2;Acquisto di servizi;16;Servizi amministrativi;2;Spese postali;26-09-2017;
798;1;0;"250,00";"250,00";SERVIZI FUNEBRI MANDRUZZATO SNC; ;SALDO Fatt.n. 000002-2017-PA  del 31/08/2017 Spese per trasporto salma B.M. su richiesta dell'Autorita Giudiziaria;26-09-2017;5200;0;250;1;Spese correnti;3;Acquisto di beni e servizi;2;Acquisto di servizi;99;Altri servizi;999;Altri servizi diversi n.a.c.;26-09-2017;
799;1;0;"750,00";"750,00";CASA DI RIPOSO "A. SIMIONATI"; ;SALDO Fatt.n. 105/E  del 31/08/2017 Quota retta ricovero ospite R.R. mese di agosto 2017;26-09-2017;6875;0;243;1;Spese correnti;3;Acquisto di beni e servizi;2;Acquisto di servizi;99;Altri servizi;999;Altri servizi diversi n.a.c.;26-09-2017;
800;1;0;"610,00";"610,00";AMTUR SNC di Turetta Maurizio e Davide;Z2A1F8ED9D;SALDO Fatt.n. 7/PA  del 13/09/2017 Servizio di noleggio bagni chimici in occasione Fiera S. Lorenzo 2017;26-09-2017;8888;0;258;1;Spese correnti;3;Acquisto di beni e servizi;2;Acquisto di servizi;99;Altri servizi;999;Altri servizi diversi n.a.c.;26-09-2017;
801;1;0;"788,43";"788,43";MARTINI LUCIANO SRL;Z70188CBBO;SALDO Fatt.n. 10/EL  del 21/08/2017 Saldo lavori manutenzione strade dal 24.03.2017 al 29.05.2017;26-09-2017;1302;0;102;1;Spese correnti;3;Acquisto di beni e servizi;2;Acquisto di servizi;9;Manutenzione ordinaria e riparazioni;8;Manutenzione ordinaria e riparazioni di beni immobili;26-09-2017;
802;1;0;"5.090,20";"5.090,20";MARTINI LUCIANO SRL;Z9C1FA5BA9;SALDO Fatt.n. 9/EL  del 21/08/2017 Lavori di ripristino urgente in Via Marconi;26-09-2017;11950;0;267;2;Spese in conto capitale;5;Altre spese in conto capitale;99;Altre spese in conto capitale n.a.c.;99;Altre spese in conto capitale n.a.c.;999;Altre spese in conto capitale n.a.c.;26-09-2017;
803;1;0;"11.999,99";"11.999,99";GUBELA SPA;Z331ED8D1B;SALDO Fatt.n. 03  000123  del 12/09/2017 Esecuzione segnaletica orizzontale;26-09-2017;7395;0;211;1;Spese correnti;3;Acquisto di beni e servizi;2;Acquisto di servizi;99;Altri servizi;999;Altri servizi diversi n.a.c.;26-09-2017;
804;1;0;"6.344,00";"6.344,00";BUGGIN ANTONIO;Z751F60EDE;SALDO Fatt.n. FATTPA 18_17  del 11/08/2017 Acconto competenze per adeguamento strumenti urbanistici;26-09-2017;12000;0;233;2;Spese in conto capitale;5;Altre spese in conto capitale;99;Altre spese in conto capitale n.a.c.;99;Altre spese in conto capitale n.a.c.;999;Altre spese in conto capitale n.a.c.;26-09-2017;
805;1;0;"39,33";"39,33";Illumia S.p.A.;Z0E14167CF;ACCONTO Fatt.n. 8237-PE  del 25/08/2017 Fornitura energia elettrica utenza ex scuola Zovon periodo giugno / luglio 2017  -  provv. 90;27-09-2017;1330;0;181;1;Spese correnti;3;Acquisto di beni e servizi;2;Acquisto di servizi;5;Utenze e canoni;4;Energia elettrica;27-09-2017;
806;1;0;"58,09";"118,46";Illumia S.p.A.; ;SALDO Fatt.n. 8237-PE  del 25/08/2017 Fornitura energia elettrica utenza ex scuola Zovon periodo giugno / luglio 2017  -  provv. 90;27-09-2017;1330;0;291;1;Spese correnti;3;Acquisto di beni e servizi;2;Acquisto di servizi;5;Utenze e canoni;4;Energia elettrica;27-09-2017;
806;2;0;"60,37";"118,46";Illumia S.p.A.; ;SALDO Fatt.n. 7732-PE  del 25/08/2017 Fornitura energia elettrica utenza ex scuola  Vo' Vecchio periodo giugno / luglio 2017  -  provv. 93;27-09-2017;1330;0;291;1;Spese correnti;3;Acquisto di beni e servizi;2;Acquisto di servizi;5;Utenze e canoni;4;Energia elettrica;27-09-2017;
807;1;0;"168,79";"362,54";Illumia S.p.A.;Z0E14167CF;SALDO Fatt.n. 8177-PE  del 25/08/2017 Fornitura energia elettrica utenza Impianto Sportivo Via Marconi mese di luglio 2017  -  provv. 87;27-09-2017;64981;0;183;1;Spese correnti;3;Acquisto di beni e servizi;2;Acquisto di servizi;5;Utenze e canoni;4;Energia elettrica;27-09-2017;
807;2;0;"193,75";"362,54";Illumia S.p.A.;Z0E14167CF;SALDO Fatt.n. 8178-PE  del 25/08/2017 Fornitura energia elettrica utenza impianto sportivo Zovon mese di luglio 2017  -  provv. 88;27-09-2017;64981;0;183;1;Spese correnti;3;Acquisto di beni e servizi;2;Acquisto di servizi;5;Utenze e canoni;4;Energia elettrica;27-09-2017;
808;1;0;"364,78";"364,78";Illumia S.p.A.;Z0E14167CF;SALDO Fatt.n. 7901-PE  del 25/08/2017 Fornitura energia elettrica utenza Sede Municipale mese di luglio 2017  -  provv.  99;27-09-2017;4751;0;177;1;Spese correnti;3;Acquisto di beni e servizi;2;Acquisto di servizi;5;Utenze e canoni;4;Energia elettrica;27-09-2017;
809;1;0;"359,07";"359,07";Illumia S.p.A.;Z0E14167CF;SALDO Fatt.n. 7899-PE  del 25/08/2017 Fornitura energia elettrica utenza immobile Piazzetta Martiri mese di luglio 2017  -  provv. 86;27-09-2017;1405;0;186;1;Spese correnti;3;Acquisto di beni e servizi;2;Acquisto di servizi;5;Utenze e canoni;4;Energia elettrica;27-09-2017;
810;1;0;"185,67";"185,67";Illumia S.p.A.;Z0E14167CF;SALDO Fatt.n. 8241-PE  del 25/08/2017 Fornitura energia elettrica utenza magazzino Via Campo Fiera periodo giugno / luglio 2017  -  provv. 101;27-09-2017;1450;0;184;1;Spese correnti;3;Acquisto di beni e servizi;2;Acquisto di servizi;5;Utenze e canoni;4;Energia elettrica;27-09-2017;
811;1;0;"263,52";"263,52";Illumia S.p.A.;Z0E14167CF;ACCONTO Fatt.n. 7733-PE  del 25/08/2017 Fornitura energia elettrica utenza Polo Scolastico mese di luglio 2017  -  provv.  95;27-09-2017;28001;0;178;1;Spese correnti;3;Acquisto di beni e servizi;2;Acquisto di servizi;5;Utenze e canoni;4;Energia elettrica;27-09-2017;
812;1;0;"263,52";"263,52";Illumia S.p.A.;Z0E14167CF;ACCONTO Fatt.n. 7733-PE  del 25/08/2017 Fornitura energia elettrica utenza Polo Scolastico mese di luglio 2017  -  provv. 95;27-09-2017;29701;0;179;1;Spese correnti;3;Acquisto di beni e servizi;2;Acquisto di servizi;5;Utenze e canoni;4;Energia elettrica;27-09-2017;
813;1;0;"264,51";"264,51";Illumia S.p.A.;Z0E14167CF;SALDO Fatt.n. 7733-PE  del 25/08/2017 Fornitura energia elettrica utenza Polo Scolastico mese di luglio 2017  -  provv. 95;27-09-2017;31801;0;180;1;Spese correnti;3;Acquisto di beni e servizi;2;Acquisto di servizi;5;Utenze e canoni;4;Energia elettrica;27-09-2017;
814;1;0;"96,01";"6.045,87";Illumia S.p.A.;Z0E14167CF;SALDO Fatt.n. 8239-PE  del 25/08/2017 Fornitura energia elettrica utenza ill. pubblica Piazzetta Martiri periodo giugno / luglio 2017  -  provv. 96;27-09-2017;7420;0;187;1;Spese correnti;3;Acquisto di beni e servizi;2;Acquisto di servizi;5;Utenze e canoni;4;Energia elettrica;27-09-2017;
814;2;0;"116,60";"6.045,87";Illumia S.p.A.;Z0E14167CF;SALDO Fatt.n. 7902-PE  del 25/08/2017 Fornitura energia elettrica utenza torretta Piazzetta Spolverato mese di luglio 2017  -  provv. 100;27-09-2017;7420;0;187;1;Spese correnti;3;Acquisto di beni e servizi;2;Acquisto di servizi;5;Utenze e canoni;4;Energia elettrica;27-09-2017;
814;3;0;"138,96";"6.045,87";Illumia S.p.A.;Z0E14167CF;SALDO Fatt.n. 8238-PE  del 25/08/2017 Fornitura energia elettrica utenza lottizzazione Canaletto periodo giugno / luglio 2017  -  provv. 94;27-09-2017;7420;0;187;1;Spese correnti;3;Acquisto di beni e servizi;2;Acquisto di servizi;5;Utenze e canoni;4;Energia elettrica;27-09-2017;
814;4;0;"173,39";"6.045,87";Illumia S.p.A.;Z0E14167CF;SALDO Fatt.n. 8236-PE  del 25/08/2017 Fornitura energia elettrica utenza ill. pubblica Piazzetta Martiri mese di luglio 2017  -  provv. 89;27-09-2017;7420;0;187;1;Spese correnti;3;Acquisto di beni e servizi;2;Acquisto di servizi;5;Utenze e canoni;4;Energia elettrica;27-09-2017;
814;5;0;"5.520,91";"6.045,87";Illumia S.p.A.;Z0E14167CF;SALDO Fatt.n. 8235-PE  del 25/08/2017 Fornitura energia elettrica utenze illuminazione pubblica periodo giugno / luglio 2017  -  provv. 91;27-09-2017;7420;0;187;1;Spese correnti;3;Acquisto di beni e servizi;2;Acquisto di servizi;5;Utenze e canoni;4;Energia elettrica;27-09-2017;
815;1;0;"72,93";"453,26";Illumia S.p.A.;Z0E14167CF;SALDO Fatt.n. 8240-PE  del 25/08/2017 Fornitura energia elettrica utenza Villa Venier (POD IT001E35511782) periodo giugno / luglio 2017  -  provv. 102;27-09-2017;1312;0;185;1;Spese correnti;3;Acquisto di beni e servizi;2;Acquisto di servizi;5;Utenze e canoni;4;Energia elettrica;27-09-2017;
815;2;0;"72,93";"453,26";Illumia S.p.A.;Z0E14167CF;SALDO Fatt.n. 7734-PE  del 25/08/2017 Fornitura energia elettrica utenza Villa Venier (POD IT001E35511792) periodo giugno / luglio 2017  -  provv. 97;27-09-2017;1312;0;185;1;Spese correnti;3;Acquisto di beni e servizi;2;Acquisto di servizi;5;Utenze e canoni;4;Energia elettrica;27-09-2017;
815;3;0;"96,01";"453,26";Illumia S.p.A.;Z0E14167CF;SALDO Fatt.n. 7735-PE  del 25/08/2017 Fornitura energia elettrica utenza Villa Venier  (POD IT001E04020273) periodo giugno / luglio 2017  -  provv. 92;27-09-2017;1312;0;185;1;Spese correnti;3;Acquisto di beni e servizi;2;Acquisto di servizi;5;Utenze e canoni;4;Energia elettrica;27-09-2017;
815;4;0;"96,38";"453,26";Illumia S.p.A.;Z0E14167CF;SALDO Fatt.n. 7898-PE  del 25/08/2017 Fornitura energia elettrica utenza Villa Venier (POD IT001E04020277) periodo giugno / luglio 2017  -  provv. 85;27-09-2017;1312;0;185;1;Spese correnti;3;Acquisto di beni e servizi;2;Acquisto di servizi;5;Utenze e canoni;4;Energia elettrica;27-09-2017;
815;5;0;"115,01";"453,26";Illumia S.p.A.;Z0E14167CF;SALDO Fatt.n. 7900-PE  del 25/08/2017 Fornitura energia elettrica utenza Villa Venier (POD IT001E34674161) mese di luglio 2017  -  provv. 98;27-09-2017;1312;0;185;1;Spese correnti;3;Acquisto di beni e servizi;2;Acquisto di servizi;5;Utenze e canoni;4;Energia elettrica;27-09-2017;
818;1;0;"887,38";"887,38";TREVISAN VANESSA; ;Indennita di funzione spettante al Sindaco settembre 2017;04-10-2017;10;0;9;1;Spese correnti;3;Acquisto di beni e servizi;2;Acquisto di servizi;1;Organi e incarichi istituzionali dell'amministrazione;1;Organi istituzionali dell'amministrazione - Indennità;04-10-2017;
819;1;0;"177,48";"177,48";CALAON SIMONE; ;Indennita di funzione spettante al vice-sindaco settembre 2017;04-10-2017;10;0;10;1;Spese correnti;3;Acquisto di beni e servizi;2;Acquisto di servizi;1;Organi e incarichi istituzionali dell'amministrazione;1;Organi istituzionali dell'amministrazione - Indennità;04-10-2017;
820;1;0;"266,21";"266,21";SANTIMARIA ANDREA; ;Indennita di funzione assessore settembre 2017;04-10-2017;10;0;11;1;Spese correnti;3;Acquisto di beni e servizi;2;Acquisto di servizi;1;Organi e incarichi istituzionali dell'amministrazione;1;Organi istituzionali dell'amministrazione - Indennità;04-10-2017;
821;1;0;"266,21";"266,21";ZAVATTIERO AGOSTINO; ;Indennita di funzione assessore settembre 2017;04-10-2017;10;0;13;1;Spese correnti;3;Acquisto di beni e servizi;2;Acquisto di servizi;1;Organi e incarichi istituzionali dell'amministrazione;1;Organi istituzionali dell'amministrazione - Indennità;04-10-2017;
822;1;0;"133,11";"133,11";LAZZARETTO ROBERTA; ;Indennita di funzione assessore settembre 2017;04-10-2017;10;0;12;1;Spese correnti;3;Acquisto di beni e servizi;2;Acquisto di servizi;1;Organi e incarichi istituzionali dell'amministrazione;1;Organi istituzionali dell'amministrazione - Indennità;04-10-2017;
825;1;0;"173,60";"173,60";LAZZARETTO ROBERTA; ;Rimborso spese viaggio assessore Lazzaretto mesi di agosto e settembre  2017.;04-10-2017;230;0;159;1;Spese correnti;3;Acquisto di beni e servizi;2;Acquisto di servizi;1;Organi e incarichi istituzionali dell'amministrazione;2;Organi istituzionali dell'amministrazione - Rimborsi;04-10-2017;
826;1;0;"1,30";"1,30";ECONOMO COMUNALE; ;Rifusione buono economato n. 41 - A.L. AC N. 157 DEL 02.10.2017;04-10-2017;230;0;92;1;Spese correnti;3;Acquisto di beni e servizi;2;Acquisto di servizi;1;Organi e incarichi istituzionali dell'amministrazione;2;Organi istituzionali dell'amministrazione - Rimborsi;04-10-2017;
827;1;0;"73,00";"73,00";ECONOMO COMUNALE; ;Rifusione buoni economato n. 42 46p - A.L. AC N. 157 DEL 02.10.2017;04-10-2017;571;0;95;1;Spese correnti;3;Acquisto di beni e servizi;2;Acquisto di servizi;99;Altri servizi;999;Altri servizi diversi n.a.c.;04-10-2017;
828;1;0;"58,53";"58,53";ECONOMO COMUNALE; ;Rifusione buoni economato n. 46p 48 e 56 - A.L. AC N. 157 DEL 02.10.2017;04-10-2017;571;0;245;1;Spese correnti;3;Acquisto di beni e servizi;2;Acquisto di servizi;99;Altri servizi;999;Altri servizi diversi n.a.c.;04-10-2017;
829;1;0;"459,01";"459,01";ECONOMO COMUNALE; ;Rifusione buoni economato n. 36 38 40 44 45 47 50 52 54 - A.L. AC N. 157 DEL 02.10.2017;04-10-2017;4754;0;96;1;Spese correnti;3;Acquisto di beni e servizi;1;Acquisto di beni;2;Altri beni di consumo;999;Altri beni e materiali di consumo n.a.c.;04-10-2017;
830;1;0;"143,30";"143,30";ECONOMO COMUNALE; ;Rifusione buoni economato n. 37 39 49 51 57 - a.l. ac n. 157 del 02.10.2017;04-10-2017;1305;0;97;1;Spese correnti;3;Acquisto di beni e servizi;1;Acquisto di beni;2;Altri beni di consumo;999;Altri beni e materiali di consumo n.a.c.;04-10-2017;
831;1;0;"10,00";"10,00";ECONOMO COMUNALE; ;Rifusione buoni economato n. 53 - a.l. AC N. 157 DEL 02.10.2017;04-10-2017;2667;0;4;1;Spese correnti;3;Acquisto di beni e servizi;1;Acquisto di beni;2;Altri beni di consumo;999;Altri beni e materiali di consumo n.a.c.;04-10-2017;
832;1;0;"83,00";"83,00";ECONOMO COMUNALE; ;Rifusione buoni economato n. 43 45 - a.l. AC N. 157 DEL 02.10.2017;04-10-2017;31802;0;101;1;Spese correnti;3;Acquisto di beni e servizi;1;Acquisto di beni;2;Altri beni di consumo;999;Altri beni e materiali di consumo n.a.c.;04-10-2017;
833;1;0;"1.045,00";"1.045,00";ZEFIRO SRL;Z3D1A45638;ACCONTO Fatt.n. 32/PA  del 31/08/2017 Servizio di pulizia edifici comunali mese di agosto 2017;04-10-2017;475;0;393;1;Spese correnti;3;Acquisto di beni e servizi;2;Acquisto di servizi;99;Altri servizi;999;Altri servizi diversi n.a.c.;04-10-2017;
834;1;0;"174,85";"174,85";ZEFIRO SRL;Z3D1A45638;SALDO Fatt.n. 32/PA  del 31/08/2017 Servizio di pulizia edifici comunali mese di agosto 2017;04-10-2017;1400;0;396;1;Spese correnti;3;Acquisto di beni e servizi;2;Acquisto di servizi;9;Manutenzione ordinaria e riparazioni;8;Manutenzione ordinaria e riparazioni di beni immobili;04-10-2017;
835;1;0;"110,51";"110,51";MARTINI LUCIANO SRL;Z70188CBBO;ACCONTO Fatt.n. 11/EL  del 18/09/2017 Manutenzione ordinaria patrimonio comunale;04-10-2017;1302;0;102;1;Spese correnti;3;Acquisto di beni e servizi;2;Acquisto di servizi;9;Manutenzione ordinaria e riparazioni;8;Manutenzione ordinaria e riparazioni di beni immobili;04-10-2017;
836;1;0;"4.141,80";"4.141,80";MARTINI LUCIANO SRL;Z70188CBBO;SALDO Fatt.n. 11/EL  del 18/09/2017 Manutenzione ordinaria patrimonio comunale;04-10-2017;7335;0;268;1;Spese correnti;3;Acquisto di beni e servizi;2;Acquisto di servizi;9;Manutenzione ordinaria e riparazioni;8;Manutenzione ordinaria e riparazioni di beni immobili;04-10-2017;
837;1;0;"7.903,35";"7.903,35";S.E.S.A. SPA;Z11182D6F2;SALDO Fatt.n. 2000574  del 31/08/2017 Servizio smaltimento rifiuti mese di agosto 2017;04-10-2017;5780;0;74;1;Spese correnti;3;Acquisto di beni e servizi;2;Acquisto di servizi;15;Contratti di servizio pubblico;4;Contratti di servizio per la raccolta rifiuti;04-10-2017;
838;1;0;"7.524,96";"7.524,96";HALLEY VENETO SRL;Z211F3CB52;"SALDO Fatt.n. 1/170544  del 31/08/2017 Canone di manutenzione software applicativo, servizi e-government, assistenza immedia e servizio vaol anno 2017";04-10-2017;555;0;239;1;Spese correnti;3;Acquisto di beni e servizi;2;Acquisto di servizi;19;Servizi informatici e di telecomunicazioni;1;Gestione e manutenzione applicazioni;04-10-2017;
839;1;0;"1.110,38";"1.110,38";CODESS SOCIALE;684143311D;ACCONTO Fatt.n. 4731/PA  del 25/09/2017 SERVIZIO DI ASSISTENZA SOCIALE E DOMICILIARE mese di agosto 2017;04-10-2017;6980;0;435;1;Spese correnti;3;Acquisto di beni e servizi;2;Acquisto di servizi;15;Contratti di servizio pubblico;9;Contratti di servizio di assistenza sociale domiciliare;04-10-2017;
840;1;0;"2.738,13";"2.738,13";CODESS SOCIALE;684143311D;SALDO Fatt.n. 4731/PA  del 25/09/2017 SERVIZIO DI ASSISTENZA SOCIALE E DOMICILIARE mese di agosto 2017;04-10-2017;6990;0;436;1;Spese correnti;3;Acquisto di beni e servizi;2;Acquisto di servizi;15;Contratti di servizio pubblico;9;Contratti di servizio di assistenza sociale domiciliare;04-10-2017;
841;1;0;"13.323,94";"13.323,94";DE VIZIA TRANSFER S.P.A.;6848933E4B;SALDO Fatt.n. V3-31421  del 30/09/2017 Servizio raccolta e trasporto rifiuti mese di settembre 2017;04-10-2017;5780;0;18;1;Spese correnti;3;Acquisto di beni e servizi;2;Acquisto di servizi;15;Contratti di servizio pubblico;4;Contratti di servizio per la raccolta rifiuti;04-10-2017;
842;1;0;"1.978,84";"1.978,84";GRUPPO SPAGGIARI PARMA SPA;Z411F8C4C0;SALDO Fatt.n. 20174E27400  del 19/09/2017 Fornitura n. 25 banchi e sedie per scuola elementare;04-10-2017;1300;0;254;1;Spese correnti;3;Acquisto di beni e servizi;1;Acquisto di beni;2;Altri beni di consumo;999;Altri beni e materiali di consumo n.a.c.;04-10-2017;
843;1;0;"279,40";"279,40";MAGAZZINI AMBROSI S.A.S. DI AMBROSI FABIO E TIZIANA;ZC91E16A3B;SALDO Fatt.n. 13  del 30/09/2017 Fornitura materiale per piccola manutenzione;04-10-2017;1300;0;271;1;Spese correnti;3;Acquisto di beni e servizi;1;Acquisto di beni;2;Altri beni di consumo;999;Altri beni e materiali di consumo n.a.c.;04-10-2017;
844;1;0;"500,00";"500,00";STRADA DEL VINO COLLI EUGANEI; ;Contributo straordinario per la manifestazione Calici di stelle 2017 - A.L. AC N. 163 DEL 04.10.2017;05-10-2017;580;0;300;1;Spese correnti;4;Trasferimenti correnti;1;Trasferimenti correnti a Amministrazioni Pubbliche;2;Trasferimenti correnti a Amministrazioni Locali;999;Trasferimenti correnti a altre Amministrazioni Locali n.a.c.;05-10-2017;
845;1;0;"1.950,00";"1.950,00";CONSORZIO BIBLIOTECHE PADOVANE ASSOCIATE; ;Quota consortile anno 2017 - A.L. AC n. 158 del 158 del 03.10.2017;05-10-2017;3760;0;41;1;Spese correnti;3;Acquisto di beni e servizi;2;Acquisto di servizi;99;Altri servizi;999;Altri servizi diversi n.a.c.;05-10-2017;
846;1;0;"130,00";"130,00";S.O.G.I.T.; ;Servizio di ambulanza con soccorritori in occasione della Festa dell Uva 2017 - A.L. AC N. 162 DEL 04.10.2017;05-10-2017;8888;0;284;1;Spese correnti;3;Acquisto di beni e servizi;2;Acquisto di servizi;99;Altri servizi;999;Altri servizi diversi n.a.c.;05-10-2017;
847;1;0;"1.216,25";"1.216,25";L.EU.DI.CA. - Associazione Lega Europea per la Difesa; ;"Servizio di custodia, ricovero, mantenimento ed affidamento cani e gatti randagi e/o vaganti catturati nel territorio comunale per il periodo dal 01.01.2016 al 30.06.2017 - A.L. AC N. 156 DEL 02.10.2017";05-10-2017;5037;0;168;1;Spese correnti;3;Acquisto di beni e servizi;2;Acquisto di servizi;15;Contratti di servizio pubblico;11;Contratti di servizio per la lotta al randagismo;05-10-2017;
848;1;0;"95,36";"95,36";Vodafone Italia S.p.A.;ZD11381BD3;ACCONTO Fatt.n. AH13966924  del 09/08/2017 Spese telefonia mobile e telefonia fissa utenze immobili comunali perido dal 10 giugno 2017 al 04 agosto 2017;11-10-2017;4751;0;73;1;Spese correnti;3;Acquisto di beni e servizi;2;Acquisto di servizi;5;Utenze e canoni;2;Telefonia mobile;11-10-2017;
849;1;0;"97,36";"97,36";Vodafone Italia S.p.A.;Z941E11750;ACCONTO Fatt.n. AH13966924  del 09/08/2017 Spese telefonia mobile e telefonia fissa utenze immobili comunali perido dal 10 giugno 2017 al 04 agosto 2017;11-10-2017;1312;0;139;1;Spese correnti;3;Acquisto di beni e servizi;2;Acquisto di servizi;5;Utenze e canoni;1;Telefonia fissa;11-10-2017;
850;1;0;"88,86";"88,86";Vodafone Italia S.p.A.;Z941E11750;ACCONTO Fatt.n. AH13966924  del 09/08/2017 Spese telefonia mobile e telefonia fissa utenze immobili comunali perido dal 10 giugno 2017 al 04 agosto 2017;11-10-2017;3761;0;144;1;Spese correnti;3;Acquisto di beni e servizi;2;Acquisto di servizi;5;Utenze e canoni;1;Telefonia fissa;11-10-2017;
851;1;0;"416,47";"416,47";Vodafone Italia S.p.A.;Z941E11750;ACCONTO Fatt.n. AH13966924  del 09/08/2017 Spese telefonia mobile e telefonia fissa utenze immobili comunali perido dal 10 giugno 2017 al 04 agosto 2017;11-10-2017;4751;0;143;1;Spese correnti;3;Acquisto di beni e servizi;2;Acquisto di servizi;5;Utenze e canoni;1;Telefonia fissa;11-10-2017;
852;1;0;"208,24";"208,24";Vodafone Italia S.p.A.;Z941E11750;SALDO Fatt.n. AH13966924  del 09/08/2017 Spese telefonia mobile e telefonia fissa utenze immobili comunali perido dal 10 giugno 2017 al 04 agosto 2017;11-10-2017;29701;0;141;1;Spese correnti;3;Acquisto di beni e servizi;2;Acquisto di servizi;5;Utenze e canoni;1;Telefonia fissa;11-10-2017;
853;1;0;"1.045,00";"1.045,00";ZEFIRO SRL;Z3D1A45638;ACCONTO Fatt.n. 34/PA  del 30/09/2017 Servizio di pulizia edifici comunali MESE di SETTEMBRE 2017;12-10-2017;475;0;393;1;Spese correnti;3;Acquisto di beni e servizi;2;Acquisto di servizi;99;Altri servizi;999;Altri servizi diversi n.a.c.;12-10-2017;
854;1;0;"294,75";"294,75";ZEFIRO SRL;Z3D1A45638;ACCONTO Fatt.n. 34/PA  del 30/09/2017 Servizio di pulizia edifici comunali MESE di SETTEMBRE 2017;12-10-2017;37601;0;395;1;Spese correnti;3;Acquisto di beni e servizi;2;Acquisto di servizi;99;Altri servizi;999;Altri servizi diversi n.a.c.;12-10-2017;
855;1;0;"174,86";"174,86";ZEFIRO SRL;Z3D1A45638;SALDO Fatt.n. 34/PA  del 30/09/2017 Servizio di pulizia edifici comunali MESE di SETTEMBRE 2017;12-10-2017;1400;0;396;1;Spese correnti;3;Acquisto di beni e servizi;2;Acquisto di servizi;9;Manutenzione ordinaria e riparazioni;8;Manutenzione ordinaria e riparazioni di beni immobili;12-10-2017;
856;1;0;"82,16";"82,16";TESORERIA PROVINCIALE DELLO STATO - RISCOSSIONE TRIBUTI; ;Liquidazione IVA a debito terzo trimestre 2017 - a.l. AC N. 169 DEL 12.10.2017;12-10-2017;9240;0;306;1;Spese correnti;10;Altre spese correnti;3;Versamenti IVA a debito;1;Versamenti IVA a debito per le gestioni commerciali;1;Versamenti IVA a debito per le gestioni commerciali;12-10-2017;
857;1;0;"120,00";"5.880,00";OMESSO NOMINATIVO NEL RISPETTO DELLA NORMATIVA SULLA PROTEZIONE DATI PERSONALI; ;Contributo per Impegnativa di Cura Domiciliare (ICDb) per Albertin Maria primo semestre 2017 - a.l. A.C. N. 170 DEL 12.10.2017;12-10-2017;6710;0;307;1;Spese correnti;4;Trasferimenti correnti;2;Trasferimenti correnti a Famiglie;5;Altri trasferimenti a famiglie;999;Altri trasferimenti a famiglie n.a.c.;12-10-2017;
857;2;0;"720,00";"5.880,00";OMESSO NOMINATIVO NEL RISPETTO DELLA NORMATIVA SULLA PROTEZIONE DATI PERSONALI; ;Contributo per Impegnativa di Cura Domiciliare (ICDb) per Gomiero Natale primo semestre 2017 - a.l. A.C. N. 170 DEL 12.10.2017;12-10-2017;6710;0;307;1;Spese correnti;4;Trasferimenti correnti;2;Trasferimenti correnti a Famiglie;5;Altri trasferimenti a famiglie;999;Altri trasferimenti a famiglie n.a.c.;12-10-2017;
857;3;0;"720,00";"5.880,00";OMESSO NOMINATIVO NEL RISPETTO DELLA NORMATIVA SULLA PROTEZIONE DATI PERSONALI; ;Contributo per Impegnativa di Cura Domiciliare (ICDb) per Mazzetto Antonietta primo semestre 2017 - a.l. A.C. N. 170 DEL 12.10.2017;12-10-2017;6710;0;307;1;Spese correnti;4;Trasferimenti correnti;2;Trasferimenti correnti a Famiglie;5;Altri trasferimenti a famiglie;999;Altri trasferimenti a famiglie n.a.c.;12-10-2017;
857;4;0;"720,00";"5.880,00";OMESSO NOMINATIVO NEL RISPETTO DELLA NORMATIVA SULLA PROTEZIONE DATI PERSONALI; ;Contributo per Impegnativa di Cura Domiciliare (ICDb) per Meneghini Antonio primo semestre 2017 - a.l. A.C. N. 170 DEL 12.10.2017;12-10-2017;6710;0;307;1;Spese correnti;4;Trasferimenti correnti;2;Trasferimenti correnti a Famiglie;5;Altri trasferimenti a famiglie;999;Altri trasferimenti a famiglie n.a.c.;12-10-2017;
857;5;0;"720,00";"5.880,00";OMESSO NOMINATIVO NEL RISPETTO DELLA NORMATIVA SULLA PROTEZIONE DATI PERSONALI; ;Contributo per Impegnativa di Cura Domiciliare (ICDb) per Meneghini Eufrasia primo semestre 2017 - a.l. A.C. N. 170 DEL 12.10.2017;12-10-2017;6710;0;307;1;Spese correnti;4;Trasferimenti correnti;2;Trasferimenti correnti a Famiglie;5;Altri trasferimenti a famiglie;999;Altri trasferimenti a famiglie n.a.c.;12-10-2017;
857;6;0;"720,00";"5.880,00";OMESSO NOMINATIVO NEL RISPETTO DELLA NORMATIVA SULLA PROTEZIONE DATI PERSONALI; ;Contributo per Impegnativa di Cura Domiciliare (ICDb) primo semestre 2017 per Santimaria Anna - a.l. A.C. N. 170 DEL 12.10.2017;12-10-2017;6710;0;307;1;Spese correnti;4;Trasferimenti correnti;2;Trasferimenti correnti a Famiglie;5;Altri trasferimenti a famiglie;999;Altri trasferimenti a famiglie n.a.c.;12-10-2017;
857;7;0;"720,00";"5.880,00";OMESSO NOMINATIVO NEL RISPETTO DELLA NORMATIVA SULLA PROTEZIONE DATI PERSONALI; ;Contributo per Impegnativa di Cura Domiciliare (ICDb) per Sarego Lina primo semestre 2017 - a.l. A.C. N. 170 DEL 12.10.2017;12-10-2017;6710;0;307;1;Spese correnti;4;Trasferimenti correnti;2;Trasferimenti correnti a Famiglie;5;Altri trasferimenti a famiglie;999;Altri trasferimenti a famiglie n.a.c.;12-10-2017;
857;8;0;"720,00";"5.880,00";OMESSO NOMINATIVO NEL RISPETTO DELLA NORMATIVA SULLA PROTEZIONE DATI PERSONALI; ;Contributo per Impegnativa di Cura Domiciliare (ICDb)  per Mercurio Epifania primo semestre 2017 - a.l. A.C. N. 170 DEL 12.10.2017;12-10-2017;6710;0;307;1;Spese correnti;4;Trasferimenti correnti;2;Trasferimenti correnti a Famiglie;5;Altri trasferimenti a famiglie;999;Altri trasferimenti a famiglie n.a.c.;12-10-2017;
857;9;0;"720,00";"5.880,00";OMESSO NOMINATIVO NEL RISPETTO DELLA NORMATIVA SULLA PROTEZIONE DATI PERSONALI; ;Contributo per Impegnativa di Cura Domiciliare (ICDb) per Ongaro Gina primo semestre 2017 - a.l. A.C. N. 170 DEL 12.10.2017;12-10-2017;6710;0;307;1;Spese correnti;4;Trasferimenti correnti;2;Trasferimenti correnti a Famiglie;5;Altri trasferimenti a famiglie;999;Altri trasferimenti a famiglie n.a.c.;12-10-2017;
858;1;0;"750,00";"750,00";CASA DI RIPOSO "A. SIMIONATI"; ;SALDO Fatt.n. 120/E  del 30/09/2017 Quota retta ricovero R.R. mese di settembre 2017;12-10-2017;6875;0;243;1;Spese correnti;3;Acquisto di beni e servizi;2;Acquisto di servizi;99;Altri servizi;999;Altri servizi diversi n.a.c.;12-10-2017;
859;1;0;"183,00";"183,00";Igorsoft.net di Tomasetto Igor;Z421E01004;SALDO Fatt.n. FATTPA 5_17  del 06/10/2017 Fornitura monitor a biblioteca comunale;12-10-2017;3760;0;121;1;Spese correnti;3;Acquisto di beni e servizi;2;Acquisto di servizi;99;Altri servizi;999;Altri servizi diversi n.a.c.;12-10-2017;
860;1;0;"890,60";"890,60";Igorsoft.net di Tomasetto Igor;Z8B1F964E7;SALDO Fatt.n. FATTPA 3_17  del 06/10/2017 Fornitura pc DELL per ufficio segreteria;12-10-2017;4753;0;262;1;Spese correnti;3;Acquisto di beni e servizi;1;Acquisto di beni;2;Altri beni di consumo;1;"Carta, cancelleria e stampati";12-10-2017;
861;1;0;"640,50";"640,50";Igorsoft.net di Tomasetto Igor;ZA91D4408F;SALDO Fatt.n. FATTPA 6_17  del 06/10/2017 Interventi di assistenza informatica agli uffici  anno 2017;12-10-2017;555;0;28;1;Spese correnti;3;Acquisto di beni e servizi;2;Acquisto di servizi;19;Servizi informatici e di telecomunicazioni;1;Gestione e manutenzione applicazioni;12-10-2017;
862;1;0;"390,40";"390,40";Igorsoft.net di Tomasetto Igor;Z811F96A0D;SALDO Fatt.n. FATTPA 4_17  del 06/10/2017 Fornitura switch 48 porte per sistema informatico comunale;12-10-2017;1300;0;255;1;Spese correnti;3;Acquisto di beni e servizi;1;Acquisto di beni;2;Altri beni di consumo;999;Altri beni e materiali di consumo n.a.c.;12-10-2017;
863;1;0;"2.188,38";"2.188,38";Melillo Servizi Ambientali e Cimiteriali s.r.l.;ZE418C2969;SALDO Fatt.n. 4061  del 30/09/2017 Servizio di sepoltura mese di settembre 2017;12-10-2017;5190;0;85;1;Spese correnti;3;Acquisto di beni e servizi;2;Acquisto di servizi;99;Altri servizi;999;Altri servizi diversi n.a.c.;12-10-2017;
864;1;0;"2.684,00";"2.684,00";COSTRUZIONI LOVATO SRL;Z501FA83FZ;SALDO Fatt.n. 52/PA  del 05/10/2017 Realizzazione dossi rallentatori in Via Leopardi;12-10-2017;11821;0;275;2;Spese in conto capitale;2;Investimenti fissi lordi e acquisto di terreni;1;Beni materiali;99;Altri beni materiali;999;Altri beni materiali diversi;12-10-2017;
865;1;0;"4.800,70";"4.800,70";MARTINI LUCIANO SRL;ZCO1FDA6C3;SALDO Fatt.n. 12/EL  del 06/10/2017 Sistemazione capitello caduti in guerra di Zovon;12-10-2017;1302;0;283;1;Spese correnti;3;Acquisto di beni e servizi;2;Acquisto di servizi;9;Manutenzione ordinaria e riparazioni;8;Manutenzione ordinaria e riparazioni di beni immobili;12-10-2017;
866;1;0;"11.000,00";"11.000,00";MARTINI LUCIANO SRL;ZCC1FA7558;SALDO Fatt.n. 13/EL  del 06/10/2017 Lavori asfaltatura strade comunali;12-10-2017;11950;0;274;2;Spese in conto capitale;5;Altre spese in conto capitale;99;Altre spese in conto capitale n.a.c.;99;Altre spese in conto capitale n.a.c.;999;Altre spese in conto capitale n.a.c.;12-10-2017;
867;1;0;"330,03";"1.615,44";AUTOFFICINA ELETTRAUTO BARBIERO SNC DI BARBIERO ETTORE;Z41200E83F;SALDO Fatt.n. 4/01  del 30/09/2017 Sostituzione gomme Fiat Grande Punto targa DT038LH;12-10-2017;572;0;297;1;Spese correnti;3;Acquisto di beni e servizi;2;Acquisto di servizi;9;Manutenzione ordinaria e riparazioni;1;"Manutenzione ordinaria e riparazioni di mezzi di trasporto ad uso civile, di sicurezza e ordine pubblico";12-10-2017;
867;2;0;"1.285,41";"1.615,44";AUTOFFICINA ELETTRAUTO BARBIERO SNC DI BARBIERO ETTORE;Z41200E83F;SALDO Fatt.n. 3/01  del 30/09/2017 Riparazione Fiato Doblo targa DH568NN;12-10-2017;572;0;297;1;Spese correnti;3;Acquisto di beni e servizi;2;Acquisto di servizi;9;Manutenzione ordinaria e riparazioni;1;"Manutenzione ordinaria e riparazioni di mezzi di trasporto ad uso civile, di sicurezza e ordine pubblico";12-10-2017;
884;1;0;"130,73";"130,73";DIPENDENTI COMUNALI DIVERSI; ;Quota rimborso servizio mensa 2' e 3' trimestre 2017;17-10-2017;9375;0;48;1;Spese correnti;3;Acquisto di beni e servizi;2;Acquisto di servizi;99;Altri servizi;999;Altri servizi diversi n.a.c.;17-10-2017;
891;1;0;"199,60";"199,60";TELECOM ITALIA SPA;ZE31381BC6;SALDO Fatt.n. 8E00781051  del 07/08/2017 Spese telefoniche utenza Scuola Secondaria primo grado  - 5 bimestre 2017;19-10-2017;31801;0;70;1;Spese correnti;3;Acquisto di beni e servizi;2;Acquisto di servizi;5;Utenze e canoni;1;Telefonia fissa;19-10-2017;
892;1;0;"130,97";"130,97";TELECOM ITALIA SPA;ZE31381BC6;SALDO Fatt.n. 8E00786568  del 07/08/2017 Spese telefoniche utenza Scuola Primaria - 5 bimestre 2017;19-10-2017;29701;0;69;1;Spese correnti;3;Acquisto di beni e servizi;2;Acquisto di servizi;5;Utenze e canoni;1;Telefonia fissa;19-10-2017;
893;1;0;"82,62";"82,62";TELECOM ITALIA SPA;ZE31381BC6;SALDO Fatt.n. 8E00787339  del 07/08/2017 Spese telefoniche utenza Scuola Infanzia - 5 bimestre 2017;19-10-2017;28001;0;68;1;Spese correnti;3;Acquisto di beni e servizi;2;Acquisto di servizi;5;Utenze e canoni;1;Telefonia fissa;19-10-2017;
894;1;0;"2,03";"2,03";TELECOM ITALIA SPA;ZE31381BC6;SALDO Fatt.n. 8E00780598  del 07/08/2017 Spese telefoniche utenza biblioteca - 5 bimestre 2017;19-10-2017;3761;0;72;1;Spese correnti;3;Acquisto di beni e servizi;2;Acquisto di servizi;5;Utenze e canoni;1;Telefonia fissa;19-10-2017;
895;1;0;"108,13";"594,90";TELECOM ITALIA SPA;ZE31381BC6;SALDO Fatt.n. 8E00783544  del 07/08/2017 Spese telefoniche utenza Sede Municipale (0499940027) - 5 bimestre 2017;19-10-2017;4751;0;67;1;Spese correnti;3;Acquisto di beni e servizi;2;Acquisto di servizi;5;Utenze e canoni;1;Telefonia fissa;19-10-2017;
895;2;0;"224,18";"594,90";TELECOM ITALIA SPA;ZE31381BC6;SALDO Fatt.n. 8E00781702  del 07/08/2017 Spese telefoniche utenza Sede Municipale (0499940666) - 5 bimestre 2017;19-10-2017;4751;0;67;1;Spese correnti;3;Acquisto di beni e servizi;2;Acquisto di servizi;5;Utenze e canoni;1;Telefonia fissa;19-10-2017;
895;3;0;"262,59";"594,90";TELECOM ITALIA SPA;ZE31381BC6;SALDO Fatt.n. 8E00782884  del 07/08/2017 Spese telefoniche utenza Sede Municipale (0499940677) - 5 bimestre 2017;19-10-2017;4751;0;67;1;Spese correnti;3;Acquisto di beni e servizi;2;Acquisto di servizi;5;Utenze e canoni;1;Telefonia fissa;19-10-2017;
896;1;0;"42,55";"42,55";E.ON Energia S.p.a.;Z7113FE6B2;SALDO Fatt.n. 40008797  del 02/10/2017 Fornitura gas naturale utenza Polo Scolastico mese di agosto 2017;22-10-2017;28001;0;63;1;Spese correnti;3;Acquisto di beni e servizi;2;Acquisto di servizi;5;Utenze e canoni;6;Gas;22-10-2017;
897;1;0;"191,54";"191,54";E.ON Energia S.p.a.;Z7113FE6B2;SALDO Fatt.n. 40008796  del 02/10/2017 Fornitura gas naturale utenza Sede Municipale mese di agosto 2017;22-10-2017;4751;0;62;1;Spese correnti;3;Acquisto di beni e servizi;2;Acquisto di servizi;5;Utenze e canoni;6;Gas;22-10-2017;
898;1;0;"114,32";"114,32";E.ON Energia S.p.a.;Z7113FE6B2;SALDO Fatt.n. 40008798  del 02/10/2017 Fornitura gas naturale utenza immobile Piazzetta Martiri mese di agosto 2017;22-10-2017;1405;0;61;1;Spese correnti;3;Acquisto di beni e servizi;2;Acquisto di servizi;5;Utenze e canoni;6;Gas;22-10-2017;
899;1;0;"43,79";"43,79";E.ON Energia S.p.a.;Z7113FE6B2;SALDO Fatt.n. 40008824  del 02/10/2017 Fornitura gas naturale utenza Villa Venier mese di agosto 2017;22-10-2017;1312;0;66;1;Spese correnti;3;Acquisto di beni e servizi;2;Acquisto di servizi;5;Utenze e canoni;6;Gas;22-10-2017;
900;1;0;"80,00";"80,00";Cabi Broker Di Assicurazioni Srl; ;Regolazione Premio relativa alla polizza Infortuni ITAS MUTUA n. M10918480 per il periodo dal 31.07.2016 al 31.07.2017  -  Atto Liq. Area Servizi Tecnici n. 140 del 20.10.2017;23-10-2017;477;0;320;1;Spese correnti;10;Altre spese correnti;4;Premi di assicurazione;99;Altri premi di assicurazione n.a.c.;999;Altri premi di assicurazione n.a.c.;23-10-2017;
901;1;0;"104,00";"546,00";BEGGIATO MICHELA; ;Competenze dovute ai componenti del seggio n. 1 per Referendum Consultivo Autonomia del Veneto del 22.10.2017;23-10-2017;1040;0;311;1;Spese correnti;3;Acquisto di beni e servizi;2;Acquisto di servizi;99;Altri servizi;4;Altre spese per consultazioni elettorali dell'ente;23-10-2017;
901;2;0;"130,00";"546,00";BELLOTTI ROBERTO; ;Competenze dovute al presidente  del seggio n. 1 per Referendum Consultivo Autonomia del Veneto del 22.10.2017;23-10-2017;1040;0;311;1;Spese correnti;3;Acquisto di beni e servizi;2;Acquisto di servizi;99;Altri servizi;4;Altre spese per consultazioni elettorali dell'ente;23-10-2017;
901;3;0;"104,00";"546,00";CASSINERI GIACOMO; ;Competenze dovute ai componenti del seggio n. 1 per Referendum Consultivo Autonomia del Veneto del 22.10.2017;23-10-2017;1040;0;311;1;Spese correnti;3;Acquisto di beni e servizi;2;Acquisto di servizi;99;Altri servizi;4;Altre spese per consultazioni elettorali dell'ente;23-10-2017;
901;4;0;"104,00";"546,00";DALLA MONTA' HILARY; ;Competenze dovute al segretario del seggio n. 1 per Referendum Consultivo Autonomia del Veneto del 22.10.2017;23-10-2017;1040;0;311;1;Spese correnti;3;Acquisto di beni e servizi;2;Acquisto di servizi;99;Altri servizi;4;Altre spese per consultazioni elettorali dell'ente;23-10-2017;
901;5;0;"104,00";"546,00";MION MONICA; ;Competenze dovute ai componenti del seggio n. 1 per Referendum Consultivo Autonomia del Veneto del 22.10.2017;23-10-2017;1040;0;311;1;Spese correnti;3;Acquisto di beni e servizi;2;Acquisto di servizi;99;Altri servizi;4;Altre spese per consultazioni elettorali dell'ente;23-10-2017;
902;1;0;"104,00";"546,00";BRESSAN MICHELA; ;Competenze dovute ai componenti del seggio n. 2 per Referendum Consultivo Autonomia del Veneto del 22.10.2017;23-10-2017;1040;0;311;1;Spese correnti;3;Acquisto di beni e servizi;2;Acquisto di servizi;99;Altri servizi;4;Altre spese per consultazioni elettorali dell'ente;23-10-2017;
902;2;0;"130,00";"546,00";BUSATO ROBERTO; ;Competenze dovute al presidente del seggio n. 2 per Referendum Consultivo Autonomia del Veneto del 22.10.2017;23-10-2017;1040;0;311;1;Spese correnti;3;Acquisto di beni e servizi;2;Acquisto di servizi;99;Altri servizi;4;Altre spese per consultazioni elettorali dell'ente;23-10-2017;
902;3;0;"104,00";"546,00";CASSINERI FABRIZIO; ;Competenze dovute al segretario del seggio n. 2 per Referendum Consultivo Autonomia del Veneto del 22.10.2017;23-10-2017;1040;0;311;1;Spese correnti;3;Acquisto di beni e servizi;2;Acquisto di servizi;99;Altri servizi;4;Altre spese per consultazioni elettorali dell'ente;23-10-2017;
902;4;0;"104,00";"546,00";PEGE ILARIA; ;Competenze dovute ai componenti del seggio n. 2 per Referendum Consultivo Autonomia del Veneto del 22.10.2017;23-10-2017;1040;0;311;1;Spese correnti;3;Acquisto di beni e servizi;2;Acquisto di servizi;99;Altri servizi;4;Altre spese per consultazioni elettorali dell'ente;23-10-2017;
902;5;0;"104,00";"546,00";VEZZU' ALESSANDRA; ;Competenze dovute ai componenti del seggio n. 2 per Referendum Consultivo Autonomia del Veneto del 22.10.2017;23-10-2017;1040;0;311;1;Spese correnti;3;Acquisto di beni e servizi;2;Acquisto di servizi;99;Altri servizi;4;Altre spese per consultazioni elettorali dell'ente;23-10-2017;
903;1;0;"104,00";"546,00";CALAON RICCARDO; ;Competenze dovute ai componenti del seggio n. 3 per Referendum Consultivo Autonomia del Veneto del 22.10.2017;23-10-2017;1040;0;311;1;Spese correnti;3;Acquisto di beni e servizi;2;Acquisto di servizi;99;Altri servizi;4;Altre spese per consultazioni elettorali dell'ente;23-10-2017;
903;2;0;"130,00";"546,00";MALESANI GIULIO; ;Competenze dovute al presidente del seggio n. 3 per Referendum Consultivo Autonomia del Veneto del 22.10.2017;23-10-2017;1040;0;311;1;Spese correnti;3;Acquisto di beni e servizi;2;Acquisto di servizi;99;Altri servizi;4;Altre spese per consultazioni elettorali dell'ente;23-10-2017;
903;3;0;"104,00";"546,00";MASIERO SARA; ;Competenze dovute ai componenti del seggio n. 3 per Referendum Consultivo Autonomia del Veneto del 22.10.2017;23-10-2017;1040;0;311;1;Spese correnti;3;Acquisto di beni e servizi;2;Acquisto di servizi;99;Altri servizi;4;Altre spese per consultazioni elettorali dell'ente;23-10-2017;
903;4;0;"104,00";"546,00";PRIMOLAN FEDERICA; ;Competenze dovute al segretario del seggio n. 3 per Referendum Consultivo Autonomia del Veneto del 22.10.2017;23-10-2017;1040;0;311;1;Spese correnti;3;Acquisto di beni e servizi;2;Acquisto di servizi;99;Altri servizi;4;Altre spese per consultazioni elettorali dell'ente;23-10-2017;
903;5;0;"104,00";"546,00";TODESCO LAURA; ;Competenze dovute ai componenti del seggio n. 3 per Referendum Consultivo Autonomia del Veneto del 22.10.2017;23-10-2017;1040;0;311;1;Spese correnti;3;Acquisto di beni e servizi;2;Acquisto di servizi;99;Altri servizi;4;Altre spese per consultazioni elettorali dell'ente;23-10-2017;
904;1;0;"1.200,00";"2.400,00";OMESSO NOMINATIVO NEL RISPETTO DELLA NORMATIVA SULLA PROTEZIONE DATI PERSONALI; ;Contributo per Impegnativa di Cura Domiciliare (ICDM) secondo trimestre 2017 per Secotaro Bruna - a.l. ac n. 171 del 17.10.2017;23-10-2017;6710;0;313;1;Spese correnti;4;Trasferimenti correnti;2;Trasferimenti correnti a Famiglie;5;Altri trasferimenti a famiglie;999;Altri trasferimenti a famiglie n.a.c.;23-10-2017;
904;2;0;"1.200,00";"2.400,00";OMESSO NOMINATIVO NEL RISPETTO DELLA NORMATIVA SULLA PROTEZIONE DATI PERSONALI; ;Contributo per Impegnativa di Cura Domiciliare (ICDM) secondo trimestre 2017 per Santimaria Giorgina - a.l. ac n. 171 del 17.10.2017;23-10-2017;6710;0;313;1;Spese correnti;4;Trasferimenti correnti;2;Trasferimenti correnti a Famiglie;5;Altri trasferimenti a famiglie;999;Altri trasferimenti a famiglie n.a.c.;23-10-2017;
905;1;0;"764,90";"764,90";Sodexo Italia Spa;64630250F4;SALDO Fatt.n. 6400041086  del 30/09/2017 Fornitura pasti a bambini scuole elementari mese di settembre 2017;23-10-2017;3406;0;46;1;Spese correnti;3;Acquisto di beni e servizi;2;Acquisto di servizi;15;Contratti di servizio pubblico;6;Contratti di servizio per le mense scolastiche;23-10-2017;
906;1;0;"1.463,70";"1.463,70";Sodexo Italia Spa;64630250F4;SALDO Fatt.n. 6400041085  del 30/09/2017 Fornitura pasti bambini scuola materna settembre 2017;23-10-2017;3404;0;45;1;Spese correnti;3;Acquisto di beni e servizi;2;Acquisto di servizi;15;Contratti di servizio pubblico;6;Contratti di servizio per le mense scolastiche;23-10-2017;
907;1;0;"4.169,00";"4.169,00";COOPERATIVA SOCIALE SERVIZI ASSOCIATI;7079166895;SALDO Fatt.n. D-350  del 30/09/2017 Servizio trasporto scolastico mese di settembre 2017;23-10-2017;3413;0;279;1;Spese correnti;3;Acquisto di beni e servizi;2;Acquisto di servizi;15;Contratti di servizio pubblico;2;Contratti di servizio di trasporto scolastico;23-10-2017;
908;1;0;"456,00";"456,00";BOGONI ALFONSO & C. S.A.S.;Z9E1D16A02;SALDO Fatt.n. V000008FE  del 30/09/2017 Fornitura carburante mese di settembre 2017;23-10-2017;570;0;86;1;Spese correnti;3;Acquisto di beni e servizi;1;Acquisto di beni;2;Altri beni di consumo;2;"Carburanti, combustibili e lubrificanti";23-10-2017;
909;1;0;"1.200,00";"1.200,00";ENERGON FACILITY SOLUTIONS S.p.A.;Z491B8B1B4;ACCONTO Fatt.n. 521/VPA  del 14/10/2017 Servizio gestione calore periodo 01.01.2017 - 13.10.2017;23-10-2017;3185;0;348;1;Spese correnti;3;Acquisto di beni e servizi;2;Acquisto di servizi;99;Altri servizi;999;Altri servizi diversi n.a.c.;23-10-2017;
910;1;0;"602,00";"602,00";ENERGON FACILITY SOLUTIONS S.p.A.;Z491B8B1B4;ACCONTO Fatt.n. 521/VPA  del 14/10/2017 Servizio gestione calore periodo 01.01.2017 - 13.10.2017;23-10-2017;2975;0;349;1;Spese correnti;3;Acquisto di beni e servizi;2;Acquisto di servizi;99;Altri servizi;999;Altri servizi diversi n.a.c.;23-10-2017;
911;1;0;"1.087,22";"1.087,22";ENERGON FACILITY SOLUTIONS S.p.A.;Z491B8B1B4;ACCONTO Fatt.n. 521/VPA  del 14/10/2017 Servizio gestione calore periodo 01.01.2017 - 13.10.2017;23-10-2017;476;0;350;1;Spese correnti;3;Acquisto di beni e servizi;2;Acquisto di servizi;9;Manutenzione ordinaria e riparazioni;8;Manutenzione ordinaria e riparazioni di beni immobili;23-10-2017;
912;1;0;"241,50";"241,50";ENERGON FACILITY SOLUTIONS S.p.A.;Z491B8B1B4;ACCONTO Fatt.n. 521/VPA  del 14/10/2017 Servizio gestione calore periodo 01.01.2017 - 13.10.2017;23-10-2017;2800;0;351;1;Spese correnti;3;Acquisto di beni e servizi;1;Acquisto di beni;2;Altri beni di consumo;999;Altri beni e materiali di consumo n.a.c.;23-10-2017;
913;1;0;"420,24";"420,24";ENERGON FACILITY SOLUTIONS S.p.A.;Z491B8B1B4;ACCONTO Fatt.n. 521/VPA  del 14/10/2017 Servizio gestione calore periodo 01.01.2017 - 13.10.2017;23-10-2017;1310;0;352;1;Spese correnti;3;Acquisto di beni e servizi;2;Acquisto di servizi;9;Manutenzione ordinaria e riparazioni;8;Manutenzione ordinaria e riparazioni di beni immobili;23-10-2017;
914;1;0;"520,83";"520,83";ENERGON FACILITY SOLUTIONS S.p.A.;Z491B8B1B4;SALDO Fatt.n. 521/VPA  del 14/10/2017 Servizio gestione calore periodo 01.01.2017 - 13.10.2017;23-10-2017;1400;0;353;1;Spese correnti;3;Acquisto di beni e servizi;2;Acquisto di servizi;9;Manutenzione ordinaria e riparazioni;8;Manutenzione ordinaria e riparazioni di beni immobili;23-10-2017;
915;1;0;"8.531,61";"8.531,61";S.E.S.A. SPA;Z11182D6F2;SALDO Fatt.n. 2000911  del 30/09/2017 Smaltimento rifiuti mese di settembre 2017;23-10-2017;5780;0;74;1;Spese correnti;3;Acquisto di beni e servizi;2;Acquisto di servizi;15;Contratti di servizio pubblico;4;Contratti di servizio per la raccolta rifiuti;23-10-2017;
916;1;0;"2.000,00";"2.000,00";SCARSI MARCO;Z8A1FA667F;SALDO Fatt.n. 000001-2017-FE16SM  del 07/09/2017 Visite mediche al Personale dipendente;23-10-2017;785;0;270;1;Spese correnti;3;Acquisto di beni e servizi;2;Acquisto di servizi;4;Acquisto di servizi per formazione e addestramento del personale dell'ente;4;Acquisto di servizi per formazione obbligatoria;23-10-2017;
917;1;0;"1.000,00";"1.000,00";MORONATO ANDREA MARIA; ;SALDO Fatt.n. 1PA  del 22/09/2017 Premio terzoclassificato al concorso di idee per la riqualificazione di Piazza Liberazione;23-10-2017;800;0;361;1;Spese correnti;3;Acquisto di beni e servizi;2;Acquisto di servizi;11;Prestazioni professionali e specialistiche;999;Altre prestazioni professionali e specialistiche n.a.c.;23-10-2017;
918;1;0;"149,39";"3.183,15";Illumia S.p.A.;Z0E14167CF;SALDO Fatt.n. 8860-PE  del 25/09/2017 Fornitura energia elettrica ill. pubblica utenza Piazzetta Martiri mese di agosto 2017  .  provv. 105;27-10-2017;7420;0;187;1;Spese correnti;3;Acquisto di beni e servizi;2;Acquisto di servizi;5;Utenze e canoni;4;Energia elettrica;27-10-2017;
918;2;0;"267,64";"3.183,15";Illumia S.p.A.;Z0E14167CF;SALDO Fatt.n. 9186-PE  del 25/09/2017 Fornitura energia elettrica ill. pubblica utenza Piazzetta Spolverato mese di agosto 2017  -  provv. 109;27-10-2017;7420;0;187;1;Spese correnti;3;Acquisto di beni e servizi;2;Acquisto di servizi;5;Utenze e canoni;4;Energia elettrica;27-10-2017;
918;3;0;"2.766,12";"3.183,15";Illumia S.p.A.;Z0E14167CF;SALDO Fatt.n. 9129-PE  del 25/09/2017 Fornitura energia elettrica utenze ill. pubblica mese di agosto 2017  -  provv. 104;27-10-2017;7420;0;187;1;Spese correnti;3;Acquisto di beni e servizi;2;Acquisto di servizi;5;Utenze e canoni;4;Energia elettrica;27-10-2017;
919;1;0;"94,86";"421,47";Illumia S.p.A.;Z0E14167CF;SALDO Fatt.n. 9131-PE  del 25/09/2017 Fornitura energia elettrica utenza impianto sportivo Zovon mese di agosto 2017  -  provv. 106;27-10-2017;64981;0;183;1;Spese correnti;3;Acquisto di beni e servizi;2;Acquisto di servizi;5;Utenze e canoni;4;Energia elettrica;27-10-2017;
919;2;0;"326,61";"421,47";Illumia S.p.A.;Z0E14167CF;SALDO Fatt.n. 9183-PE  del 25/09/2017 Fornitura energia elettrica utenza impianto sportivo Via Marconi mese di agosto 2017  -  provv. 108;27-10-2017;64981;0;183;1;Spese correnti;3;Acquisto di beni e servizi;2;Acquisto di servizi;5;Utenze e canoni;4;Energia elettrica;27-10-2017;
920;1;0;"105,93";"105,93";Illumia S.p.A.;Z0E14167CF;SALDO Fatt.n. 9185-PE  del 25/09/2017 Fornitura energia elettrica utenza Villa Venier mese di agosto 2017  -  provv. 110;27-10-2017;1312;0;185;1;Spese correnti;3;Acquisto di beni e servizi;2;Acquisto di servizi;5;Utenze e canoni;4;Energia elettrica;27-10-2017;
921;1;0;"309,87";"309,87";Illumia S.p.A.;Z0E14167CF;SALDO Fatt.n. 9184-PE  del 25/09/2017 Fornitura energia elettrica utenza immobile Piazzetta Martiri mese di agosto 2017  -  provv. 111;27-10-2017;1405;0;186;1;Spese correnti;3;Acquisto di beni e servizi;2;Acquisto di servizi;5;Utenze e canoni;4;Energia elettrica;27-10-2017;
922;1;0;"440,42";"440,42";Illumia S.p.A.;Z0E14167CF;SALDO Fatt.n. 9026-PE  del 25/09/2017 Fornitura energia elettrica utenza Sede Municipale mese di agosto 2017  -  provv. 103;27-10-2017;4751;0;177;1;Spese correnti;3;Acquisto di beni e servizi;2;Acquisto di servizi;5;Utenze e canoni;4;Energia elettrica;27-10-2017;
923;1;0;"191,54";"191,54";Illumia S.p.A.;Z0E14167CF;ACCONTO Fatt.n. 9130-PE  del 25/09/2017 Fornitura energia elettrica utenza Polo Scolastico mese di agosto 2017  -  provv. 107;27-10-2017;28001;0;178;1;Spese correnti;3;Acquisto di beni e servizi;2;Acquisto di servizi;5;Utenze e canoni;4;Energia elettrica;27-10-2017;
924;1;0;"191,54";"191,54";Illumia S.p.A.;Z0E14167CF;ACCONTO Fatt.n. 9130-PE  del 25/09/2017 Fornitura energia elettrica utenza Polo Scolastico mese di agosto 2017  -  provv. 107;27-10-2017;29701;0;179;1;Spese correnti;3;Acquisto di beni e servizi;2;Acquisto di servizi;5;Utenze e canoni;4;Energia elettrica;27-10-2017;
925;1;0;"192,52";"192,52";Illumia S.p.A.;Z0E14167CF;SALDO Fatt.n. 9130-PE  del 25/09/2017 Fornitura energia elettrica utenza Polo Scolastico mese di agosto 2017  -  provv. 107;27-10-2017;31801;0;180;1;Spese correnti;3;Acquisto di beni e servizi;2;Acquisto di servizi;5;Utenze e canoni;4;Energia elettrica;27-10-2017;
926;1;0;"17.900,00";"17.900,00";WORLD APPEAL;Z9B1F20002;SALDO Fatt.n. 7/PA17  del 20/09/2017 Servizio per la gestione e organizzazione Festa Uva 2017;03-11-2017;7050;0;209;1;Spese correnti;3;Acquisto di beni e servizi;2;Acquisto di servizi;2;"Organizzazione eventi, pubblicita` e servizi per trasferta";5;Organizzazione e partecipazione a manifestazioni e convegni;03-11-2017;
928;1;0;"91,46";"2.338,13";I.C.A. IMPOSTE COMUNALI AFFINI;Z291C60108;"SALDO Fatt.n. FE0001433  del 20/07/2017 Aggio per servizio di liquidazione, accertamento e riscossione dell imposta comunale sulla pubblicita e dei diritti sulle pubbliche affissioni per il periodo aprile / giugno 2017";03-11-2017;1480;0;249;1;Spese correnti;3;Acquisto di beni e servizi;2;Acquisto di servizi;3;Aggi di riscossione;999;Altri aggi di riscossione n.a.c.;03-11-2017;
928;2;0;"2.246,67";"2.338,13";I.C.A. IMPOSTE COMUNALI AFFINI;Z291C60108;"ACCONTO Fatt.n. FE0001432  del 20/07/2017 Aggio per il servizio di liquidazione, accertamento e riscossione dell imposta comunale sulla pubblicita e dei diritti sulle pubbliche affissioni per il periodo aprile / giugno 2017";03-11-2017;1480;0;249;1;Spese correnti;3;Acquisto di beni e servizi;2;Acquisto di servizi;3;Aggi di riscossione;999;Altri aggi di riscossione n.a.c.;03-11-2017;
929;1;0;"805,50";"805,50";I.C.A. IMPOSTE COMUNALI AFFINI;Z291C60108;"SALDO Fatt.n. FE0001432  del 20/07/2017 Aggio per il servizio di liquidazione, accertamento e riscossione dell imposta comunale sulla pubblicita e dei diritti sulle pubbliche affissioni per il periodo aprile / giugno 2017";03-11-2017;1480;0;326;1;Spese correnti;3;Acquisto di beni e servizi;2;Acquisto di servizi;3;Aggi di riscossione;999;Altri aggi di riscossione n.a.c.;03-11-2017;
930;1;0;"58,15";"58,15";POSTE ITALIANE SPA;Z961438A4F;SALDO Fatt.n. 8717324155  del 20/10/2017 Fattura Elettronica relativa all'Identificativo Rendiconto 2094087328 - agosto 2017;03-11-2017;4800;0;165;1;Spese correnti;3;Acquisto di beni e servizi;2;Acquisto di servizi;16;Servizi amministrativi;2;Spese postali;03-11-2017;
933;1;0;"887,38";"887,38";TREVISAN VANESSA; ;Indennita di funzione spettante al Sindaco ottobre 2017;10-11-2017;10;0;9;1;Spese correnti;3;Acquisto di beni e servizi;2;Acquisto di servizi;1;Organi e incarichi istituzionali dell'amministrazione;1;Organi istituzionali dell'amministrazione - Indennità;10-11-2017;
934;1;0;"177,48";"177,48";CALAON SIMONE; ;Indennita di funzione spettante al vice-sindaco ottobre 2017;10-11-2017;10;0;10;1;Spese correnti;3;Acquisto di beni e servizi;2;Acquisto di servizi;1;Organi e incarichi istituzionali dell'amministrazione;1;Organi istituzionali dell'amministrazione - Indennità;10-11-2017;
935;1;0;"266,21";"266,21";SANTIMARIA ANDREA; ;Indennita di funzione assessore ottobre 2017;10-11-2017;10;0;11;1;Spese correnti;3;Acquisto di beni e servizi;2;Acquisto di servizi;1;Organi e incarichi istituzionali dell'amministrazione;1;Organi istituzionali dell'amministrazione - Indennità;10-11-2017;
936;1;0;"266,21";"266,21";ZAVATTIERO AGOSTINO; ;Indennita di funzione assessore ottobre 2017;10-11-2017;10;0;13;1;Spese correnti;3;Acquisto di beni e servizi;2;Acquisto di servizi;1;Organi e incarichi istituzionali dell'amministrazione;1;Organi istituzionali dell'amministrazione - Indennità;10-11-2017;
937;1;0;"133,11";"133,11";LAZZARETTO ROBERTA; ;Indennita di funzione assessore ottobre 2017;10-11-2017;10;0;12;1;Spese correnti;3;Acquisto di beni e servizi;2;Acquisto di servizi;1;Organi e incarichi istituzionali dell'amministrazione;1;Organi istituzionali dell'amministrazione - Indennità;10-11-2017;
940;1;0;"90,07";"90,07";LAZZARETTO ROBERTA; ;Rimborso spese viaggio ad assessore Lazzaretto mese di ottobre 2017 - A.L. AC N. 191 DEL 08.11.2017;10-11-2017;230;0;159;1;Spese correnti;3;Acquisto di beni e servizi;2;Acquisto di servizi;1;Organi e incarichi istituzionali dell'amministrazione;2;Organi istituzionali dell'amministrazione - Rimborsi;10-11-2017;
941;1;0;"1.348,80";"1.348,80";Comune di Montegrotto Terme; ;Quota di adesione O.G.D. "Terme e Colli Euganei" Anno 2017 - A.L. AC N. 182 DEL 08.11.2017;10-11-2017;7150;0;334;1;Spese correnti;4;Trasferimenti correnti;1;Trasferimenti correnti a Amministrazioni Pubbliche;2;Trasferimenti correnti a Amministrazioni Locali;3;Trasferimenti correnti a Comuni;10-11-2017;
942;1;0;"610,00";"610,00";AMTUR SNC di Turetta Maurizio e Davide;Z091FDC1EA;SALDO Fatt.n. 8/PA  del 03/11/2017 NOLEGGIO WC CHIMICI IN OCCASIONE FESTA DELL'UVA 2017;10-11-2017;8888;0;287;1;Spese correnti;3;Acquisto di beni e servizi;2;Acquisto di servizi;99;Altri servizi;999;Altri servizi diversi n.a.c.;10-11-2017;
943;1;0;"1.250,00";"1.250,00";SCUOLA CICLISMO VO' c/o LOVO GRAZIANO; ;Contributo economico anno 2017 - SALDO - A.L. AC N. 184 DEL 08.11.2017;10-11-2017;6600;0;228;1;Spese correnti;4;Trasferimenti correnti;4;Trasferimenti correnti a Istituzioni Sociali Private;1;Trasferimenti correnti a Istituzioni Sociali Private;1;Trasferimenti correnti a Istituzioni Sociali Private;10-11-2017;
944;1;0;"850,00";"850,00";Mens Mensae Srl;Z55204EB49;ACCONTO Fatt.n. 069  del 06/11/2017 Servizio Pastel A.S. 2017/18 - periodo dal 01/09/2017 - 31/08/2018;10-11-2017;3406;0;330;1;Spese correnti;3;Acquisto di beni e servizi;2;Acquisto di servizi;15;Contratti di servizio pubblico;6;Contratti di servizio per le mense scolastiche;10-11-2017;
945;1;0;"2.572,18";"2.572,18";Mens Mensae Srl;Z55204EB49;SALDO Fatt.n. 069  del 06/11/2017 Servizio Pastel A.S. 2017/18 - periodo dal 01/09/2017 - 31/08/2018;10-11-2017;3404;0;329;1;Spese correnti;3;Acquisto di beni e servizi;2;Acquisto di servizi;15;Contratti di servizio pubblico;6;Contratti di servizio per le mense scolastiche;10-11-2017;
946;1;0;"1.888,56";"1.888,56";ACCATRE S.r.l.;Z941D57892;SALDO Fatt.n. 1/171038  del 26/10/2017 Formazione personale per "Progetto flussi amministrativi e dematerializzazione atti";10-11-2017;555;0;44;1;Spese correnti;3;Acquisto di beni e servizi;2;Acquisto di servizi;19;Servizi informatici e di telecomunicazioni;1;Gestione e manutenzione applicazioni;10-11-2017;
947;1;0;"1.220,00";"1.220,00";HALLEY VENETO SRL;Z211F3CB52;SALDO Fatt.n. 1/170686  del 31/10/2017 Fornitura ed installazione terminale segnapresenze con badge;10-11-2017;4753;0;241;1;Spese correnti;3;Acquisto di beni e servizi;1;Acquisto di beni;2;Altri beni di consumo;1;"Carta, cancelleria e stampati";10-11-2017;
948;1;0;"120,00";"120,00";ECONOMO COMUNALE; ;Rifuzione buoni economato n. 61 - A.L. AC N. 177 DEL 06.11.2017;10-11-2017;445;0;94;1;Spese correnti;3;Acquisto di beni e servizi;2;Acquisto di servizi;4;Acquisto di servizi per formazione e addestramento del personale dell'ente;999;Acquisto di servizi per altre spese per formazione e addestramento n.a.c.;10-11-2017;
949;1;0;"11,76";"11,76";ECONOMO COMUNALE; ;Rifusione buoni economato n. 64 65 - A.L. AC N. 177 DEL 06.11.2017;10-11-2017;450;0;93;1;Spese correnti;3;Acquisto di beni e servizi;2;Acquisto di servizi;99;Altri servizi;999;Altri servizi diversi n.a.c.;10-11-2017;
950;1;0;"16,00";"16,00";ECONOMO COMUNALE; ;Rifusione buoni economato n. 66 - AL AC N. 177 DEL 06.11.2017;10-11-2017;571;0;245;1;Spese correnti;3;Acquisto di beni e servizi;2;Acquisto di servizi;99;Altri servizi;999;Altri servizi diversi n.a.c.;10-11-2017;
951;1;0;"78,95";"78,95";ECONOMO COMUNALE; ;Rifusione buoni economato n. 58 59 67 68p - A.L. AC N. 177 DEL 06.11.2017;10-11-2017;4754;0;96;1;Spese correnti;3;Acquisto di beni e servizi;1;Acquisto di beni;2;Altri beni di consumo;999;Altri beni e materiali di consumo n.a.c.;10-11-2017;
952;1;0;"12,05";"12,05";ECONOMO COMUNALE; ;Rifusione buoni economato n. 68p - A.L. AC N. 177 DEL 06.11.2017;10-11-2017;4754;0;246;1;Spese correnti;3;Acquisto di beni e servizi;1;Acquisto di beni;2;Altri beni di consumo;999;Altri beni e materiali di consumo n.a.c.;10-11-2017;
953;1;0;"27,55";"27,55";ECONOMO COMUNALE; ;Rifusione buoni economato n. 60 62p - A.L. AC N. 177 DEL 06.11.2017;10-11-2017;1305;0;97;1;Spese correnti;3;Acquisto di beni e servizi;1;Acquisto di beni;2;Altri beni di consumo;999;Altri beni e materiali di consumo n.a.c.;10-11-2017;
954;1;0;"40,45";"40,45";ECONOMO COMUNALE; ;Rifusione buoni economato n. 62p 63 - A.L. AC N. 177 DEL 06.11.2017;10-11-2017;1305;0;247;1;Spese correnti;3;Acquisto di beni e servizi;1;Acquisto di beni;2;Altri beni di consumo;999;Altri beni e materiali di consumo n.a.c.;10-11-2017;
955;1;0;"110,17";"110,17";MyO srl;ZC52036ABC;SALDO Fatt.n. 2040/170026559  del 31/10/2017 Fornitura cartelle per referendum 22.10.2017;10-11-2017;1030;0;310;1;Spese correnti;3;Acquisto di beni e servizi;1;Acquisto di beni;2;Altri beni di consumo;10;Beni per consultazioni elettorali;10-11-2017;
956;1;0;"400,00";"400,00";DE BATTISTI MARIO;ZF220668D8;SALDO Fatt.n. 4/2017 PA  del 06/11/2017 4 CIOTOLE DI FIORI FRESCHI;10-11-2017;1300;0;322;1;Spese correnti;3;Acquisto di beni e servizi;1;Acquisto di beni;2;Altri beni di consumo;999;Altri beni e materiali di consumo n.a.c.;10-11-2017;
957;1;0;"527,14";"527,14";MAGAZZINI AMBROSI S.A.S. DI AMBROSI FABIO E TIZIANA;ZC91E16A3B;SALDO Fatt.n. 17  del 28/10/2017 Fornitura materiale da ferramenta per lavori in economia;10-11-2017;1300;0;271;1;Spese correnti;3;Acquisto di beni e servizi;1;Acquisto di beni;2;Altri beni di consumo;999;Altri beni e materiali di consumo n.a.c.;10-11-2017;
958;1;0;"4.458,50";"4.458,50";ISTITUTO COMPRENSIVO LOZZO ATESTINO; ;Contributo ai sensi della legge 23/1996 per anno scolastico 2016/2017 - a.l. ac n. 179 del 07.11.2017;10-11-2017;3425;0;288;1;Spese correnti;4;Trasferimenti correnti;1;Trasferimenti correnti a Amministrazioni Pubbliche;1;Trasferimenti correnti a Amministrazioni Centrali;2;Trasferimenti correnti a Ministero dell'Istruzione - Istituzioni scolastiche;10-11-2017;
959;1;0;"18.000,00";"18.000,00";PARROCCHIA "NATIVITA' BEATA VERGINE"; ;Contributo economico anno 2017 per la gestione asilo nido integrato - A.L. AC N. 180 DEL 07.11.2047;10-11-2017;6180;0;309;1;Spese correnti;4;Trasferimenti correnti;4;Trasferimenti correnti a Istituzioni Sociali Private;1;Trasferimenti correnti a Istituzioni Sociali Private;1;Trasferimenti correnti a Istituzioni Sociali Private;10-11-2017;
960;1;0;"8.000,00";"8.000,00";PARROCCHIA "NATIVITA' BEATA VERGINE"; ;Contributo economico anno 2017 per la gestione della Scuola Infanzia - A.L. AC N. 181 DEL 07.11.2017;10-11-2017;2820;0;308;1;Spese correnti;4;Trasferimenti correnti;4;Trasferimenti correnti a Istituzioni Sociali Private;1;Trasferimenti correnti a Istituzioni Sociali Private;1;Trasferimenti correnti a Istituzioni Sociali Private;10-11-2017;
961;1;0;"2.537,60";"5.075,20";STUDIO LEGALE DOMENICHELLI E ASSOCIATI;ZEB1FA528F;"SALDO Fatt.n. 61/2017/EL  del 09/10/2017 Acconto per la pratica MARTINI SILVESTRO COSTRUZIONI STRADALI - Costituzione al TAR Veneto, r.g. 847/17-II sez.";10-11-2017;760;0;266;1;Spese correnti;3;Acquisto di beni e servizi;2;Acquisto di servizi;11;Prestazioni professionali e specialistiche;6;Patrocinio legale;10-11-2017;
961;2;0;"2.537,60";"5.075,20";STUDIO LEGALE DOMENICHELLI E ASSOCIATI;ZEB1FA528F;"SALDO Fatt.n. 62/2017/EL  del 09/10/2017 Acconto per la pratica MARTINI FEDERICO e IMMOBILIARE IL COLLE SRL - Costituzione al TAR Veneto, rg. 823/17-II sez., determinazione 54 del 14.08.17";10-11-2017;760;0;266;1;Spese correnti;3;Acquisto di beni e servizi;2;Acquisto di servizi;11;Prestazioni professionali e specialistiche;6;Patrocinio legale;10-11-2017;
962;1;0;"1.653,75";"1.653,75";CODESS SOCIALE;684143311D;ACCONTO Fatt.n. 5268/PA  del 26/10/2017 Servizio di assistenza sociale e domiciliare mese di settembre 2017;10-11-2017;6980;0;435;1;Spese correnti;3;Acquisto di beni e servizi;2;Acquisto di servizi;15;Contratti di servizio pubblico;9;Contratti di servizio di assistenza sociale domiciliare;10-11-2017;
963;1;0;"2.969,56";"2.969,56";CODESS SOCIALE;684143311D;SALDO Fatt.n. 5268/PA  del 26/10/2017 Servizio di assistenza sociale e domiciliare mese di settembre 2017;10-11-2017;6990;0;436;1;Spese correnti;3;Acquisto di beni e servizi;2;Acquisto di servizi;15;Contratti di servizio pubblico;9;Contratti di servizio di assistenza sociale domiciliare;10-11-2017;
965;1;0;"173,75";"173,75";CENTRO VENETO SERVIZI S.P.A.;Z311381BD7;SALDO Fatt.n. 2017356871  del 16/10/2017 Fornitura acqua potabile utenza Polo Scolastico (048 000698) periodo dal 01.05.2017 al 30.09.2017;10-11-2017;31801;0;53;1;Spese correnti;3;Acquisto di beni e servizi;2;Acquisto di servizi;5;Utenze e canoni;5;Acqua;10-11-2017;
966;1;0;"270,02";"270,02";CENTRO VENETO SERVIZI S.P.A.;Z311381BD7;ACCONTO Fatt.n. 2017356281  del 16/10/2017 Fornitura acqua potabile utenza Polo Scolastico conguaglio periodo dal 01.07.2016 al 30.09.2017;10-11-2017;29701;0;52;1;Spese correnti;3;Acquisto di beni e servizi;2;Acquisto di servizi;5;Utenze e canoni;5;Acqua;10-11-2017;
967;1;0;"270,00";"270,00";CENTRO VENETO SERVIZI S.P.A.;Z311381BD7;SALDO Fatt.n. 2017356281  del 16/10/2017 Fornitura acqua potabile utenza Polo Scolastico conguaglio periodo dal 01.07.2016 al 30.09.2017;10-11-2017;28001;0;51;1;Spese correnti;3;Acquisto di beni e servizi;2;Acquisto di servizi;5;Utenze e canoni;5;Acqua;10-11-2017;
968;1;0;"176,25";"176,25";CENTRO VENETO SERVIZI S.P.A.;Z311381BD7;SALDO Fatt.n. 2017356532  del 16/10/2017 Fornitura acqua potabile utenza Sede Municipale periodo dal 01.05.2017 al 30.09.2017;10-11-2017;4751;0;50;1;Spese correnti;3;Acquisto di beni e servizi;2;Acquisto di servizi;5;Utenze e canoni;5;Acqua;10-11-2017;
969;1;0;"138,58";"138,58";CENTRO VENETO SERVIZI S.P.A.;Z311381BD7;SALDO Fatt.n. 2017356434  del 16/10/2017 Fornitura acqua potabile utenza impianto sportivo Via Marconi periodo dal 01.05.2017 al 30.09.2017;10-11-2017;64981;0;55;1;Spese correnti;3;Acquisto di beni e servizi;2;Acquisto di servizi;5;Utenze e canoni;5;Acqua;10-11-2017;
970;1;0;"15,14";"82,75";CENTRO VENETO SERVIZI S.P.A.;Z311381BD7;SALDO Fatt.n. 2017357022  del 16/10/2017 Fornitura acqua potabile utenza cimitero Zovon periodo dal 01.06.2017 al 30.09.2017;10-11-2017;51801;0;56;1;Spese correnti;3;Acquisto di beni e servizi;2;Acquisto di servizi;5;Utenze e canoni;5;Acqua;10-11-2017;
970;2;0;"20,20";"82,75";CENTRO VENETO SERVIZI S.P.A.;Z311381BD7;SALDO Fatt.n. 2017357356  del 16/10/2017 Fornitura acqua potabile utenza cimitero Vo Vecchio periodo dal 01.06.2017 al 30.09.2017;10-11-2017;51801;0;56;1;Spese correnti;3;Acquisto di beni e servizi;2;Acquisto di servizi;5;Utenze e canoni;5;Acqua;10-11-2017;
970;3;0;"21,05";"82,75";CENTRO VENETO SERVIZI S.P.A.;Z311381BD7;SALDO Fatt.n. 2017356397  del 16/10/2017 Fornitura acqua potabile utenza cimitero Cortela periodo dal 01.05.2017 al 30.09.2017;10-11-2017;51801;0;56;1;Spese correnti;3;Acquisto di beni e servizi;2;Acquisto di servizi;5;Utenze e canoni;5;Acqua;10-11-2017;
970;4;0;"26,36";"82,75";CENTRO VENETO SERVIZI S.P.A.;Z311381BD7;SALDO Fatt.n. 2017356419  del 16/10/2017 Fornitura acqua potabile utenza cimitero in Via Ca Sceriman periodo dal 01.05.2017 al 30.09.2017;10-11-2017;51801;0;56;1;Spese correnti;3;Acquisto di beni e servizi;2;Acquisto di servizi;5;Utenze e canoni;5;Acqua;10-11-2017;
971;1;0;"52,35";"52,35";CENTRO VENETO SERVIZI S.P.A.;Z311381BD7;SALDO Fatt.n. 2017357575  del 16/10/2017 Fornitura acqua potabile utenza magazzino periodo dal 01.05.2017 al 30.09.2017;10-11-2017;1450;0;57;1;Spese correnti;3;Acquisto di beni e servizi;2;Acquisto di servizi;5;Utenze e canoni;5;Acqua;10-11-2017;
972;1;0;"15,14";"45,07";CENTRO VENETO SERVIZI S.P.A.;Z311381BD7;SALDO Fatt.n. 2017357021  del 16/10/2017 Fornitura acqua potabile utenza ex scuola Zovon periodo dal 01.07.2016 al 30.09.2017;10-11-2017;1330;0;54;1;Spese correnti;3;Acquisto di beni e servizi;2;Acquisto di servizi;5;Utenze e canoni;5;Acqua;10-11-2017;
972;2;0;"29,93";"45,07";CENTRO VENETO SERVIZI S.P.A.;Z311381BD7;SALDO Fatt.n. 2017357347  del 16/10/2017 Fornitura acqua potabile utenza ex scuola Vo Vecchio periodo dal 01.06.2017 al 30.09.2017;10-11-2017;1330;0;54;1;Spese correnti;3;Acquisto di beni e servizi;2;Acquisto di servizi;5;Utenze e canoni;5;Acqua;10-11-2017;
973;1;0;"29,62";"29,62";CENTRO VENETO SERVIZI S.P.A.;Z311381BD7;SALDO Fatt.n. 2017357348  del 16/10/2017 Fornitura acqua potabile utenza Villa Venier periodo dal 01.06.2017 al 30.09.2017;10-11-2017;1312;0;58;1;Spese correnti;3;Acquisto di beni e servizi;2;Acquisto di servizi;5;Utenze e canoni;5;Acqua;10-11-2017;
974;1;0;"15,14";"126,18";CENTRO VENETO SERVIZI S.P.A.;Z311381BD7;SALDO Fatt.n. 2017357367  del 16/10/2017 Fornitura acqua potabile utenza Via Vasche periodo dal 01.06.2017 al 30.09.2017;10-11-2017;1350;0;60;1;Spese correnti;3;Acquisto di beni e servizi;2;Acquisto di servizi;5;Utenze e canoni;5;Acqua;10-11-2017;
974;2;0;"15,14";"126,18";CENTRO VENETO SERVIZI S.P.A.;Z311381BD7;SALDO Fatt.n. 2017357260  del 16/10/2017 Fornitura acqua potabile utenza Via Vo Di Sotto periodo dal 01.06.2017 al 30.09.2017;10-11-2017;1350;0;60;1;Spese correnti;3;Acquisto di beni e servizi;2;Acquisto di servizi;5;Utenze e canoni;5;Acqua;10-11-2017;
974;3;0;"15,14";"126,18";CENTRO VENETO SERVIZI S.P.A.;Z311381BD7;SALDO Fatt.n. 2017357017  del 16/10/2017 Fornitura acqua potabile utenza Via 4 Novembre periodo dal 01.06.2017 al 30.09.2017;10-11-2017;1350;0;60;1;Spese correnti;3;Acquisto di beni e servizi;2;Acquisto di servizi;5;Utenze e canoni;5;Acqua;10-11-2017;
974;4;0;"16,78";"126,18";CENTRO VENETO SERVIZI S.P.A.;Z311381BD7;SALDO Fatt.n. 2017356464  del 16/10/2017 Fornitura acqua potabile utenza Via Carducci periodo dal 01.05.2017 al 30.09.2017;10-11-2017;1350;0;60;1;Spese correnti;3;Acquisto di beni e servizi;2;Acquisto di servizi;5;Utenze e canoni;5;Acqua;10-11-2017;
974;5;0;"18,34";"126,18";CENTRO VENETO SERVIZI S.P.A.;Z311381BD7;SALDO Fatt.n. 2017357196  del 16/10/2017 Fornitura acqua potabile utenza Fontanella pubblica piazza B.Santimaria periodo dal 01.06.2017 al 30.09.2017;10-11-2017;1350;0;60;1;Spese correnti;3;Acquisto di beni e servizi;2;Acquisto di servizi;5;Utenze e canoni;5;Acqua;10-11-2017;
974;6;0;"45,64";"126,18";CENTRO VENETO SERVIZI S.P.A.;Z311381BD7;SALDO Fatt.n. 2017356608  del 16/10/2017 Fornitura acqua potabile utenza via Monte Castellaro periodo dal 01.05.2017 al 30.09.2017;10-11-2017;1350;0;60;1;Spese correnti;3;Acquisto di beni e servizi;2;Acquisto di servizi;5;Utenze e canoni;5;Acqua;10-11-2017;
975;1;0;"95,36";"95,36";Vodafone Italia S.p.A.;ZD11381BD3;ACCONTO Fatt.n. AH17649311  del 04/10/2017 Spese per telefonia mobile periodo dal 05.08.2017 al 29.09.2017;15-11-2017;4751;0;73;1;Spese correnti;3;Acquisto di beni e servizi;2;Acquisto di servizi;5;Utenze e canoni;2;Telefonia mobile;15-11-2017;
976;1;0;"543,14";"543,14";Vodafone Italia S.p.A.;Z941E11750;ACCONTO Fatt.n. AH17649311  del 04/10/2017 Spese telefoniche utenza Sede Municipale periodo dal 05.08.2017 al 29.09.2017;15-11-2017;4751;0;143;1;Spese correnti;3;Acquisto di beni e servizi;2;Acquisto di servizi;5;Utenze e canoni;1;Telefonia fissa;15-11-2017;
977;1;0;"97,36";"97,36";Vodafone Italia S.p.A.;Z941E11750;ACCONTO Fatt.n. AH17649311  del 04/10/2017 Spese telefoniche utenza Villa Venier periodo dal 05.08.2017 al 29.09.2017;15-11-2017;1312;0;139;1;Spese correnti;3;Acquisto di beni e servizi;2;Acquisto di servizi;5;Utenze e canoni;1;Telefonia fissa;15-11-2017;
978;1;0;"85,16";"85,16";Vodafone Italia S.p.A.;Z941E11750;ACCONTO Fatt.n. AH17649311  del 04/10/2017 Spese telefoniche utenza Biblioteca Comunale periodo dal 05.08.2017 al 29.09.2017;15-11-2017;3761;0;144;1;Spese correnti;3;Acquisto di beni e servizi;2;Acquisto di servizi;5;Utenze e canoni;1;Telefonia fissa;15-11-2017;
979;1;0;"175,68";"175,68";Vodafone Italia S.p.A.;Z941E11750;ACCONTO Fatt.n. AH17649311  del 04/10/2017 Spese telefoniche utenza Scuola Infanzia periodo dal 05.08.2017 al 29.09.2017;15-11-2017;28001;0;140;1;Spese correnti;3;Acquisto di beni e servizi;2;Acquisto di servizi;5;Utenze e canoni;1;Telefonia fissa;15-11-2017;
980;1;0;"175,68";"175,68";Vodafone Italia S.p.A.;Z941E11750;ACCONTO Fatt.n. AH17649311  del 04/10/2017 Spese telefoniche utenza Scuola Primaria periodo dal 05.08.2017 al 29.09.2017;15-11-2017;29701;0;141;1;Spese correnti;3;Acquisto di beni e servizi;2;Acquisto di servizi;5;Utenze e canoni;1;Telefonia fissa;15-11-2017;
981;1;0;"175,68";"175,68";Vodafone Italia S.p.A.;Z941E11750;SALDO Fatt.n. AH17649311  del 04/10/2017 Spese telefoniche utenza Scuola Secondaria di primo grado periodo dal 05.08.2017 al 29.09.2017;15-11-2017;31801;0;142;1;Spese correnti;3;Acquisto di beni e servizi;2;Acquisto di servizi;5;Utenze e canoni;1;Telefonia fissa;15-11-2017;
982;1;0;"350,16";"350,16";MyO srl;Z8D20AAB5B;SALDO Fatt.n. 2040/170027468  del 10/11/2017 Fornitura cancelleria;16-11-2017;4753;0;338;1;Spese correnti;3;Acquisto di beni e servizi;1;Acquisto di beni;2;Altri beni di consumo;1;"Carta, cancelleria e stampati";16-11-2017;
983;1;0;"4.169,00";"4.169,00";COOPERATIVA SOCIALE SERVIZI ASSOCIATI;7079166895;SALDO Fatt.n. D-379  del 31/10/2017 Servizio di trasporto scolastico ottobre 2017;16-11-2017;3413;0;279;1;Spese correnti;3;Acquisto di beni e servizi;2;Acquisto di servizi;15;Contratti di servizio pubblico;2;Contratti di servizio di trasporto scolastico;16-11-2017;
984;1;0;"1.207,80";"1.207,80";BOGONI s.r.l.;Z442068D49;SALDO Fatt.n. PA00004  del 27/10/2017 Fornitura gasolio da riscaldamento impianti sportivi;16-11-2017;6498;0;323;1;Spese correnti;3;Acquisto di beni e servizi;1;Acquisto di beni;2;Altri beni di consumo;999;Altri beni e materiali di consumo n.a.c.;16-11-2017;
985;1;0;"250,00";"1.100,00";OMESSO NOMINATIVO NEL RISPETTO DELLA NORMATIVA SULLA PROTEZIONE DATI PERSONALI; ;Contributi economici straordinari anno 2017 - A.L. AC N. 200 DEL 14.11.2017;16-11-2017;6935;0;342;1;Spese correnti;4;Trasferimenti correnti;2;Trasferimenti correnti a Famiglie;5;Altri trasferimenti a famiglie;999;Altri trasferimenti a famiglie n.a.c.;16-11-2017;
985;2;0;"500,00";"1.100,00";OMESSO NOMINATIVO NEL RISPETTO DELLA NORMATIVA SULLA PROTEZIONE DATI PERSONALI; ;Contributi economici straordinari anno 2017 - A.L. AC N. 200 DEL 14.11.2017;16-11-2017;6935;0;342;1;Spese correnti;4;Trasferimenti correnti;2;Trasferimenti correnti a Famiglie;5;Altri trasferimenti a famiglie;999;Altri trasferimenti a famiglie n.a.c.;16-11-2017;
985;3;0;"350,00";"1.100,00";OMESSO NOMINATIVO NEL RISPETTO DELLA NORMATIVA SULLA PROTEZIONE DATI PERSONALI; ;Contributi economici straordinari anno 2017 - A.L. AC N. 200 DEL 14.11.2017;16-11-2017;6935;0;342;1;Spese correnti;4;Trasferimenti correnti;2;Trasferimenti correnti a Famiglie;5;Altri trasferimenti a famiglie;999;Altri trasferimenti a famiglie n.a.c.;16-11-2017;
986;1;0;"13.323,94";"13.323,94";DE VIZIA TRANSFER S.P.A.;6848933E4B;SALDO Fatt.n. V3-31567  del 31/10/2017 Servizio di trasporto e raccolta rifiuti mese di ottobre 2017;16-11-2017;5780;0;18;1;Spese correnti;3;Acquisto di beni e servizi;2;Acquisto di servizi;15;Contratti di servizio pubblico;4;Contratti di servizio per la raccolta rifiuti;16-11-2017;
987;1;0;"14.300,00";"14.300,00";COSTRUZIONI LOVATO SRL;ZBD2061AD4;SALDO Fatt.n. 61/PA  del 07/11/2017 Asfaltature straordinarie  via Bagnara Alta e Bassa;16-11-2017;11820;0;325;2;Spese in conto capitale;2;Investimenti fissi lordi e acquisto di terreni;1;Beni materiali;9;Beni immobili;12;Infrastrutture stradali;16-11-2017;
988;1;0;"1.045,00";"1.045,00";ZEFIRO SRL;Z3D1A45638;ACCONTO Fatt.n. 44/PA  del 31/10/2017 Servizio di pulizia edifici comunali MESE di OTTOBRE 2017;16-11-2017;475;0;393;1;Spese correnti;3;Acquisto di beni e servizi;2;Acquisto di servizi;99;Altri servizi;999;Altri servizi diversi n.a.c.;16-11-2017;
989;1;0;"262,18";"262,18";ZEFIRO SRL;Z3D1A45638;ACCONTO Fatt.n. 44/PA  del 31/10/2017 Servizio di pulizia edifici comunali MESE di OTTOBRE 2017;16-11-2017;2973;0;394;1;Spese correnti;3;Acquisto di beni e servizi;2;Acquisto di servizi;99;Altri servizi;999;Altri servizi diversi n.a.c.;16-11-2017;
990;1;0;"294,75";"294,75";ZEFIRO SRL;Z3D1A45638;ACCONTO Fatt.n. 44/PA  del 31/10/2017 Servizio di pulizia edifici comunali MESE di OTTOBRE 2017;16-11-2017;37601;0;395;1;Spese correnti;3;Acquisto di beni e servizi;2;Acquisto di servizi;99;Altri servizi;999;Altri servizi diversi n.a.c.;16-11-2017;
991;1;0;"174,85";"174,85";ZEFIRO SRL;Z3D1A45638;SALDO Fatt.n. 44/PA  del 31/10/2017 Servizio di pulizia edifici comunali MESE di OTTOBRE 2017;16-11-2017;1400;0;396;1;Spese correnti;3;Acquisto di beni e servizi;2;Acquisto di servizi;9;Manutenzione ordinaria e riparazioni;8;Manutenzione ordinaria e riparazioni di beni immobili;16-11-2017;
992;1;0;"734,93";"734,93";VENETA SICUREZZA E SEGNALETICA STRADALE  SRL;Z3F201090B;SALDO Fatt.n. 115  del 20/10/2017 Fornitura segnaletica verticale;16-11-2017;11821;0;298;2;Spese in conto capitale;2;Investimenti fissi lordi e acquisto di terreni;1;Beni materiali;99;Altri beni materiali;999;Altri beni materiali diversi;16-11-2017;
993;1;0;"29,80";"29,80";Busitalia Veneto spa; ;ACCONTO Fatt.n. 8121000575  del 30/10/2017 CONTRIBUTO ABBONAMENTI 3 TRIMESTRE 2017;16-11-2017;6935;0;19;1;Spese correnti;4;Trasferimenti correnti;2;Trasferimenti correnti a Famiglie;5;Altri trasferimenti a famiglie;999;Altri trasferimenti a famiglie n.a.c.;16-11-2017;
994;1;0;"3,35";"3,35";Busitalia Veneto spa; ;SALDO Fatt.n. 8121000575  del 30/10/2017 CONTRIBUTO ABBONAMENTI 3 TRIMESTRE 2017;16-11-2017;6935;0;345;1;Spese correnti;4;Trasferimenti correnti;2;Trasferimenti correnti a Famiglie;5;Altri trasferimenti a famiglie;999;Altri trasferimenti a famiglie n.a.c.;16-11-2017;
995;1;0;"3.418,44";"3.418,44";Sodexo Italia Spa;64630250F4;SALDO Fatt.n. 6400046424  del 31/10/2017 Pasti forniti a bambini scuole elementari;16-11-2017;3404;0;45;1;Spese correnti;3;Acquisto di beni e servizi;2;Acquisto di servizi;15;Contratti di servizio pubblico;6;Contratti di servizio per le mense scolastiche;16-11-2017;
996;1;0;"3.385,39";"3.385,39";Sodexo Italia Spa;64630250F4;SALDO Fatt.n. 6400046425  del 31/10/2017 Fornitura pasti alunni scuole elementari;16-11-2017;3406;0;46;1;Spese correnti;3;Acquisto di beni e servizi;2;Acquisto di servizi;15;Contratti di servizio pubblico;6;Contratti di servizio per le mense scolastiche;16-11-2017;
997;1;0;"50,39";"50,39";Sodexo Italia Spa;64630250F4;ACCONTO Fatt.n. 6400041087  del 30/09/2017 Servizio di sorveglianza refettorio settembre 2017;16-11-2017;3406;0;78;1;Spese correnti;3;Acquisto di beni e servizi;2;Acquisto di servizi;15;Contratti di servizio pubblico;6;Contratti di servizio per le mense scolastiche;16-11-2017;
998;1;0;"49,59";"499,50";Sodexo Italia Spa; ;SALDO Fatt.n. 6400041087  del 30/09/2017 Servizio di sorveglianza refettorio settembre 2017;16-11-2017;3406;0;332;1;Spese correnti;3;Acquisto di beni e servizi;2;Acquisto di servizi;15;Contratti di servizio pubblico;6;Contratti di servizio per le mense scolastiche;16-11-2017;
998;2;0;"449,91";"499,50";Sodexo Italia Spa;64630250F4;SALDO Fatt.n. 6400046426  del 31/10/2017 Servizio di sorveglianza refettorio mese di ottobre 2017;16-11-2017;3406;0;332;1;Spese correnti;3;Acquisto di beni e servizi;2;Acquisto di servizi;15;Contratti di servizio pubblico;6;Contratti di servizio per le mense scolastiche;16-11-2017;
999;1;0;"48,76";"48,76";E.ON Energia S.p.a.;Z7113FE6B2;SALDO Fatt.n. 40009580  del 02/11/2017 Fornitura gas naturale utenza Polo Scolastico mese di settembre 2017;16-11-2017;28001;0;63;1;Spese correnti;3;Acquisto di beni e servizi;2;Acquisto di servizi;5;Utenze e canoni;6;Gas;16-11-2017;
1000;1;0;"46,53";"46,53";E.ON Energia S.p.a.;Z7113FE6B2;SALDO Fatt.n. 40009606  del 02/11/2017 Fornitura gas naturale utenza Villa Venier mese di settembre 2017;16-11-2017;1312;0;66;1;Spese correnti;3;Acquisto di beni e servizi;2;Acquisto di servizi;5;Utenze e canoni;6;Gas;16-11-2017;
1001;1;0;"42,55";"42,55";E.ON Energia S.p.a.;Z7113FE6B2;SALDO Fatt.n. 40009579  del 02/11/2017 Fornitura gas naturale utenza sede Municpale (contatore 1545006563) mese di settembre 2017;16-11-2017;4751;0;62;1;Spese correnti;3;Acquisto di beni e servizi;2;Acquisto di servizi;5;Utenze e canoni;6;Gas;16-11-2017;
1028;1;0;"48,03";"1.441,99";I.C.A. IMPOSTE COMUNALI AFFINI;Z291C60108;"SALDO Fatt.n. FE0002237  del 20/10/2017 Aggio per servizio di liquidazione, accertamento e riscossione dell'imposta comunale sulla pubblicità e dei diritti sulle pubbliche affissioni  - terzo trimestre 2017";23-11-2017;1480;0;326;1;Spese correnti;3;Acquisto di beni e servizi;2;Acquisto di servizi;3;Aggi di riscossione;999;Altri aggi di riscossione n.a.c.;23-11-2017;
1028;2;0;"109,73";"1.441,99";I.C.A. IMPOSTE COMUNALI AFFINI;Z291C60108;"SALDO Fatt.n. FE0002236  del 20/10/2017 Aggio per servizio di liquidazione, accertamento e riscossione dell'imposta comunale sulla pubblicità e dei diritti sulle pubbliche affissioni  - terzo trimestre 2017";23-11-2017;1480;0;326;1;Spese correnti;3;Acquisto di beni e servizi;2;Acquisto di servizi;3;Aggi di riscossione;999;Altri aggi di riscossione n.a.c.;23-11-2017;
1028;3;0;"1.284,23";"1.441,99";I.C.A. IMPOSTE COMUNALI AFFINI;Z291C60108;"SALDO Fatt.n. FE0002235  del 20/10/2017 Aggio per servizio di liquidazione, accertamento e riscossione dell'imposta comunale sulla pubblicita e dei diritti sulle pubbliche affissioni  - terzo trimestre 2017";23-11-2017;1480;0;326;1;Spese correnti;3;Acquisto di beni e servizi;2;Acquisto di servizi;3;Aggi di riscossione;999;Altri aggi di riscossione n.a.c.;23-11-2017;
1029;1;0;"5.500,00";"5.500,00";COSTRUZIONI LOVATO SRL;ZBD2061AD4;SALDO Fatt.n. 68/PA  del 21/11/2017 Lavori di asfaltature straordinarie Via Bagnara Alta e Bassa;24-11-2017;7335;0;361;1;Spese correnti;3;Acquisto di beni e servizi;2;Acquisto di servizi;9;Manutenzione ordinaria e riparazioni;8;Manutenzione ordinaria e riparazioni di beni immobili;24-11-2017;
1030;1;0;"750,00";"750,00";CASA DI RIPOSO "A. SIMIONATI"; ;SALDO Fatt.n. 134/E  del 31/10/2017 Retta ricoevero R.R. mese di ottobre 2017;24-11-2017;6875;0;243;1;Spese correnti;3;Acquisto di beni e servizi;2;Acquisto di servizi;99;Altri servizi;999;Altri servizi diversi n.a.c.;24-11-2017;
1031;1;0;"8.839,55";"8.839,55";S.E.S.A. SPA;Z11182D6F2;SALDO Fatt.n. 2000994  del 31/10/2017;24-11-2017;5780;0;74;1;Spese correnti;3;Acquisto di beni e servizi;2;Acquisto di servizi;15;Contratti di servizio pubblico;4;Contratti di servizio per la raccolta rifiuti;24-11-2017;
1032;1;0;"2.858,20";"2.858,20";MARTINI LUCIANO SRL;Z70188CBBO;ACCONTO Fatt.n. 16/EL  del 21/11/2017 Saldo lavori manutenzioni stradali mese di settembre 2017;24-11-2017;7335;0;268;1;Spese correnti;3;Acquisto di beni e servizi;2;Acquisto di servizi;9;Manutenzione ordinaria e riparazioni;8;Manutenzione ordinaria e riparazioni di beni immobili;24-11-2017;
1033;1;0;"734,27";"734,27";MARTINI LUCIANO SRL;Z70188CBBO;SALDO Fatt.n. 16/EL  del 21/11/2017 Saldo lavori manutenzioni stradali mese di settembre 2017;24-11-2017;1302;0;356;1;Spese correnti;3;Acquisto di beni e servizi;2;Acquisto di servizi;9;Manutenzione ordinaria e riparazioni;8;Manutenzione ordinaria e riparazioni di beni immobili;24-11-2017;
1034;1;0;"1.159,00";"1.159,00";Sicurya s.r.l.;Z1F19ABFDD;SALDO Fatt.n. 0000025/PA  del 31/10/2017 Saldo 50% compenso R.S.P.P. anno 2017;24-11-2017;785;0;355;1;Spese correnti;3;Acquisto di beni e servizi;2;Acquisto di servizi;4;Acquisto di servizi per formazione e addestramento del personale dell'ente;4;Acquisto di servizi per formazione obbligatoria;24-11-2017;
1035;1;0;"537,15";"537,15";POSTE ITALIANE SPA;Z961438A4F;ACCONTO Fatt.n. 8717353321  del 17/11/2017 Fattura Elettronica relativa all'Identificativo Rendiconto 2094417501;24-11-2017;4800;0;165;1;Spese correnti;3;Acquisto di beni e servizi;2;Acquisto di servizi;16;Servizi amministrativi;2;Spese postali;24-11-2017;
1036;1;0;"1.000,00";"1.000,00";POSTE ITALIANE SPA;Z961438A4F;ACCONTO Fatt.n. 8717353321  del 17/11/2017 Fattura Elettronica relativa all'Identificativo Rendiconto 2094417501;24-11-2017;4800;0;286;1;Spese correnti;3;Acquisto di beni e servizi;2;Acquisto di servizi;16;Servizi amministrativi;2;Spese postali;24-11-2017;
1037;1;0;"225,41";"225,41";POSTE ITALIANE SPA;Z961438A4F;SALDO Fatt.n. 8717353321  del 17/11/2017 Fattura Elettronica relativa all'Identificativo Rendiconto 2094417501;24-11-2017;4800;0;327;1;Spese correnti;3;Acquisto di beni e servizi;2;Acquisto di servizi;16;Servizi amministrativi;2;Spese postali;24-11-2017;
1038;1;0;"341,60";"341,60";MANDRUZZATO MARMI S.n.c. di Mandruzzato Bruno  & Andrea;Z4C1FEEE59;SALDO Fatt.n. 000001-2017-PA  del 13/11/2017 Fornitura n. 4  piastre di marmo copri-loculo;24-11-2017;5180;0;295;1;Spese correnti;3;Acquisto di beni e servizi;1;Acquisto di beni;2;Altri beni di consumo;999;Altri beni e materiali di consumo n.a.c.;24-11-2017;
1039;1;0;"50,00";"50,00";ASSOCIAZIONE BANCO ALIMENTARE DEL VENETO ONLUS; ;Contributo per attivita di recupero eccedenze alimentari anno 2017 - a.l. AC N. 2017 DEL 20.11.2017;24-11-2017;7200;0;346;1;Spese correnti;4;Trasferimenti correnti;4;Trasferimenti correnti a Istituzioni Sociali Private;1;Trasferimenti correnti a Istituzioni Sociali Private;1;Trasferimenti correnti a Istituzioni Sociali Private;24-11-2017;
1040;1;0;"150,00";"150,00";ASSOCIAZIONE BANCO ALIMENTARE DEL VENETO ONLUS; ; ;24-11-2017;6875;0;347;1;Spese correnti;3;Acquisto di beni e servizi;2;Acquisto di servizi;99;Altri servizi;999;Altri servizi diversi n.a.c.;24-11-2017;
1041;1;0;"500,00";"500,00";CONSORZIO BIBLIOTECARIO DI ABANO TERME; ;Contributo per acquisto centralizzato libri;24-11-2017;3760;0;344;1;Spese correnti;3;Acquisto di beni e servizi;2;Acquisto di servizi;99;Altri servizi;999;Altri servizi diversi n.a.c.;24-11-2017;
1042;1;0;"1.200,00";"2.400,00";OMESSO NOMINATIVO NEL RISPETTO DELLA NORMATIVA SULLA PROTEZIONE DATI PERSONALI; ; ;24-11-2017;6710;0;358;1;Spese correnti;4;Trasferimenti correnti;2;Trasferimenti correnti a Famiglie;5;Altri trasferimenti a famiglie;999;Altri trasferimenti a famiglie n.a.c.;24-11-2017;
1042;2;0;"1.200,00";"2.400,00";OMESSO NOMINATIVO NEL RISPETTO DELLA NORMATIVA SULLA PROTEZIONE DATI PERSONALI; ; ;24-11-2017;6710;0;358;1;Spese correnti;4;Trasferimenti correnti;2;Trasferimenti correnti a Famiglie;5;Altri trasferimenti a famiglie;999;Altri trasferimenti a famiglie n.a.c.;24-11-2017;
1043;1;0;"96,20";"96,20";Illumia S.p.A.; ;SALDO Fatt.n. 10007-PE  del 25/10/2017 Fornitura energia elettrica utenza ex scuola Zovon periodo agosto / settembre 2017  -  provv. 126;27-11-2017;1330;0;291;1;Spese correnti;3;Acquisto di beni e servizi;2;Acquisto di servizi;5;Utenze e canoni;4;Energia elettrica;27-11-2017;
1044;1;0;"195,07";"195,07";Illumia S.p.A.;Z0E14167CF;SALDO Fatt.n. 10010-PE  del 25/10/2017 Fornitura energia elettrica utenza magazzino periodo agosto / settembre 2017  -  provv. 129;27-11-2017;1450;0;184;1;Spese correnti;3;Acquisto di beni e servizi;2;Acquisto di servizi;5;Utenze e canoni;4;Energia elettrica;27-11-2017;
1045;1;0;"104,68";"7.495,09";Illumia S.p.A.;Z0E14167CF;SALDO Fatt.n. 9657-PE  del 25/10/2017 Fornitura energia elettrica utenza torretta c/o Piazzetta Spolverato mese di settembre 2017  -  provv. 118;27-11-2017;7420;0;187;1;Spese correnti;3;Acquisto di beni e servizi;2;Acquisto di servizi;5;Utenze e canoni;4;Energia elettrica;27-11-2017;
1045;2;0;"116,17";"7.495,09";Illumia S.p.A.;Z0E14167CF;SALDO Fatt.n. 9653-PE  del 25/10/2017 Fornitura energia elettrica utenza illuminazione pubblica (POD IT001E04199192)  periodo agosto / settembre 2017  -  provv. 113;27-11-2017;7420;0;187;1;Spese correnti;3;Acquisto di beni e servizi;2;Acquisto di servizi;5;Utenze e canoni;4;Energia elettrica;27-11-2017;
1045;3;0;"142,86";"7.495,09";Illumia S.p.A.;Z0E14167CF;SALDO Fatt.n. 10008-PE  del 25/10/2017 Fornitura energia elettrica utenza lottizzazione Canaletto (POD IT001E33625246) periodo agosto / settembre 2017  -  provv. 123;27-11-2017;7420;0;187;1;Spese correnti;3;Acquisto di beni e servizi;2;Acquisto di servizi;5;Utenze e canoni;4;Energia elettrica;27-11-2017;
1045;4;0;"182,60";"7.495,09";Illumia S.p.A.;Z0E14167CF;SALDO Fatt.n. 9945-PE  del 25/10/2017 Fornitura energia elettrica utenza illuminazione pubblica Piazzetta Martiri (POD IT001E32268714) mese di settembre 2017  -  provv. 121;27-11-2017;7420;0;187;1;Spese correnti;3;Acquisto di beni e servizi;2;Acquisto di servizi;5;Utenze e canoni;4;Energia elettrica;27-11-2017;
1045;5;0;"6.948,78";"7.495,09";Illumia S.p.A.;Z0E14167CF;"SALDO Fatt.n. 9944-PE  del 25/10/2017 Fornitura energia elettrica utenze illuminazione pubblica periodo agosto / settembre 2017  -  provv, 127";27-11-2017;7420;0;187;1;Spese correnti;3;Acquisto di beni e servizi;2;Acquisto di servizi;5;Utenze e canoni;4;Energia elettrica;27-11-2017;
1046;1;0;"118,13";"465,20";Illumia S.p.A.;Z0E14167CF;SALDO Fatt.n. 9887-PE  del 25/10/2017 Fornitura energia elettrica utenza impianto sportivo Zovon mese di settembre 2017  -  provv. 125;27-11-2017;64981;0;183;1;Spese correnti;3;Acquisto di beni e servizi;2;Acquisto di servizi;5;Utenze e canoni;4;Energia elettrica;27-11-2017;
1046;2;0;"347,07";"465,20";Illumia S.p.A.;Z0E14167CF;SALDO Fatt.n. 9863-PE  del 25/10/2017 Fornitura energia elettrica utenza impianto sportivo Via Marconi mese di settembre 2017  -  provv. 117;27-11-2017;64981;0;183;1;Spese correnti;3;Acquisto di beni e servizi;2;Acquisto di servizi;5;Utenze e canoni;4;Energia elettrica;27-11-2017;
1047;1;0;"60,37";"229,31";Illumia S.p.A.;Z0E14167CF;SALDO Fatt.n. 9884-PE  del 25/10/2017 Fornitura energia elettrica utenza Villa Venier (POD IT001E04020269) periodo agosto / settembre 2017  -  provv. 122;27-11-2017;1312;0;185;1;Spese correnti;3;Acquisto di beni e servizi;2;Acquisto di servizi;5;Utenze e canoni;4;Energia elettrica;27-11-2017;
1047;2;0;"72,93";"229,31";Illumia S.p.A.;Z0E14167CF;SALDO Fatt.n. 9886-PE  del 25/10/2017 Fornitura energia elettrica utenza Villa Venier (POD IT001E35511792) periodo agosto / settembre 2017  -  provv. 119;27-11-2017;1312;0;185;1;Spese correnti;3;Acquisto di beni e servizi;2;Acquisto di servizi;5;Utenze e canoni;4;Energia elettrica;27-11-2017;
1047;3;0;"96,01";"229,31";Illumia S.p.A.;Z0E14167CF;SALDO Fatt.n. 9888-PE  del 25/10/2017 Fornitura energia elettrica utenza Villa Venier (POD IT001E04020273) periodo agosto / settembre 2017  -  provv. 112;27-11-2017;1312;0;185;1;Spese correnti;3;Acquisto di beni e servizi;2;Acquisto di servizi;5;Utenze e canoni;4;Energia elettrica;27-11-2017;
1048;1;0;"72,93";"323,82";Illumia S.p.A.; ;SALDO Fatt.n. 10009-PE  del 25/10/2017 Fornitura energia elettrica utenza Villa Venier (POD IT001E35511782) periodo agosto / settembre 2017  -  provv. 128;27-11-2017;1312;0;293;1;Spese correnti;3;Acquisto di beni e servizi;2;Acquisto di servizi;5;Utenze e canoni;4;Energia elettrica;27-11-2017;
1048;2;0;"96,01";"323,82";Illumia S.p.A.; ;SALDO Fatt.n. 9652-PE  del 25/10/2017 Fornitura energia elettrica utenza Villa Venier (POD IT001E04020277) periodo agosto / settembre 2017  -  provv. 124;27-11-2017;1312;0;293;1;Spese correnti;3;Acquisto di beni e servizi;2;Acquisto di servizi;5;Utenze e canoni;4;Energia elettrica;27-11-2017;
1048;3;0;"154,88";"323,82";Illumia S.p.A.; ;SALDO Fatt.n. 9655-PE  del 25/10/2017 Fornitura energia elettrica utenza Villa venier (POD IT001E34674161) mese di settembre 2017  -  provv. 115;27-11-2017;1312;0;293;1;Spese correnti;3;Acquisto di beni e servizi;2;Acquisto di servizi;5;Utenze e canoni;4;Energia elettrica;27-11-2017;
1049;1;0;"310,40";"310,40";Illumia S.p.A.;Z0E14167CF;SALDO Fatt.n. 9654-PE  del 25/10/2017 Fornitura energia elettrica utenza immobile Piazzetta Martiri mese di settembre 2017  -  provv. 114;27-11-2017;1405;0;186;1;Spese correnti;3;Acquisto di beni e servizi;2;Acquisto di servizi;5;Utenze e canoni;4;Energia elettrica;27-11-2017;
1050;1;0;"277,84";"277,84";Illumia S.p.A.;Z0E14167CF;SALDO Fatt.n. 9656-PE  del 25/10/2017 Fornitura energia elettrica utenza Sede Municipale mese di settembre 2017  -  provv. 116;27-11-2017;4751;0;177;1;Spese correnti;3;Acquisto di beni e servizi;2;Acquisto di servizi;5;Utenze e canoni;4;Energia elettrica;27-11-2017;
1051;1;0;"274,50";"274,50";Illumia S.p.A.;Z0E14167CF;ACCONTO Fatt.n. 9885-PE  del 25/10/2017 Fornitura energia elettrica utenza Polo Scolastico mese di settembre 2017  -  provv. 120;27-11-2017;28001;0;178;1;Spese correnti;3;Acquisto di beni e servizi;2;Acquisto di servizi;5;Utenze e canoni;4;Energia elettrica;27-11-2017;
1052;1;0;"268,40";"268,40";Illumia S.p.A.;Z0E14167CF;ACCONTO Fatt.n. 9885-PE  del 25/10/2017 Fornitura energia elettrica utenza Polo Scolastico mese di settembre 2017  -  provv. 120;27-11-2017;29701;0;179;1;Spese correnti;3;Acquisto di beni e servizi;2;Acquisto di servizi;5;Utenze e canoni;4;Energia elettrica;27-11-2017;
1053;1;0;"266,83";"266,83";Illumia S.p.A.;Z0E14167CF;SALDO Fatt.n. 9885-PE  del 25/10/2017 Fornitura energia elettrica utenza Polo Scolastico mese di settembre 2017  -  provv.  120;27-11-2017;31801;0;180;1;Spese correnti;3;Acquisto di beni e servizi;2;Acquisto di servizi;5;Utenze e canoni;4;Energia elettrica;27-11-2017;
1056;1;0;"887,38";"887,38";TREVISAN VANESSA; ;Indennita di funzione spettante al Sindaco NOVEMBRE 2017;05-12-2017;10;0;9;1;Spese correnti;3;Acquisto di beni e servizi;2;Acquisto di servizi;1;Organi e incarichi istituzionali dell'amministrazione;1;Organi istituzionali dell'amministrazione - Indennità;05-12-2017;
1057;1;0;"177,48";"177,48";CALAON SIMONE; ;Indennita di funzione spettante al vice-sindaco NOVEMBRE 2017;05-12-2017;10;0;10;1;Spese correnti;3;Acquisto di beni e servizi;2;Acquisto di servizi;1;Organi e incarichi istituzionali dell'amministrazione;1;Organi istituzionali dell'amministrazione - Indennità;05-12-2017;
1058;1;0;"266,21";"266,21";SANTIMARIA ANDREA; ;Indennita di funzione assessore NOVEMBRE 2017;05-12-2017;10;0;11;1;Spese correnti;3;Acquisto di beni e servizi;2;Acquisto di servizi;1;Organi e incarichi istituzionali dell'amministrazione;1;Organi istituzionali dell'amministrazione - Indennità;05-12-2017;
1059;1;0;"266,21";"266,21";ZAVATTIERO AGOSTINO; ;Indennita di funzione assessore NOVEMBRE 2017;05-12-2017;10;0;13;1;Spese correnti;3;Acquisto di beni e servizi;2;Acquisto di servizi;1;Organi e incarichi istituzionali dell'amministrazione;1;Organi istituzionali dell'amministrazione - Indennità;05-12-2017;
1060;1;0;"133,11";"133,11";LAZZARETTO ROBERTA; ;Indennita di funzione assessore NOVEMBRE 2017;05-12-2017;10;0;12;1;Spese correnti;3;Acquisto di beni e servizi;2;Acquisto di servizi;1;Organi e incarichi istituzionali dell'amministrazione;1;Organi istituzionali dell'amministrazione - Indennità;05-12-2017;
1063;1;0;"182,10";"316,14";CALAON SIMONE; ;Rimborso spese viaggio agli amministratori comunali per novembre 2017 - A.L. AC N. 213 DEL 05.12.2017;05-12-2017;230;0;159;1;Spese correnti;3;Acquisto di beni e servizi;2;Acquisto di servizi;1;Organi e incarichi istituzionali dell'amministrazione;2;Organi istituzionali dell'amministrazione - Rimborsi;05-12-2017;
1063;2;0;"124,44";"316,14";LAZZARETTO ROBERTA; ;Rimborso spese viaggio agli amministratori comunali per novembre 2017 - A.L. AC N. 213 DEL 05.12.2017;05-12-2017;230;0;159;1;Spese correnti;3;Acquisto di beni e servizi;2;Acquisto di servizi;1;Organi e incarichi istituzionali dell'amministrazione;2;Organi istituzionali dell'amministrazione - Rimborsi;05-12-2017;
1063;3;0;"9,60";"316,14";TREVISAN VANESSA; ;Rimborso spese viaggio agli amministratori comunali per novembre 2017 - A.L. AC N. 213 DEL 05.12.2017;05-12-2017;230;0;159;1;Spese correnti;3;Acquisto di beni e servizi;2;Acquisto di servizi;1;Organi e incarichi istituzionali dell'amministrazione;2;Organi istituzionali dell'amministrazione - Rimborsi;05-12-2017;
1064;1;0;"22,25";"22,25";Libreria Atena di Zulian Giovanna; ;SALDO Fatt.n. 17/PA  del 16/10/2017 Fornitura libri di testo scuola primaria A.S. 2017/2018;05-12-2017;2950;0;348;1;Spese correnti;3;Acquisto di beni e servizi;1;Acquisto di beni;2;Altri beni di consumo;999;Altri beni e materiali di consumo n.a.c.;05-12-2017;
1065;1;0;"47,74";"47,74";Libreria Palladio di Omenetto Martina; ;SALDO Fatt.n. 16/PA  del 02/11/2017 Fornitura libri di testo scuola primaria A.S. 2017/2018;05-12-2017;2950;0;350;1;Spese correnti;3;Acquisto di beni e servizi;1;Acquisto di beni;2;Altri beni di consumo;999;Altri beni e materiali di consumo n.a.c.;05-12-2017;
1066;1;0;"21,27";"21,27";Cartoleria ed Edicola "Per Caso" di Brugnaro Claudia; ;SALDO Fatt.n. 3-E  del 06/11/2017 Fornitura libri di testo scuola primaria A.S. 2017/2018;05-12-2017;2950;0;352;1;Spese correnti;3;Acquisto di beni e servizi;1;Acquisto di beni;2;Altri beni di consumo;999;Altri beni e materiali di consumo n.a.c.;05-12-2017;
1067;1;0;"164,10";"164,10";Cartoleria Giulia di Fortuna Maria; ;SALDO Fatt.n. 2  del 07/11/2017 Fornitura libri di testo scuola primaria A.S. 2017/2018;05-12-2017;2950;0;349;1;Spese correnti;3;Acquisto di beni e servizi;1;Acquisto di beni;2;Altri beni di consumo;999;Altri beni e materiali di consumo n.a.c.;05-12-2017;
1068;1;0;"48,76";"48,76";Soranzo Elena; ;SALDO Fatt.n. 5  del 31/10/2017 Fornitura libri di testo scuola primaria A.S. 2017/2018;05-12-2017;2950;0;353;1;Spese correnti;3;Acquisto di beni e servizi;1;Acquisto di beni;2;Altri beni di consumo;999;Altri beni e materiali di consumo n.a.c.;05-12-2017;
1069;1;0;"3.037,80";"3.037,80";Boxxapps srl;Z091F3CBB7;SALDO Fatt.n. 1/170284  del 29/11/2017 X-storage X-server e X-antivirus anno 2017;05-12-2017;555;0;218;1;Spese correnti;3;Acquisto di beni e servizi;2;Acquisto di servizi;19;Servizi informatici e di telecomunicazioni;1;Gestione e manutenzione applicazioni;05-12-2017;
1070;1;0;"244,00";"244,00";TONIOLO S.R.L.;Z142OB3071;SALDO Fatt.n. FATTPA 44_17  del 27/11/2017 Riparazione colonnine in trachite del monumento ai caduti in Piazza Liberazione;05-12-2017;1302;0;343;1;Spese correnti;3;Acquisto di beni e servizi;2;Acquisto di servizi;9;Manutenzione ordinaria e riparazioni;8;Manutenzione ordinaria e riparazioni di beni immobili;05-12-2017;
1071;1;0;"1.346,10";"1.346,10";G.A.M. GonzagArredi Montessori srl;ZEB2061A7B;ACCONTO Fatt.n. FVIPA17-000777  del 30/11/2017 Fornitura aredi per biblioteca e scuole;05-12-2017;2970;0;324;1;Spese correnti;3;Acquisto di beni e servizi;1;Acquisto di beni;2;Altri beni di consumo;999;Altri beni e materiali di consumo n.a.c.;05-12-2017;
1072;1;0;"38,51";"38,51";G.A.M. GonzagArredi Montessori srl;ZEB2061A7B;SALDO Fatt.n. FVIPA17-000777  del 30/11/2017 Fornitura aredi per biblioteca e scuole;05-12-2017;2970;0;333;1;Spese correnti;3;Acquisto di beni e servizi;1;Acquisto di beni;2;Altri beni di consumo;999;Altri beni e materiali di consumo n.a.c.;05-12-2017;
1073;1;0;"2.509,06";"2.509,06";B & P s.r.l.; ;Rimborso contributo di costruzione relativo al permesso di costruzione n. 108/2003 - AL UTC N. 162 DEL 04.12.2017;05-12-2017;9500;0;368;2;Spese in conto capitale;5;Altre spese in conto capitale;4;Altri rimborsi in conto capitale di somme non dovute o incassate in eccesso;4;Rimborsi in conto capitale a Famiglie di somme non dovute o incassate in eccesso;1;Rimborsi in conto capitale a Famiglie di somme non dovute o incassate in eccesso;05-12-2017;
1077;1;0;"192,33";"192,33";MAGAZZINI AMBROSI S.A.S. DI AMBROSI FABIO E TIZIANA;ZC91E16A3B;SALDO Fatt.n. 18  del 27/11/2017 Fornitura articoli di ferramenta per lavori in economia;05-12-2017;1300;0;271;1;Spese correnti;3;Acquisto di beni e servizi;1;Acquisto di beni;2;Altri beni di consumo;999;Altri beni e materiali di consumo n.a.c.;05-12-2017;
1078;1;0;"113,86";"113,86";Tabaccheria n. 2 di Terzo Fernanda; ;SALDO Fatt.n. 4E  del 21/11/2017 FORNITURA DI LIBRI DI TESTO PER LE SCUOLE PRIMARIE ANNO SCOLASTICO 2017/2018;05-12-2017;2950;0;351;1;Spese correnti;3;Acquisto di beni e servizi;1;Acquisto di beni;2;Altri beni di consumo;999;Altri beni e materiali di consumo n.a.c.;05-12-2017;
1079;1;0;"3.763,62";"3.763,62";Cartoleria Raffaella di Zattarin Maria Grazia; ;SALDO Fatt.n. 1/PA  del 15/11/2017 Fornitura libri alunni scuole elementari;05-12-2017;2950;0;354;1;Spese correnti;3;Acquisto di beni e servizi;1;Acquisto di beni;2;Altri beni di consumo;999;Altri beni e materiali di consumo n.a.c.;05-12-2017;
1080;1;0;"13.323,94";"13.323,94";DE VIZIA TRANSFER S.P.A.;6848933E4B;SALDO Fatt.n. V3-31684  del 30/11/2017 Servizio di raccolta RSU mese di novembre 2017;05-12-2017;5780;0;18;1;Spese correnti;3;Acquisto di beni e servizi;2;Acquisto di servizi;15;Contratti di servizio pubblico;4;Contratti di servizio per la raccolta rifiuti;05-12-2017;
1082;1;0;"3,50";"3,50";Intesa Sanpaolo S.p.A.; ;Quota interessi finanziamento n. 00/0052147241 rata n. 16 scadenza 31.12.2017;05-12-2017;1309;0;192;1;Spese correnti;7;Interessi passivi;5;Interessi su Mutui e altri finanziamenti a medio lungo termine;4;Interessi passivi su finanziamenti a medio lungo termine a Imprese;999;Interessi passivi a altre imprese su finanziamenti a medio lungo termine;05-12-2017;
1084;1;0;"314,43";"314,43";DEXIA CREDIOP SPA; ;Quota interessi dei mutui in ammortamento avviso n. 0000150128 scadenza 31.12.2017;05-12-2017;7450;0;194;1;Spese correnti;7;Interessi passivi;5;Interessi su Mutui e altri finanziamenti a medio lungo termine;4;Interessi passivi su finanziamenti a medio lungo termine a Imprese;999;Interessi passivi a altre imprese su finanziamenti a medio lungo termine;05-12-2017;
1085;1;0;"480,11";"480,11";DEXIA CREDIOP SPA; ;Quota interessi dei mutui in ammortamento avviso n. 0000150128 scadenza 31.12.2017;05-12-2017;5685;0;195;1;Spese correnti;7;Interessi passivi;5;Interessi su Mutui e altri finanziamenti a medio lungo termine;4;Interessi passivi su finanziamenti a medio lungo termine a Imprese;999;Interessi passivi a altre imprese su finanziamenti a medio lungo termine;05-12-2017;
1086;1;0;"201,30";"201,30";DEXIA CREDIOP SPA; ;Quota interessi dei mutui in ammortamento avviso n. 0000150128 scadenza 31.12.2017;05-12-2017;5280;0;196;1;Spese correnti;7;Interessi passivi;5;Interessi su Mutui e altri finanziamenti a medio lungo termine;5;Interessi passivi su mutui e altri finanziamenti a medio lungo termine ad altri soggetti;999;Interessi passivi su mutui e altri finanziamenti a medio lungo termine ad altri soggetti;05-12-2017;
1090;1;0;"10.150,40";"10.150,40";BUGGIN ANTONIO;ZC616D9907;SALDO Fatt.n. FATTPA 31_17  del 11/12/2017 Acconto su compenso per redazione P.A.T.;12-12-2017;12000;0;358;2;Spese in conto capitale;5;Altre spese in conto capitale;99;Altre spese in conto capitale n.a.c.;99;Altre spese in conto capitale n.a.c.;999;Altre spese in conto capitale n.a.c.;12-12-2017;
1091;1;0;"8.976,76";"8.976,76";Schiavo Michele;Z241F018FF;SALDO Fatt.n. 000002-2017-PA1  del 27/11/2017 Liquidazione 50% compenso per progettazione riqualificazione energetica polo scolastico;12-12-2017;10390;0;205;2;Spese in conto capitale;2;Investimenti fissi lordi e acquisto di terreni;1;Beni materiali;9;Beni immobili;3;Fabbricati ad uso scolastico;12-12-2017;
1092;1;0;"3.172,00";"3.172,00";POLAB S.R.L.;ZC11B26AB4;SALDO Fatt.n. 97  del 30/11/2017 Acconto su redazione piano comunale antenne;12-12-2017;790;0;321;1;Spese correnti;3;Acquisto di beni e servizi;2;Acquisto di servizi;99;Altri servizi;999;Altri servizi diversi n.a.c.;12-12-2017;
1093;1;0;"732,00";"732,00";FIS FABBRICA ITALIANA SEMAFORI SRL;ZF820A09FC;SALDO Fatt.n. 331/PA  del 28/11/2017 SOSTITUZIONE DELL LANTERNA ROTTA ALL'IMPIANTO SEMAFORICO VIA G. MARCONI;12-12-2017;7395;0;336;1;Spese correnti;3;Acquisto di beni e servizi;2;Acquisto di servizi;99;Altri servizi;999;Altri servizi diversi n.a.c.;12-12-2017;
1094;1;0;"1.866,38";"1.866,38";CODESS SOCIALE;684143311D;ACCONTO Fatt.n. 6039/PA  del 01/12/2017 SERVIZIO DI ASSISTENZA SOCIALE E DOMICILIARE MESE DI OTTOBRE 2017;12-12-2017;6980;0;435;1;Spese correnti;3;Acquisto di beni e servizi;2;Acquisto di servizi;15;Contratti di servizio pubblico;9;Contratti di servizio di assistenza sociale domiciliare;12-12-2017;
1095;1;0;"2.716,19";"2.716,19";CODESS SOCIALE;684143311D;SALDO Fatt.n. 6039/PA  del 01/12/2017 SERVIZIO DI ASSISTENZA SOCIALE E DOMICILIARE MESE DI OTTOBRE 2017;12-12-2017;6990;0;436;1;Spese correnti;3;Acquisto di beni e servizi;2;Acquisto di servizi;15;Contratti di servizio pubblico;9;Contratti di servizio di assistenza sociale domiciliare;12-12-2017;
1096;1;0;"100,00";"1.250,00";BARBETTA DILETTA; ;Borsa di studio anno scolastico 2016/2017 a favore degli studenti meritevoli che hanno superato gli esami di terza media - a.l. ac n. 215 del 05.12.2015;12-12-2017;3415;0;382;1;Spese correnti;4;Trasferimenti correnti;2;Trasferimenti correnti a Famiglie;5;Altri trasferimenti a famiglie;999;Altri trasferimenti a famiglie n.a.c.;12-12-2017;
1096;2;0;"100,00";"1.250,00";BENATO GIORGIO; ;Borsa di studio anno scolastico 2016/2017 a favore degli studenti meritevoli che hanno superato gli esami di terza media - a.l. ac n. 215 del 05.12.2015;12-12-2017;3415;0;382;1;Spese correnti;4;Trasferimenti correnti;2;Trasferimenti correnti a Famiglie;5;Altri trasferimenti a famiglie;999;Altri trasferimenti a famiglie n.a.c.;12-12-2017;
1096;3;0;"100,00";"1.250,00";BERNARDI MANUEL; ;Borsa di studio anno scolastico 2016/2017 a favore degli studenti meritevoli che hanno superato gli esami di terza media - a.l. ac n. 215 del 05.12.2015;12-12-2017;3415;0;382;1;Spese correnti;4;Trasferimenti correnti;2;Trasferimenti correnti a Famiglie;5;Altri trasferimenti a famiglie;999;Altri trasferimenti a famiglie n.a.c.;12-12-2017;
1096;4;0;"130,00";"1.250,00";CANEVAROLO SARA; ;Borsa di studio anno scolastico 2016/2017 a favore degli studenti meritevoli che hanno superato gli esami di terza media - a.l. ac n. 215 del 05.12.2015;12-12-2017;3415;0;382;1;Spese correnti;4;Trasferimenti correnti;2;Trasferimenti correnti a Famiglie;5;Altri trasferimenti a famiglie;999;Altri trasferimenti a famiglie n.a.c.;12-12-2017;
1096;5;0;"100,00";"1.250,00";GENNARI ANNA; ;Borsa di studio anno scolastico 2016/2017 a favore degli studenti meritevoli che hanno superato gli esami di terza media - a.l. ac n. 215 del 05.12.2015;12-12-2017;3415;0;382;1;Spese correnti;4;Trasferimenti correnti;2;Trasferimenti correnti a Famiglie;5;Altri trasferimenti a famiglie;999;Altri trasferimenti a famiglie n.a.c.;12-12-2017;
1096;6;0;"130,00";"1.250,00";GHIOTTO EMMA; ;Borsa di studio anno scolastico 2016/2017 a favore degli studenti meritevoli che hanno superato gli esami di terza media - a.l. ac n. 215 del 05.12.2015;12-12-2017;3415;0;382;1;Spese correnti;4;Trasferimenti correnti;2;Trasferimenti correnti a Famiglie;5;Altri trasferimenti a famiglie;999;Altri trasferimenti a famiglie n.a.c.;12-12-2017;
1096;7;0;"130,00";"1.250,00";GOLDIN ANNA; ;Borsa di studio anno scolastico 2016/2017 a favore degli studenti meritevoli che hanno superato gli esami di terza media - a.l. ac n. 215 del 05.12.2015;12-12-2017;3415;0;382;1;Spese correnti;4;Trasferimenti correnti;2;Trasferimenti correnti a Famiglie;5;Altri trasferimenti a famiglie;999;Altri trasferimenti a famiglie n.a.c.;12-12-2017;
1096;8;0;"130,00";"1.250,00";MALANDRIN VALENTINA; ;Borsa di studio anno scolastico 2016/2017 a favore degli studenti meritevoli che hanno superato gli esami di terza media - a.l. ac n. 215 del 05.12.2015;12-12-2017;3415;0;382;1;Spese correnti;4;Trasferimenti correnti;2;Trasferimenti correnti a Famiglie;5;Altri trasferimenti a famiglie;999;Altri trasferimenti a famiglie n.a.c.;12-12-2017;
1096;9;0;"100,00";"1.250,00";PARISATTO SILVIA; ;Borsa di studio anno scolastico 2016/2017 a favore degli studenti meritevoli che hanno superato gli esami di terza media - a.l. ac n. 215 del 05.12.2015;12-12-2017;3415;0;382;1;Spese correnti;4;Trasferimenti correnti;2;Trasferimenti correnti a Famiglie;5;Altri trasferimenti a famiglie;999;Altri trasferimenti a famiglie n.a.c.;12-12-2017;
1096;10;0;"100,00";"1.250,00";RUFFIN ALBERTO; ;Borsa di studio anno scolastico 2016/2017 a favore degli studenti meritevoli che hanno superato gli esami di terza media - a.l. ac n. 215 del 05.12.2015;12-12-2017;3415;0;382;1;Spese correnti;4;Trasferimenti correnti;2;Trasferimenti correnti a Famiglie;5;Altri trasferimenti a famiglie;999;Altri trasferimenti a famiglie n.a.c.;12-12-2017;
1096;11;0;"130,00";"1.250,00";ZOVI EMMA; ;Borsa di studio anno scolastico 2016/2017 a favore degli studenti meritevoli che hanno superato gli esami di terza media - a.l. ac n. 215 del 05.12.2015;12-12-2017;3415;0;382;1;Spese correnti;4;Trasferimenti correnti;2;Trasferimenti correnti a Famiglie;5;Altri trasferimenti a famiglie;999;Altri trasferimenti a famiglie n.a.c.;12-12-2017;
1098;1;0;"887,38";"887,38";TREVISAN VANESSA; ;Indennita di funzione spettante al Sindaco dicembre 2017;12-12-2017;10;0;9;1;Spese correnti;3;Acquisto di beni e servizi;2;Acquisto di servizi;1;Organi e incarichi istituzionali dell'amministrazione;1;Organi istituzionali dell'amministrazione - Indennità;12-12-2017;
1099;1;0;"177,48";"177,48";CALAON SIMONE; ;Indennita di funzione spettante al vice-sindaco dicembre 2017;12-12-2017;10;0;10;1;Spese correnti;3;Acquisto di beni e servizi;2;Acquisto di servizi;1;Organi e incarichi istituzionali dell'amministrazione;1;Organi istituzionali dell'amministrazione - Indennità;12-12-2017;
1100;1;0;"266,21";"266,21";SANTIMARIA ANDREA; ;Indennita di funzione assessore dicembre  2017;12-12-2017;10;0;11;1;Spese correnti;3;Acquisto di beni e servizi;2;Acquisto di servizi;1;Organi e incarichi istituzionali dell'amministrazione;1;Organi istituzionali dell'amministrazione - Indennità;12-12-2017;
1101;1;0;"266,21";"266,21";ZAVATTIERO AGOSTINO; ;Indennita di funzione assessore dicembre  2017;12-12-2017;10;0;13;1;Spese correnti;3;Acquisto di beni e servizi;2;Acquisto di servizi;1;Organi e incarichi istituzionali dell'amministrazione;1;Organi istituzionali dell'amministrazione - Indennità;12-12-2017;
1102;1;0;"133,11";"133,11";LAZZARETTO ROBERTA; ;Indennita di funzione assessore dicembre 2017;12-12-2017;10;0;12;1;Spese correnti;3;Acquisto di beni e servizi;2;Acquisto di servizi;1;Organi e incarichi istituzionali dell'amministrazione;1;Organi istituzionali dell'amministrazione - Indennità;12-12-2017;
1105;1;0;"73,07";"342,77";E.ON Energia S.p.a.;Z7113FE6B2;SALDO Fatt.n. 40009819  del 01/12/2017 Fornitura gas naturale utenza sede Municipale mese di ottobre 2017;13-12-2017;4751;0;62;1;Spese correnti;3;Acquisto di beni e servizi;2;Acquisto di servizi;5;Utenze e canoni;6;Gas;13-12-2017;
1105;2;0;"269,70";"342,77";E.ON Energia S.p.a.;Z7113FE6B2;SALDO Fatt.n. 40010355  del 01/12/2017 Fornitura gas naturale utenza Sede Municipale mese di ottobre 2017;13-12-2017;4751;0;62;1;Spese correnti;3;Acquisto di beni e servizi;2;Acquisto di servizi;5;Utenze e canoni;6;Gas;13-12-2017;
1106;1;0;"424,78";"424,78";E.ON Energia S.p.a.;Z7113FE6B2;SALDO Fatt.n. 40010357  del 01/12/2017 Fornitura gas naturale utenza immobile Piazzetta Martiri periodo dal 28 settembre 2017 al 30 ottobre 2017;13-12-2017;1405;0;61;1;Spese correnti;3;Acquisto di beni e servizi;2;Acquisto di servizi;5;Utenze e canoni;6;Gas;13-12-2017;
1107;1;0;"125,29";"125,29";E.ON Energia S.p.a.;Z7113FE6B2;SALDO Fatt.n. 40010382  del 01/12/2017 Fornitura gas naturale utenza Villa Venier mese di ottobre 2017;13-12-2017;1312;0;66;1;Spese correnti;3;Acquisto di beni e servizi;2;Acquisto di servizi;5;Utenze e canoni;6;Gas;13-12-2017;
1108;1;0;"253,72";"253,72";E.ON Energia S.p.a.;Z7113FE6B2;ACCONTO Fatt.n. 40010356  del 01/12/2017 Fornitura gas naturale utenza Polo Scolastico mese di ottobre 2017;13-12-2017;28001;0;63;1;Spese correnti;3;Acquisto di beni e servizi;2;Acquisto di servizi;5;Utenze e canoni;6;Gas;13-12-2017;
1109;1;0;"253,72";"253,72";E.ON Energia S.p.a.;Z7113FE6B2;ACCONTO Fatt.n. 40010356  del 01/12/2017 Fornitura gas naturale utenza Polo Scolastico mese di ottobre 2017;13-12-2017;29701;0;64;1;Spese correnti;3;Acquisto di beni e servizi;2;Acquisto di servizi;5;Utenze e canoni;6;Gas;13-12-2017;
1110;1;0;"253,71";"253,71";E.ON Energia S.p.a.;Z711FE6B2;SALDO Fatt.n. 40010356  del 01/12/2017 Fornitura gas naturale utenza Polo Scolastico mese di ottobre 2017;13-12-2017;31801;0;65;1;Spese correnti;3;Acquisto di beni e servizi;2;Acquisto di servizi;5;Utenze e canoni;6;Gas;13-12-2017;
1111;1;0;"361,51";"361,51";Illumia S.p.A.;Z0E14167CF;SALDO Fatt.n. 10521-PE  del 23/11/2017 Fornitura energia elettrica utenza Sede Municipale mese di ottobre 2017;14-12-2017;4751;0;371;1;Spese correnti;3;Acquisto di beni e servizi;2;Acquisto di servizi;5;Utenze e canoni;4;Energia elettrica;14-12-2017;
1112;1;0;"99,52";"4.019,97";Illumia S.p.A.;Z0E14167CF;SALDO Fatt.n. 10321-PE  del 23/11/2017 Fornitura energia elettrica utenza ill. pubblica (cod. POD IT001E32268714) mese di ottobre 2017;14-12-2017;7420;0;380;1;Spese correnti;3;Acquisto di beni e servizi;2;Acquisto di servizi;5;Utenze e canoni;4;Energia elettrica;14-12-2017;
1112;2;0;"110,46";"4.019,97";Illumia S.p.A.;Z0E14167CF;SALDO Fatt.n. 10717-PE  del 23/11/2017 Fornitura energia elettrica utenza torretta Piazzetta Spolverato mese di ottobre 2017;14-12-2017;7420;0;380;1;Spese correnti;3;Acquisto di beni e servizi;2;Acquisto di servizi;5;Utenze e canoni;4;Energia elettrica;14-12-2017;
1112;3;0;"3.809,99";"4.019,97";Illumia S.p.A.;Z0E14167CF;SALDO Fatt.n. 10714-PE  del 23/11/2017 Fornitura energia elettrica utenze illuminazione pubblica mese di ottobre 2017;14-12-2017;7420;0;380;1;Spese correnti;3;Acquisto di beni e servizi;2;Acquisto di servizi;5;Utenze e canoni;4;Energia elettrica;14-12-2017;
1113;1;0;"107,97";"589,05";Illumia S.p.A.;Z0E14167CF;SALDO Fatt.n. 10351-PE  del 23/11/2017 Fornitura energia elettrica utenza impianto sportivo Zovon mese di ottobre 2017;14-12-2017;64981;0;376;1;Spese correnti;3;Acquisto di beni e servizi;2;Acquisto di servizi;5;Utenze e canoni;4;Energia elettrica;14-12-2017;
1113;2;0;"481,08";"589,05";Illumia S.p.A.;Z0E14167CF;SALDO Fatt.n. 10715-PE  del 23/11/2017 Fornitura energia elettrica utenza impianto sportivo Via Marconi mese di ottobre 2017;14-12-2017;64981;0;376;1;Spese correnti;3;Acquisto di beni e servizi;2;Acquisto di servizi;5;Utenze e canoni;4;Energia elettrica;14-12-2017;
1114;1;0;"369,06";"369,06";Illumia S.p.A.;Z0E14167CF;SALDO Fatt.n. 10716-PE  del 23/11/2017 Fornitura energia elettrica utenza Immobile Piazzetta Martiri mese di ottobre 2017;14-12-2017;1405;0;379;1;Spese correnti;3;Acquisto di beni e servizi;2;Acquisto di servizi;5;Utenze e canoni;4;Energia elettrica;14-12-2017;
1115;1;0;"156,73";"156,73";Illumia S.p.A.;Z0E14167CF;SALDO Fatt.n. 10751-PE  del 23/11/2017 Fornitura energia elettrica utenza Villa Venier mese di ottobre 2017;14-12-2017;1312;0;378;1;Spese correnti;3;Acquisto di beni e servizi;2;Acquisto di servizi;5;Utenze e canoni;4;Energia elettrica;14-12-2017;
1116;1;0;"339,34";"339,34";Illumia S.p.A.;Z0E14167CF;ACCONTO Fatt.n. 10350-PE  del 23/11/2017 Fornitura energia elettrica utenza Scuola Infanzia mese di ottobre 2017;14-12-2017;28001;0;372;1;Spese correnti;3;Acquisto di beni e servizi;2;Acquisto di servizi;5;Utenze e canoni;4;Energia elettrica;14-12-2017;
1117;1;0;"339,34";"339,34";Illumia S.p.A.;Z0E14167CF;ACCONTO Fatt.n. 10350-PE  del 23/11/2017 Fornitura energia elettrica utenza Scuola Primaria mese di ottobre 2017;14-12-2017;29701;0;373;1;Spese correnti;3;Acquisto di beni e servizi;2;Acquisto di servizi;5;Utenze e canoni;4;Energia elettrica;14-12-2017;
1118;1;0;"339,35";"339,35";Illumia S.p.A.;Z0E14167CF;SALDO Fatt.n. 10350-PE  del 23/11/2017 Fornitura energia elettrica utenza Scuola Secondaria di primo grado mese di ottobre 2017;14-12-2017;31801;0;374;1;Spese correnti;3;Acquisto di beni e servizi;2;Acquisto di servizi;5;Utenze e canoni;4;Energia elettrica;14-12-2017;
1145;1;0;"90,48";"90,48";Vodafone Italia S.p.A.;ZD11381BD3;ACCONTO Fatt.n. AH21377521  del 29/11/2017 Spese per telefonia mobile  periodo dal 30 settembre 2017 al 24 novembre 2017;15-12-2017;4751;0;73;1;Spese correnti;3;Acquisto di beni e servizi;2;Acquisto di servizi;5;Utenze e canoni;2;Telefonia mobile;15-12-2017;
1146;1;0;"635,37";"635,37";Vodafone Italia S.p.A.;Z941E11750;ACCONTO Fatt.n. AH21377521  del 29/11/2017 Spese telefoniche utenze comunali periodo dal 30 settembre 2017 al 24 novembre 2017;15-12-2017;4751;0;143;1;Spese correnti;3;Acquisto di beni e servizi;2;Acquisto di servizi;5;Utenze e canoni;1;Telefonia fissa;15-12-2017;
1147;1;0;"145,58";"145,58";Vodafone Italia S.p.A.;Z941E11750;ACCONTO Fatt.n. AH21377521  del 29/11/2017 Spese telefoniche utenza Scuola Infanzia periodo dal 30 settembre 2017 al 24 novembre 2017;15-12-2017;28001;0;140;1;Spese correnti;3;Acquisto di beni e servizi;2;Acquisto di servizi;5;Utenze e canoni;1;Telefonia fissa;15-12-2017;
1148;1;0;"145,58";"145,58";Vodafone Italia S.p.A.;Z941E11750;ACCONTO Fatt.n. AH21377521  del 29/11/2017 Spese telefoniche utenza Scuola Primaria dal 30 settembre 2017 al 24 novembre 2017;15-12-2017;29701;0;141;1;Spese correnti;3;Acquisto di beni e servizi;2;Acquisto di servizi;5;Utenze e canoni;1;Telefonia fissa;15-12-2017;
1149;1;0;"145,60";"145,60";Vodafone Italia S.p.A.;Z941E11750;SALDO Fatt.n. AH21377521  del 29/11/2017 Spese telefoniche utenze comunali periodo dal 30 settembre 2017 al 24 novembre 2017;15-12-2017;31801;0;142;1;Spese correnti;3;Acquisto di beni e servizi;2;Acquisto di servizi;5;Utenze e canoni;1;Telefonia fissa;15-12-2017;
1150;1;0;"4.169,00";"4.169,00";COOPERATIVA SOCIALE SERVIZI ASSOCIATI;7079166895;SALDO Fatt.n. D-450  del 30/11/2017 Servizio di trasporto scolastico mese di novembre 2017;15-12-2017;3413;0;279;1;Spese correnti;3;Acquisto di beni e servizi;2;Acquisto di servizi;15;Contratti di servizio pubblico;2;Contratti di servizio di trasporto scolastico;15-12-2017;
1151;1;0;"138,38";"138,38";LIBRERIA GREGORIANA ESTENSE; ;SALDO Fatt.n. 42/PA  del 07/12/2017 Fornitura libri ad alunni scuola elementare;15-12-2017;2950;0;400;1;Spese correnti;3;Acquisto di beni e servizi;1;Acquisto di beni;2;Altri beni di consumo;999;Altri beni e materiali di consumo n.a.c.;15-12-2017;
1152;1;0;"105,15";"105,15";MAPLAST di Mischiari Luca;Z291DF171A;ACCONTO Fatt.n. 64/PA/2017  del 13/12/2017;15-12-2017;4752;0;119;1;Spese correnti;3;Acquisto di beni e servizi;2;Acquisto di servizi;9;Manutenzione ordinaria e riparazioni;5;Manutenzione ordinaria e riparazioni di attrezzature;15-12-2017;
1153;1;0;"1.625,57";"1.625,57";ISTITUTO COMPRENSIVO LOZZO ATESTINO; ;Contributo per organizzazione  servizio pre-scuola  A.S. 2017/2018 - A.L. AC N. 234 DEL 15.12.2017;15-12-2017;3425;0;393;1;Spese correnti;4;Trasferimenti correnti;1;Trasferimenti correnti a Amministrazioni Pubbliche;1;Trasferimenti correnti a Amministrazioni Centrali;2;Trasferimenti correnti a Ministero dell'Istruzione - Istituzioni scolastiche;15-12-2017;
1154;1;0;"191,85";"191,85";MAPLAST di Mischiari Luca;Z291DF171A;SALDO Fatt.n. 64/PA/2017  del 13/12/2017;15-12-2017;4752;0;398;1;Spese correnti;3;Acquisto di beni e servizi;2;Acquisto di servizi;9;Manutenzione ordinaria e riparazioni;5;Manutenzione ordinaria e riparazioni di attrezzature;15-12-2017;
1155;1;0;"150,50";"150,50";Sodexo Italia Spa;64630250F4;ACCONTO Fatt.n. 6400051830  del 30/11/2017 Servizio di sorveglianza refettorio mese di novembre 2017;15-12-2017;3406;0;332;1;Spese correnti;3;Acquisto di beni e servizi;2;Acquisto di servizi;15;Contratti di servizio pubblico;6;Contratti di servizio per le mense scolastiche;15-12-2017;
1156;1;0;"419,39";"419,39";Sodexo Italia Spa;64630250F4;SALDO Fatt.n. 6400051830  del 30/11/2017 Servizio di sorveglianza refettorio mese di novembre 2017;15-12-2017;3406;0;399;1;Spese correnti;3;Acquisto di beni e servizi;2;Acquisto di servizi;15;Contratti di servizio pubblico;6;Contratti di servizio per le mense scolastiche;15-12-2017;
1157;1;0;"387,96";"387,96";Prisma S.r.l.;Z65201F2D5;SALDO Fatt.n. 355  del 12/12/2017 Fornitura tavoli per mensa scolastica;15-12-2017;2970;0;299;1;Spese correnti;3;Acquisto di beni e servizi;1;Acquisto di beni;2;Altri beni di consumo;999;Altri beni e materiali di consumo n.a.c.;15-12-2017;
1159;1;0;"761,28";"761,28";Montanari Alessandro;ZA42049F83;SALDO Fatt.n. FATTPA 52_17  del 12/12/2017 Incarico di consulenza legale.;15-12-2017;755;0;321;1;Spese correnti;3;Acquisto di beni e servizi;2;Acquisto di servizi;10;Consulenze;1;"Incarichi libero professionali di studi, ricerca e consulenza";15-12-2017;
1160;1;0;"201,20";"201,20";PILO SNC;Z641F2729B;SALDO Fatt.n. 1/E  del 30/11/2017 Servizio sostitutivo mensa dipendenti mese di novembre 2017;15-12-2017;9375;0;206;1;Spese correnti;3;Acquisto di beni e servizi;2;Acquisto di servizi;99;Altri servizi;999;Altri servizi diversi n.a.c.;15-12-2017;
1161;1;0;"2.196,00";"5.714,48";ACCATRE S.r.l.;Z721F3CB95;SALDO Fatt.n. 1/171179  del 04/12/2017 Attivazione e avviamento progetto conservazione a norma documenti nella PAL;15-12-2017;555;0;242;1;Spese correnti;3;Acquisto di beni e servizi;2;Acquisto di servizi;19;Servizi informatici e di telecomunicazioni;1;Gestione e manutenzione applicazioni;15-12-2017;
1161;2;0;"3.518,48";"5.714,48";ACCATRE S.r.l.;Z721F3CB95;"SALDO Fatt.n. 1/171216  del 07/12/2017 Convenzione 2017 per  servizi immedia, VAOL e conservazione Infocert";15-12-2017;555;0;242;1;Spese correnti;3;Acquisto di beni e servizi;2;Acquisto di servizi;19;Servizi informatici e di telecomunicazioni;1;Gestione e manutenzione applicazioni;15-12-2017;
1162;1;0;"3.390,11";"3.390,11";Sodexo Italia Spa;64630250F4;SALDO Fatt.n. 6400051829  del 30/11/2017 Fornitura pasti a bambini scuole elementari mese di novembre 2017;15-12-2017;3406;0;46;1;Spese correnti;3;Acquisto di beni e servizi;2;Acquisto di servizi;15;Contratti di servizio pubblico;6;Contratti di servizio per le mense scolastiche;15-12-2017;
1163;1;0;"3.182,36";"3.182,36";Sodexo Italia Spa;64630250F4;SALDO Fatt.n. 6400051828  del 30/11/2017 Fornitura pasti ad alunni scuola materna mese di novembre 2017;15-12-2017;3404;0;45;1;Spese correnti;3;Acquisto di beni e servizi;2;Acquisto di servizi;15;Contratti di servizio pubblico;6;Contratti di servizio per le mense scolastiche;15-12-2017;
1164;1;0;"750,00";"750,00";CASA DI RIPOSO "A. SIMIONATI"; ;SALDO Fatt.n. 147/E  del 30/11/2017;15-12-2017;6875;0;243;1;Spese correnti;3;Acquisto di beni e servizi;2;Acquisto di servizi;99;Altri servizi;999;Altri servizi diversi n.a.c.;15-12-2017;
1165;1;0;"1.045,00";"1.045,00";ZEFIRO SRL;Z3D1A45638;ACCONTO Fatt.n. 51/PA  del 30/11/2017 Servizio di pulizia edifici comunali MESE di NOVEMBRE 2017;15-12-2017;475;0;393;1;Spese correnti;3;Acquisto di beni e servizi;2;Acquisto di servizi;99;Altri servizi;999;Altri servizi diversi n.a.c.;15-12-2017;
1166;1;0;"262,18";"262,18";ZEFIRO SRL;Z3D1A45638;ACCONTO Fatt.n. 51/PA  del 30/11/2017 Servizio di pulizia edifici comunali MESE di NOVEMBRE 2017;15-12-2017;2973;0;394;1;Spese correnti;3;Acquisto di beni e servizi;2;Acquisto di servizi;99;Altri servizi;999;Altri servizi diversi n.a.c.;15-12-2017;
1167;1;0;"294,75";"294,75";ZEFIRO SRL;Z3D1A45638;ACCONTO Fatt.n. 51/PA  del 30/11/2017 Servizio di pulizia edifici comunali MESE di NOVEMBRE 2017;15-12-2017;37601;0;395;1;Spese correnti;3;Acquisto di beni e servizi;2;Acquisto di servizi;99;Altri servizi;999;Altri servizi diversi n.a.c.;15-12-2017;
1168;1;0;"174,85";"174,85";ZEFIRO SRL;Z3D1A45638;SALDO Fatt.n. 51/PA  del 30/11/2017 Servizio di pulizia edifici comunali MESE di NOVEMBRE 2017;15-12-2017;1400;0;396;1;Spese correnti;3;Acquisto di beni e servizi;2;Acquisto di servizi;9;Manutenzione ordinaria e riparazioni;8;Manutenzione ordinaria e riparazioni di beni immobili;15-12-2017;
1169;1;0;"1.400,00";"1.400,00";Gruppo Musicisti di Vo'; ;Contributo economico anno 2017 - SALDO - A.L. AC N. 227 DEL 13.12.2017;15-12-2017;4000;0;225;1;Spese correnti;4;Trasferimenti correnti;3;Trasferimenti correnti a Imprese;99;Trasferimenti correnti a altre imprese;999;Trasferimenti correnti a altre imprese;15-12-2017;
1170;1;0;"212,64";"212,64";COMUNE DI ESTE; ;Servizio di vigilanza in occasione della Fiera di San Lorenzo 2017 - a.l. AC N. 225 DEL 13.12.2017;15-12-2017;2200;0;259;1;Spese correnti;3;Acquisto di beni e servizi;2;Acquisto di servizi;99;Altri servizi;999;Altri servizi diversi n.a.c.;15-12-2017;
1171;1;0;"549,29";"737,54";COMUNE DI ESTE; ;Servizio di vigilanza  in occasione della Festa dell Uva 2017 - a.l. AC N. 225 DEL 13.12.2017;15-12-2017;2200;0;285;1;Spese correnti;3;Acquisto di beni e servizi;2;Acquisto di servizi;99;Altri servizi;999;Altri servizi diversi n.a.c.;15-12-2017;
1171;2;0;"188,25";"737,54";COMUNE DI SANT'URBANO; ;Servizio di vigilanza  in occasione della Festa dell Uva 2017 - a.l. AC N. 225 DEL 13.12.2017;15-12-2017;2200;0;285;1;Spese correnti;3;Acquisto di beni e servizi;2;Acquisto di servizi;99;Altri servizi;999;Altri servizi diversi n.a.c.;15-12-2017;
1172;1;0;"200,00";"200,00";ASS. CULTURALE IL MULINO; ;Contributo per  "Comuni Senza Frontiere 2017" - a.l. ac n. 235 del 15.12.2017;15-12-2017;4000;0;153;1;Spese correnti;4;Trasferimenti correnti;3;Trasferimenti correnti a Imprese;99;Trasferimenti correnti a altre imprese;999;Trasferimenti correnti a altre imprese;15-12-2017;
1174;1;0;"2,03";"162,17";TELECOM ITALIA SPA;ZE31381BC6;SALDO Fatt.n. 8E00998650  del 05/10/2017 Spese telefoniche utenze Sede Municipale (noleggio impianto principale) sesto bimestre 2017;15-12-2017;4751;0;67;1;Spese correnti;3;Acquisto di beni e servizi;2;Acquisto di servizi;5;Utenze e canoni;1;Telefonia fissa;15-12-2017;
1174;2;0;"5,05";"162,17";TELECOM ITALIA SPA;ZE31381BC6;SALDO Fatt.n. 8E01000727  del 05/10/2017 Spese telefoniche utenza Sede Municipale (0499940027) sesto bimestre 2017;15-12-2017;4751;0;67;1;Spese correnti;3;Acquisto di beni e servizi;2;Acquisto di servizi;5;Utenze e canoni;1;Telefonia fissa;15-12-2017;
1174;3;0;"155,09";"162,17";TELECOM ITALIA SPA;ZE31381BC6;SALDO Fatt.n. 8E01003813  del 05/10/2017 Spese telefoniche utenza Sede Municipale (0499940677)  sesto bimestre 2017;15-12-2017;4751;0;67;1;Spese correnti;3;Acquisto di beni e servizi;2;Acquisto di servizi;5;Utenze e canoni;1;Telefonia fissa;15-12-2017;
1175;1;0;"7,00";"7,00";ECONOMO COMUNALE; ;Rifusione buoni economato n. 78 e 82 - A.L. AC N. 237 DEL 18.12.2017;18-12-2017;230;0;92;1;Spese correnti;3;Acquisto di beni e servizi;2;Acquisto di servizi;1;Organi e incarichi istituzionali dell'amministrazione;2;Organi istituzionali dell'amministrazione - Rimborsi;18-12-2017;
1176;1;0;"10,00";"10,00";ECONOMO COMUNALE; ;Rifusione buoni economato n. 73p - A.L. AC N. 237 DEL 18.12.2017;18-12-2017;445;0;94;1;Spese correnti;3;Acquisto di beni e servizi;2;Acquisto di servizi;4;Acquisto di servizi per formazione e addestramento del personale dell'ente;999;Acquisto di servizi per altre spese per formazione e addestramento n.a.c.;18-12-2017;
1177;1;0;"50,00";"50,00";ECONOMO COMUNALE; ;Rifusione buoni economato n. 73p - A.L. AC N. 237 DEL 18.12.2017;18-12-2017;445;0;244;1;Spese correnti;3;Acquisto di beni e servizi;2;Acquisto di servizi;4;Acquisto di servizi per formazione e addestramento del personale dell'ente;4;Acquisto di servizi per formazione obbligatoria;18-12-2017;
1178;1;0;"60,00";"60,00";ECONOMO COMUNALE; ;Rifusione buoni economato n. 73p - A.L. AC N. 237 DEL 18.12.2017;18-12-2017;445;0;363;1;Spese correnti;3;Acquisto di beni e servizi;2;Acquisto di servizi;4;Acquisto di servizi per formazione e addestramento del personale dell'ente;999;Acquisto di servizi per altre spese per formazione e addestramento n.a.c.;18-12-2017;
1179;1;0;"156,90";"156,90";ECONOMO COMUNALE; ;Rifusione buoni economato n. 70 71 72 75 - A.L. AC N. 237 DEL 18.12.2017;18-12-2017;4754;0;246;1;Spese correnti;3;Acquisto di beni e servizi;1;Acquisto di beni;2;Altri beni di consumo;999;Altri beni e materiali di consumo n.a.c.;18-12-2017;
1180;1;0;"59,55";"59,55";ECONOMO COMUNALE; ;Rifusione buoni economato n. 69 74 76p - A.L. AC N. 237 DEL 18.12.2017;18-12-2017;1305;0;247;1;Spese correnti;3;Acquisto di beni e servizi;1;Acquisto di beni;2;Altri beni di consumo;999;Altri beni e materiali di consumo n.a.c.;18-12-2017;
1181;1;0;"278,65";"278,65";ECONOMO COMUNALE; ;Rifusione buoni economato n. 76p 77 79 80 81 - A.L. AC N. 237 DEL 18.12.2017;18-12-2017;1305;0;364;1;Spese correnti;3;Acquisto di beni e servizi;1;Acquisto di beni;2;Altri beni di consumo;999;Altri beni e materiali di consumo n.a.c.;18-12-2017;
1182;1;0;"37,96";"544,19";CATTIODORO ALESSANDRO; ;Gettoni presenza Commissari Edilizi  anno 2016 - a.l. utc n. 20 del 27.02.2017;18-12-2017;4285;0;430;1;Spese correnti;3;Acquisto di beni e servizi;2;Acquisto di servizi;10;Consulenze;2;"Esperti per commissioni, comitati e consigli";18-12-2017;
1182;2;0;"42,16";"544,19";CATTIODORO ALESSANDRO; ;Rimborso spese chilometriche per Commissari Edilizi  anno 2016 - a.l. utc n. 20 del 27.02.2017;18-12-2017;4285;0;430;1;Spese correnti;3;Acquisto di beni e servizi;2;Acquisto di servizi;10;Consulenze;2;"Esperti per commissioni, comitati e consigli";18-12-2017;
1182;3;0;"56,94";"544,19";CORA' SILVANO; ;Gettoni presenza per Commissari Edilizi anno 2016 - a.l. utc n. 20 del 27.02.2017;18-12-2017;4285;0;430;1;Spese correnti;3;Acquisto di beni e servizi;2;Acquisto di servizi;10;Consulenze;2;"Esperti per commissioni, comitati e consigli";18-12-2017;
1182;4;0;"70,68";"544,19";CORA' SILVANO; ;Rimborso spese chilometriche per Commissari Edilizi  anno 2016 - a.l. utc n. 20 del 27.02.2017;18-12-2017;4285;0;430;1;Spese correnti;3;Acquisto di beni e servizi;2;Acquisto di servizi;10;Consulenze;2;"Esperti per commissioni, comitati e consigli";18-12-2017;
1182;5;0;"43,40";"544,19";RUFFIN LUCA; ;Rimborso  spese chilometriche commissioni paesaggistiche anno 2016 - a.l. utc n. 20 del 27.02.2017;18-12-2017;4285;0;430;1;Spese correnti;3;Acquisto di beni e servizi;2;Acquisto di servizi;10;Consulenze;2;"Esperti per commissioni, comitati e consigli";18-12-2017;
1182;6;0;"66,43";"544,19";RUFFIN LUCA; ;Gettoni presenza  per  Commissione paesaggistica anno 2016 - a.l. utc n. 20 del 27.02.2017;18-12-2017;4285;0;430;1;Spese correnti;3;Acquisto di beni e servizi;2;Acquisto di servizi;10;Consulenze;2;"Esperti per commissioni, comitati e consigli";18-12-2017;
1182;7;0;"55,80";"544,19";ZAMPIERI PAOLO; ;Rimborso spese chilometriche per Commissari Edilizi  anno 2016 - a.l. utc n. 20 del 27.02.2017;18-12-2017;4285;0;430;1;Spese correnti;3;Acquisto di beni e servizi;2;Acquisto di servizi;10;Consulenze;2;"Esperti per commissioni, comitati e consigli";18-12-2017;
1182;8;0;"85,41";"544,19";ZAMPIERI PAOLO; ;Gettoni presenza Commissari Edilizi e Paesaggisti anno 2016 - a.l. utc n. 20 del 27.02.2017;18-12-2017;4285;0;430;1;Spese correnti;3;Acquisto di beni e servizi;2;Acquisto di servizi;10;Consulenze;2;"Esperti per commissioni, comitati e consigli";18-12-2017;
1182;9;0;"37,96";"544,19";ZANETTI ROBERTO; ;Gettoni presenza  per Commissari Edilizi  anno 2016 - a.l. utc n. 20 del 27.02.2017;18-12-2017;4285;0;430;1;Spese correnti;3;Acquisto di beni e servizi;2;Acquisto di servizi;10;Consulenze;2;"Esperti per commissioni, comitati e consigli";18-12-2017;
1182;10;0;"47,45";"544,19";ZERBETTO MICHELA; ;Gettoni presenza  Commissari Edilizi  anno 2016 - a.l. utc n. 20 del 27.02.2017;18-12-2017;4285;0;430;1;Spese correnti;3;Acquisto di beni e servizi;2;Acquisto di servizi;10;Consulenze;2;"Esperti per commissioni, comitati e consigli";18-12-2017;
1188;1;0;"28.183,01";"28.183,01";CASSA DEPOSITI E PRESTITI SPA; ;Quota interessi dei mutui in ammortamento rata scad. 29.12.2017  -  provv. 140;29-12-2017;7450;0;197;1;Spese correnti;7;Interessi passivi;5;Interessi su Mutui e altri finanziamenti a medio lungo termine;4;Interessi passivi su finanziamenti a medio lungo termine a Imprese;3;Interessi passivi a Cassa Depositi e Prestiti SPA su mutui e altri finanziamenti a medio lungo termine;29-12-2017;
1189;1;0;"3.915,57";"3.915,57";CASSA DEPOSITI E PRESTITI SPA; ;Quota interessi dei mutui in ammortamento rata scad. 29.12.2017  -  provv. 140;29-12-2017;3285;0;198;1;Spese correnti;7;Interessi passivi;5;Interessi su Mutui e altri finanziamenti a medio lungo termine;4;Interessi passivi su finanziamenti a medio lungo termine a Imprese;3;Interessi passivi a Cassa Depositi e Prestiti SPA su mutui e altri finanziamenti a medio lungo termine;29-12-2017;
1190;1;0;"1.189,50";"1.189,50";CASSA DEPOSITI E PRESTITI SPA; ;Quota interessi dei mutui in ammortamento rata scad. 29.12.2017  -  provv. 140;29-12-2017;5685;0;199;1;Spese correnti;7;Interessi passivi;5;Interessi su Mutui e altri finanziamenti a medio lungo termine;4;Interessi passivi su finanziamenti a medio lungo termine a Imprese;3;Interessi passivi a Cassa Depositi e Prestiti SPA su mutui e altri finanziamenti a medio lungo termine;29-12-2017;
